Workbook

Sheet CAMP PILOTO EVOL
A1: PARA DESTACAR UM PILOTO MARQUE/DESMARQUE COM UM "X" AO LADO DO NOME E CLIQUE NO BOTÃO. => | D1: OK | F1: OK | H1: OK | J1: OK | L1: OK | N1: OK | P1: OK | R1: OK | T1: OK | V1: OK | X1: DIF. LIDER | Y1: DIF. 5º | Z1: DIF. PRÓXIMO | AA1: OK | AC1: DIF. LIDER | AD1: DIF. 5º | AE1: DIF. PRÓXIMO | AF1: OK | AH1: DIF. LIDER | AI1: DIF. 5º | AJ1: DIF. PRÓXIMO
D2: ETAPA 2 | F2: ETAPA 3 | H2: ETAPA 1 | J2: ETAPA 4 | L2: ETAPA 5 | N2: ETAPA 6 | P2: ETAPA 7 | R2: ETAPA 8 | T2: ETAPA 9 | V2: ETAPA 10 | AA2: ETAPA 11 | AF2: ETAPA 12
B4: Nome do (a) Piloto (a) | D4: PILOTO | E4: PONTOS | F4: PILOTO | G4: PONTOS | H4: PILOTO | I4: PONTOS | J4: PILOTO | K4: PONTOS | L4: PILOTO | M4: PONTOS | N4: PILOTO | O4: PONTOS | P4: PILOTO | Q4: PONTOS | R4: PILOTO | S4: PONTOS | T4: PILOTO | U4: PONTOS | V4: PILOTO | W4: PONTOS | AA4: PILOTO | AB4: PONTOS | AF4: PILOTO | AG4: PONTOS
B5: Agostinho Neves | C5: 1 | D5: Luciano Brandão | E5: 45 | F5: Fernando Mota | G5: 80 | H5: Alexandre Melillo | I5: 80 | J5: Luciano Brandão | K5: 85 | L5: Fernando Mota | M5: 125 | N5: Fernando Mota | O5: 170 | P5: Fernando Mota | Q5: 207 | R5: Fernando Mota | S5: 242 | T5: Fernando Mota | U5: 279 | V5: Fernando Mota | W5: 324 | X5: - | Y5: - | Z5: - | AA5: Fernando Mota | AB5: 364 | AC5: - | AD5: - | AE5: - | AF5: Fernando Mota | AG5: 397 | AH5: - | AI5: - | AJ5: -
A6: X | B6: Alexandre Melillo | C6: 2 | D6: Fernando Mota | E6: 40 | F6: Lúcio Chequer | G6: 78 | H6: Fernando Mota | I6: 80 | J6: Anderson Teixeira | K6: 82 | L6: Anderson Teixeira | M6: 122 | N6: Anderson Teixeira | O6: 162 | P6: Anderson Teixeira | Q6: 199 | R6: Alexandre Melillo | S6: 236 | T6: Anderson Teixeira | U6: 276 | V6: Anderson Teixeira | W6: 313 | X6: =W5-W6 -> 11 | Y6: - | Z6: =W5-W6 -> 11 | AA6: Anderson Teixeira | AB6: 337 | AC6: =AB5-AB6 -> 27 | AD6: - | AE6: =AB5-AB6 -> 27 | AF6: Anderson Teixeira | AG6: 382 | AH6: =AG$5-AG6 -> 15 | AI6: - | AJ6: =AG5-AG6 -> 15
B7: Anderson Oliveira | C7: 3 | D7: Agostinho Neves | E7: 37 | F7: Luciano Brandão | G7: 71 | H7: Lúcio Chequer | I7: 79 | J7: Alexandre Melillo | K7: 80 | L7: Alexandre Melillo | M7: 117 | N7: Luciano Brandão | O7: 151 | P7: Alexandre Melillo | Q7: 191 | R7: Anderson Teixeira | S7: 236 | T7: Alexandre Melillo | U7: 271 | V7: Alexandre Melillo | W7: 297 | X7: =W5-W7 -> 27 | Y7: - | Z7: =W6-W7 -> 16 | AA7: Alexandre Melillo | AB7: 334 | AC7: =AB5-AB7 -> 30 | AD7: - | AE7: =AB6-AB7 -> 3 | AF7: Alexandre Melillo | AG7: 369 | AH7: =AG$5-AG7 -> 28 | AI7: - | AJ7: =AG6-AG7 -> 13
A8: X | B8: Anderson Teixeira | C8: 4 | D8: Alexandre Melillo | E8: 35 | F8: Emerson Guimarães | G8: 62 | H8: Luciano Brandão | I8: 76 | J8: Fernando Mota | K8: 80 | L8: Luciano Brandão | M8: 116 | N8: Lúcio Chequer | O8: 147 | P8: Agostinho Neves | Q8: 181 | R8: Lúcio Chequer | S8: 211 | T8: Lúcio Chequer | U8: 244 | V8: Lúcio Chequer | W8: 284 | X8: =W5-W8 -> 40 | Y8: - | Z8: =W7-W8 -> 13 | AA8: Lúcio Chequer | AB8: 315 | AC8: =AB5-AB8 -> 49 | AD8: - | AE8: =AB7-AB8 -> 19 | AF8: Joanes Gouvea | AG8: 351 | AH8: 46 | AI8: - | AJ8: =AG7-AG8 -> 18
B9: Aparecido Arantes | C9: 5 | D9: Lúcio Chequer | E9: 33 | F9: Agostinho Neves | G9: 58 | H9: Agostinho Neves | I9: 72 | J9: Lúcio Chequer | K9: 79 | L9: Lúcio Chequer | M9: 114 | N9: Alexandre Melillo | O9: 145 | P9: Luciano Brandão | Q9: 180 | R9: Luciano Brandão | S9: 208 | T9: Luciano Brandão | U9: 236 | V9: Joanes Gouvea | W9: 265 | X9: =W5-W9 -> 59 | Y9: - | Z9: =W8-W9 -> 19 | AA9: Joanes Gouvea | AB9: 310 | AC9: =AB5-AB9 -> 54 | AD9: - | AE9: =AB8-AB9 -> 5 | AF9: Lúcio Chequer | AG9: 344 | AH9: 53 | AI9: - | AJ9: =AG8-AG9 -> 7
B10: Arthur Santiago | C10: 6 | D10: Anderson Oliveira | E10: 31 | F10: Anderson Oliveira | G10: 56 | H10: Aparecido Arantes | I10: 71 | J10: Agostinho Neves | K10: 73 | L10: Agostinho Neves | M10: 108 | N10: Agostinho Neves | O10: 141 | P10: Lúcio Chequer | Q10: 180 | R10: Agostinho Neves | S10: 202 | T10: Joanes Gouvea | U10: 232 | V10: Luciano Brandão | W10: 262 | X10: =W5-W10 -> 62 | Y10: =W9-W10 -> 3 | Z10: =W9-W10 -> 3 | AA10: Luciano Brandão | AB10: 297 | AC10: =AB5-AB10 -> 67 | AD10: =AB$9-AB10 -> 13 | AE10: =AB9-AB10 -> 13 | AF10: Luciano Brandão | AG10: 334 | AH10: 63 | AI10: =AG9-AG10 -> 10 | AJ10: =AG9-AG10 -> 10
B11: Danilo Soares | C11: 7 | D11: Joanes Gouvea | E11: 29 | F11: Leonardo Mattioda | G11: 52 | H11: Anderson Teixeira | I11: 65 | J11: Aparecido Arantes | K11: 71 | L11: Arthur Santiago | M11: 96 | N11: Arthur Santiago | O11: 124 | P11: Joanes Gouvea | Q11: 145 | R11: Joanes Gouvea | S11: 186 | T11: Agostinho Neves | U11: 229 | V11: Agostinho Neves | W11: 229 | X11: =W5-W11 -> 95 | Y11: =W9-W11 -> 36 | Z11: =W10-W11 -> 33 | AA11: Leonardo Mattioda | AB11: 258 | AC11: =AB5-AB11 -> 106 | AD11: =AB$9-AB11 -> 52 | AE11: =AB10-AB11 -> 39 | AF11: Leonardo Mattioda | AG11: 287 | AH11: 110 | AI11: =AG9-AG11 -> 57 | AJ11: =AG10-AG11 -> 47
B12: Emerson Guimarães | C12: 8 | D12: Anderson Teixeira | E12: 28 | F12: Leandro Leite | G12: 50 | H12: Emerson Guimarães | I12: 62 | J12: Arthur Santiago | K12: 65 | L12: Emerson Guimarães | M12: 91 | N12: Emerson Guimarães | O12: 116 | P12: Arthur Santiago | Q12: 145 | R12: Arthur Santiago | S12: 174 | T12: Leonardo Mattioda | U12: 198 | V12: Leonardo Mattioda | W12: 225 | X12: =W5-W12 -> 99 | Y12: =W9-W12 -> 40 | Z12: =W11-W12 -> 4 | AA12: Agostinho Neves | AB12: 229 | AC12: =AB5-AB12 -> 135 | AD12: =AB$9-AB12 -> 81 | AE12: =AB11-AB12 -> 29 | AF12: Vitor Diniz | AG12: 254 | AH12: 143 | AI12: =AG9-AG12 -> 90 | AJ12: =AG11-AG12 -> 33
B13: Ezequiel Netto | C13: 9 | D13: Emerson Guimarães | E13: 27 | F13: Vitor Diniz | G13: 49 | H13: Gerson Junior | I13: 60 | J13: Emerson Guimarães | K13: 62 | L13: Anderson Oliveira | M13: 88 | N13: Aparecido Arantes | O13: 115 | P13: Emerson Guimarães | Q13: 140 | R13: Anderson Oliveira | S13: 173 | T13: Arthur Santiago | U13: 191 | V13: Arthur Santiago | W13: 220 | X13: =W5-W13 -> 104 | Y13: =W9-W13 -> 45 | Z13: =W12-W13 -> 5 | AA13: Vitor Diniz | AB13: 226 | AC13: =AB5-AB13 -> 138 | AD13: =AB$9-AB13 -> 84 | AE13: =AB12-AB13 -> 3 | AF13: Gladson Souza | AG13: 243 | AH13: 154 | AI13: =AG9-AG13 -> 101 | AJ13: =AG12-AG13 -> 11
B14: Felipe Franca | C14: 10 | D14: Rodrigo Guimaraes | E14: 26 | F14: Alexandre Melillo | G14: 48 | H14: Anderson Oliveira | I14: 60 | J14: Joanes Gouvea | K14: 62 | L14: Aparecido Arantes | M14: 86 | N14: Anderson Oliveira | O14: 113 | P14: Anderson Oliveira | Q14: 138 | R14: Leonardo Mattioda | S14: 167 | T14: Emerson Guimarães | U14: 187 | V14: Emerson Guimarães | W14: 218 | X14: =W5-W14 -> 106 | Y14: =W9-W14 -> 47 | Z14: =W13-W14 -> 2 | AA14: Arthur Santiago | AB14: 220 | AC14: =AB5-AB14 -> 144 | AD14: =AB$9-AB14 -> 90 | AE14: =AB13-AB14 -> 6 | AF14: Agostinho Neves | AG14: 229 | AH14: 168 | AI14: =AG9-AG14 -> 115 | AJ14: =AG13-AG14 -> 14
A15: X | B15: Fernando Mota | C15: 11 | D15: Vitor Diniz | E15: 25 | F15: Anderson Teixeira | G15: 47 | H15: Leandro Leite | I15: 55 | J15: Gerson Junior | K15: 60 | L15: Gerson Junior | M15: 81 | N15: Joanes Gouvea | O15: 112 | P15: Leonardo Mattioda | Q15: 134 | R15: Emerson Guimarães | S15: 162 | T15: Anderson Oliveira | U15: 173 | V15: Vitor Diniz | W15: 198 | X15: =W5-W15 -> 126 | Y15: =W9-W15 -> 67 | Z15: =W14-W15 -> 20 | AA15: Emerson Guimarães | AB15: 218 | AC15: =AB5-AB15 -> 146 | AD15: =AB$9-AB15 -> 92 | AE15: =AB14-AB15 -> 2 | AF15: Arthur Santiago | AG15: 220 | AH15: 177 | AI15: =AG9-AG15 -> 124 | AJ15: =AG14-AG15 -> 9
B16: Gabriel Gontijo | C16: 12 | D16: Gabriel Gontijo | E16: 24 | F16: Gabriel Gontijo | G16: 44 | H16: Vitor Diniz | I16: 53 | J16: Anderson Oliveira | K16: 60 | L16: Gabriel Gontijo | M16: 80 | N16: Leonardo Mattioda | O16: 106 | P16: Matheus Dias | Q16: 128 | R16: Vitor Diniz | S16: 147 | T16: Vitor Diniz | U16: 170 | V16: Aparecido Arantes | W16: 192 | X16: =W5-W16 -> 132 | Y16: =W9-W16 -> 73 | Z16: =W15-W16 -> 6 | AA16: Gladson Souza | AB16: 212 | AC16: =AB5-AB16 -> 152 | AD16: =AB$9-AB16 -> 98 | AE16: =AB15-AB16 -> 6 | AF16: Aparecido Arantes | AG16: 219 | AH16: 178 | AI16: =AG9-AG16 -> 125 | AJ16: =AG15-AG16 -> 1
B17: Gerson Junior | C17: 13 | D17: Leandro Leite | E17: 23 | F17: Wilson Cristofani | G17: 42 | H17: Leonardo Mattioda | I17: 52 | J17: Leandro Leite | K17: 55 | L17: Matheus Dias | M17: 78 | N17: Matheus Dias | O17: 105 | P17: Vitor Diniz | Q17: 120 | R17: Leodegario Junior | S17: 143 | T17: Aparecido Arantes | U17: 169 | V17: Gladson Souza | W17: 185 | X17: =W5-W17 -> 139 | Y17: =W9-W17 -> 80 | Z17: =W16-W17 -> 7 | AA17: Aparecido Arantes | AB17: 192 | AC17: =AB5-AB17 -> 172 | AD17: =AB$9-AB17 -> 118 | AE17: =AB16-AB17 -> 20 | AF17: Emerson Guimarães | AG17: 218 | AH17: 179 | AI17: =AG9-AG17 -> 126 | AJ17: =AG16-AG17 -> 1
B18: Gladson Souza | C18: 14 | D18: Leonardo Mattioda | E18: 23 | F18: Joanes Gouvea | G18: 40 | H18: Matheus Dias | I18: 52 | J18: Matheus Dias | K18: 54 | L18: Leandro Leite | M18: 77 | N18: Gabriel Gontijo | O18: 100 | P18: Gladson Souza | Q18: 120 | R18: Gladson Souza | S18: 142 | T18: Gabriel Gontijo | U18: 166 | V18: Leodegario Junior | W18: 180 | X18: =W5-W18 -> 144 | Y18: =W9-W18 -> 85 | Z18: =W17-W18 -> 5 | AA18: Leodegario Junior | AB18: 180 | AC18: =AB5-AB18 -> 184 | AD18: =AB$9-AB18 -> 130 | AE18: =AB17-AB18 -> 12 | AF18: Leodegario Junior | AG18: 180 | AH18: 217 | AI18: =AG9-AG18 -> 164 | AJ18: =AG17-AG18 -> 38
B19: Gladystone Reis | C19: 15 | D19: Ezequiel Netto | E19: 21 | F19: Gerson Junior | G19: 37 | H19: Arthur Santiago | I19: 51 | J19: Gabriel Gontijo | K19: 53 | L19: Leonardo Mattioda | M19: 75 | N19: Vitor Diniz | O19: 96 | P19: Leodegario Junior | Q19: 119 | R19: Aparecido Arantes | S19: 141 | T19: Gladson Souza | U19: 163 | V19: Anderson Oliveira | W19: 173 | X19: =W5-W19 -> 151 | Y19: =W9-W19 -> 92 | Z19: =W18-W19 -> 7 | AA19: Anderson Oliveira | AB19: 173 | AC19: =AB5-AB19 -> 191 | AD19: =AB$9-AB19 -> 137 | AE19: =AB18-AB19 -> 7 | AF19: Anderson Oliveira | AG19: 173 | AH19: 224 | AI19: =AG9-AG19 -> 171 | AJ19: =AG18-AG19 -> 7
A20: X | B20: Joanes Gouvea | C20: 16 | D20: Gladson Souza | E20: 20 | F20: Ezequiel Netto | G20: 35 | H20: Gladson Souza | I20: 45 | J20: Vitor Diniz | K20: 53 | L20: Joanes Gouvea | M20: 74 | N20: Gladson Souza | O20: 94 | P20: Aparecido Arantes | Q20: 115 | R20: Gabriel Gontijo | S20: 137 | T20: Leodegario Junior | U20: 156 | V20: Gabriel Gontijo | W20: 166 | X20: =W5-W20 -> 158 | Y20: =W9-W20 -> 99 | Z20: =W19-W20 -> 7 | AA20: Gabriel Gontijo | AB20: 166 | AC20: =AB5-AB20 -> 198 | AD20: =AB$9-AB20 -> 144 | AE20: =AB19-AB20 -> 7 | AF20: Gabriel Gontijo | AG20: 166 | AH20: 231 | AI20: =AG9-AG20 -> 178 | AJ20: =AG19-AG20 -> 7
B21: Leandro Leite | C21: 17 | D21: Wilson Cristofani | E21: 19 | F21: Gladson Souza | G21: 35 | H21: Gabriel Gontijo | I21: 44 | J21: Leonardo Mattioda | K21: 52 | L21: Vitor Diniz | M21: 70 | N21: Leodegario Junior | O21: 92 | P21: Gabriel Gontijo | Q21: 114 | R21: Matheus Dias | S21: 128 | T21: Matheus Dias | U21: 128 | V21: Rodrigo Guimaraes | W21: 132 | X21: =W5-W21 -> 192 | Y21: =W9-W21 -> 133 | Z21: =W20-W21 -> 34 | AA21: Danilo Soares | AB21: 149 | AC21: =AB5-AB21 -> 215 | AD21: =AB$9-AB21 -> 161 | AE21: =AB20-AB21 -> 17 | AF21: Danilo Soares | AG21: 149 | AH21: 248 | AI21: =AG9-AG21 -> 195 | AJ21: =AG20-AG21 -> 17
B22: Leodegario Junior | C22: 18 | D22: Aparecido Arantes | E22: 0 | F22: Arthur Santiago | G22: 34 | H22: Wilson Cristofani | I22: 42 | J22: Rodrigo Guimaraes | K22: 50 | L22: Leodegario Junior | M22: 70 | N22: Gerson Junior | O22: 81 | P22: Danilo Soares | Q22: 101 | R22: Danilo Soares | S22: 101 | T22: Danilo Soares | U22: 123 | V22: Matheus Dias | W22: 128 | X22: =W5-W22 -> 196 | Y22: =W9-W22 -> 137 | Z22: =W21-W22 -> 4 | AA22: Rodrigo Guimaraes | AB22: 132 | AC22: =AB5-AB22 -> 232 | AD22: =AB$9-AB22 -> 178 | AE22: =AB21-AB22 -> 17 | AF22: Rodrigo Guimaraes | AG22: 132 | AH22: 265 | AI22: =AG9-AG22 -> 212 | AJ22: =AG21-AG22 -> 17
B23: Leonardo Mattioda | C23: 19 | D23: Arthur Santiago | E23: 0 | F23: Aparecido Arantes | G23: 31 | H23: Joanes Gouvea | I23: 41 | J23: Gladson Souza | K23: 45 | L23: Gladson Souza | M23: 69 | N23: Danilo Soares | O23: 78 | P23: Rodrigo Guimaraes | Q23: 87 | R23: Rodrigo Guimaraes | S23: 87 | T23: Rodrigo Guimaraes | U23: 111 | V23: Danilo Soares | W23: 123 | X23: =W5-W23 -> 201 | Y23: =W9-W23 -> 142 | Z23: =W22-W23 -> 5 | AA23: Matheus Dias | AB23: 128 | AC23: =AB5-AB23 -> 236 | AD23: =AB$9-AB23 -> 182 | AE23: =AB22-AB23 -> 4 | AF23: Matheus Dias | AG23: 128 | AH23: 269 | AI23: =AG9-AG23 -> 216 | AJ23: =AG22-AG23 -> 4
B24: Luciano Brandão | C24: 20 | D24: Danilo Soares | E24: 0 | F24: Matheus Dias | G24: 28 | H24: Ezequiel Netto | I24: 40 | J24: Leodegario Junior | K24: 44 | L24: Rodrigo Guimaraes | M24: 62 | N24: Leandro Leite | O24: 77 | P24: Gerson Junior | Q24: 81 | R24: Gerson Junior | S24: 81 | T24: Ezequiel Netto | U24: 97 | V24: Ezequiel Netto | W24: 97 | X24: =W5-W24 -> 227 | Y24: =W9-W24 -> 168 | Z24: =W23-W24 -> 26 | AA24: Wilson Cristofani | AB24: 108 | AC24: =AB5-AB24 -> 256 | AD24: =AB$9-AB24 -> 202 | AE24: =AB23-AB24 -> 20 | AF24: Wilson Cristofani | AG24: 108 | AH24: 289 | AI24: =AG9-AG24 -> 236 | AJ24: =AG23-AG24 -> 20
A25: X | B25: Lúcio Chequer | C25: 21 | D25: Felipe Franca | E25: 0 | F25: Rodrigo Guimaraes | G25: 26 | H25: Leodegario Junior | I25: 39 | J25: Wilson Cristofani | K25: 42 | L25: Ezequiel Netto | M25: 55 | N25: Rodrigo Guimaraes | O25: 62 | P25: Leandro Leite | Q25: 77 | R25: Leandro Leite | S25: 77 | T25: Gerson Junior | U25: 81 | V25: Gerson Junior | W25: 81 | X25: =W5-W25 -> 243 | Y25: =W9-W25 -> 184 | Z25: =W24-W25 -> 16 | AA25: Ezequiel Netto | AB25: 97 | AC25: =AB5-AB25 -> 267 | AD25: =AB$9-AB25 -> 213 | AE25: =AB24-AB25 -> 11 | AF25: Ezequiel Netto | AG25: 97 | AH25: 300 | AI25: =AG9-AG25 -> 247 | AJ25: =AG24-AG25 -> 11
B26: Matheus Dias | C26: 22 | D26: Gerson Junior | E26: 0 | F26: Felipe Franca | G26: 22 | H26: Felipe Franca | I26: 38 | J26: Ezequiel Netto | K26: 40 | L26: Danilo Soares | M26: 55 | N26: Ezequiel Netto | O26: 55 | P26: Ezequiel Netto | Q26: 77 | R26: Ezequiel Netto | S26: 77 | T26: Leandro Leite | U26: 77 | V26: Wilson Cristofani | W26: 77 | X26: =W5-W26 -> 247 | Y26: =W9-W26 -> 188 | Z26: =W25-W26 -> 4 | AA26: Gerson Junior | AB26: 81 | AC26: =AB5-AB26 -> 283 | AD26: =AB$9-AB26 -> 229 | AE26: =AB25-AB26 -> 16 | AF26: Gerson Junior | AG26: 81 | AH26: 316 | AI26: =AG9-AG26 -> 263 | AJ26: =AG25-AG26 -> 16
B27: Rodrigo Guimaraes | C27: 23 | D27: Gladystone Reis | E27: 0 | F27: Danilo Soares | G27: 18 | H27: Danilo Soares | I27: 38 | J27: Felipe Franca | K27: 38 | L27: Wilson Cristofani | M27: 42 | N27: Wilson Cristofani | O27: 42 | P27: Wilson Cristofani | Q27: 42 | R27: Wilson Cristofani | S27: 42 | T27: Wilson Cristofani | U27: 42 | V27: Leandro Leite | W27: 77 | X27: =W5-W27 -> 247 | Y27: =W9-W27 -> 188 | Z27: =W26-W27 -> 0 | AA27: Leandro Leite | AB27: 77 | AC27: =AB5-AB27 -> 287 | AD27: =AB$9-AB27 -> 233 | AE27: =AB26-AB27 -> 4 | AF27: Leandro Leite | AG27: 77 | AH27: 320 | AI27: =AG9-AG27 -> 267 | AJ27: =AG26-AG27 -> 4
B28: Thiago Xavier | C28: 24 | D28: Leodegario Junior | E28: 0 | F28: Gladystone Reis | G28: 17 | H28: Gladystone Reis | I28: 35 | J28: Danilo Soares | K28: 38 | L28: Felipe Franca | M28: 38 | N28: Felipe Franca | O28: 38 | P28: Felipe Franca | Q28: 38 | R28: Felipe Franca | S28: 38 | T28: Felipe Franca | U28: 38 | V28: Felipe Franca | W28: 38 | X28: =W5-W28 -> 286 | Y28: =W9-W28 -> 227 | Z28: =W27-W28 -> 39 | AA28: Felipe Franca | AB28: 38 | AC28: =AB5-AB28 -> 326 | AD28: =AB$9-AB28 -> 272 | AE28: =AB27-AB28 -> 39 | AF28: Felipe Franca | AG28: 38 | AH28: 359 | AI28: =AG9-AG28 -> 306 | AJ28: =AG27-AG28 -> 39
B29: Vitor Diniz | C29: 25 | D29: Matheus Dias | E29: 0 | F29: Mathias Almeida | G29: 16 | H29: Rodrigo Guimaraes | I29: 26 | J29: Gladystone Reis | K29: 35 | L29: Gladystone Reis | M29: 35 | N29: Gladystone Reis | O29: 35 | P29: Gladystone Reis | Q29: 35 | R29: Gladystone Reis | S29: 35 | T29: Gladystone Reis | U29: 35 | V29: Gladystone Reis | W29: 35 | X29: =W5-W29 -> 289 | Y29: =W9-W29 -> 230 | Z29: =W28-W29 -> 3 | AA29: Gladystone Reis | AB29: 35 | AC29: =AB5-AB29 -> 329 | AD29: =AB$9-AB29 -> 275 | AE29: =AB28-AB29 -> 3 | AF29: Gladystone Reis | AG29: 35 | AH29: 362 | AI29: =AG9-AG29 -> 309 | AJ29: =AG28-AG29 -> 3
B30: Wilson Cristofani | C30: 26 | D30: Thiago Xavier | E30: 0 | F30: Leodegario Junior | G30: 12 | H30: Mathias Almeida | I30: 0 | J30: André Triginelli | K30: 22 | L30: André Triginelli | M30: 22 | N30: André Triginelli | O30: 22 | P30: André Triginelli | Q30: 22 | R30: André Triginelli | S30: 22 | T30: André Triginelli | U30: 22 | V30: André Triginelli | W30: 22 | X30: =W5-W30 -> 302 | Y30: =W9-W30 -> 243 | Z30: =W29-W30 -> 13 | AA30: André Triginelli | AB30: 22 | AC30: =AB5-AB30 -> 342 | AD30: =AB$9-AB30 -> 288 | AE30: =AB29-AB30 -> 13 | AF30: André Triginelli | AG30: 22 | AH30: 375 | AI30: =AG9-AG30 -> 322 | AJ30: =AG29-AG30 -> 13
B31: André Triginelli | C31: 27 | F31: Thiago Xavier | G31: 0 | H31: Thiago Xavier | I31: 0 | J31: Thiago Xavier | K31: 0 | L31: Thiago Xavier | M31: 0 | N31: Thiago Xavier | O31: 0 | P31: Thiago Xavier | Q31: 0 | R31: Thiago Xavier | S31: 0 | T31: Thiago Xavier | U31: 0 | V31: Thiago Xavier | W31: 0 | X31: =W5-W31 -> 324 | Y31: =W9-W31 -> 265 | Z31: =W30-W31 -> 22 | AA31: Thiago Xavier | AB31: 0 | AC31: =AB5-AB31 -> 364 | AD31: =AB$9-AB31 -> 310 | AE31: =AB30-AB31 -> 22 | AF31: Thiago Xavier | AG31: 0 | AH31: 397 | AI31: =AG9-AG31 -> 344 | AJ31: =AG30-AG31 -> 22
B32: Gabriel Ramos | C32: 28 | H32: André Triginelli | I32: 0 | J32: Gabriel Ramos | K32: 0 | L32: Gabriel Ramos | M32: 0 | N32: Gabriel Ramos | O32: 0 | P32: Gabriel Ramos | Q32: 0 | R32: Gabriel Ramos | S32: 0 | T32: Gabriel Ramos | U32: 0 | V32: Gabriel Ramos | W32: 0 | X32: =W5-W32 -> 324 | Y32: =W9-W32 -> 265 | Z32: =W31-W32 -> 0 | AA32: Gabriel Ramos | AB32: 0 | AC32: =AB5-AB32 -> 364 | AD32: =AB$9-AB32 -> 310 | AE32: =AB31-AB32 -> 0 | AF32: Gabriel Ramos | AG32: 0 | AH32: 397 | AI32: =AG9-AG32 -> 344 | AJ32: =AG31-AG32 -> 0
C33: 29 | H33: Gabriel Ramos | I33: 0 | X33: =W5-W33 -> 324 | Y33: =W9-W33 -> 265 | Z33: =W32-W33 -> 0 | AC33: =AB5-AB33 -> 364 | AD33: =AB$9-AB33 -> 310 | AE33: =AB32-AB33 -> 0 | AH33: 397 | AI33: =AG9-AG33 -> 344 | AJ33: =AG32-AG33 -> 0
C34: 30 | X34: =W5-W34 -> 324 | Y34: =W9-W34 -> 265 | Z34: =W33-W34 -> 0 | AC34: =AB5-AB34 -> 364 | AD34: =AB$9-AB34 -> 310 | AE34: =AB33-AB34 -> 0 | AH34: 397 | AI34: =AG9-AG34 -> 344 | AJ34: =AG33-AG34 -> 0
C35: 31 | X35: =W5-W35 -> 324 | Y35: =W9-W35 -> 265 | Z35: =W34-W35 -> 0 | AC35: =AB5-AB35 -> 364 | AD35: =AB$9-AB35 -> 310 | AE35: =AB34-AB35 -> 0 | AH35: 397 | AI35: =AG9-AG35 -> 344 | AJ35: =AG34-AG35 -> 0
C36: 32 | X36: =W5-W36 -> 324 | Y36: =W9-W36 -> 265 | Z36: =W35-W36 -> 0 | AC36: =AB5-AB36 -> 364 | AD36: =AB$9-AB36 -> 310 | AE36: =AB35-AB36 -> 0 | AH36: 397 | AI36: =AG9-AG36 -> 344 | AJ36: =AG35-AG36 -> 0
C37: 33 | X37: =W5-W37 -> 324 | Y37: =W9-W37 -> 265 | Z37: =W36-W37 -> 0 | AC37: =AB5-AB37 -> 364 | AD37: =AB$9-AB37 -> 310 | AE37: =AB36-AB37 -> 0 | AH37: 397 | AI37: =AG9-AG37 -> 344 | AJ37: =AG36-AG37 -> 0
C38: 34 | X38: =W5-W38 -> 324 | Y38: =W9-W38 -> 265 | Z38: =W37-W38 -> 0 | AC38: =AB5-AB38 -> 364 | AD38: =AB$9-AB38 -> 310 | AE38: =AB37-AB38 -> 0 | AH38: 397 | AI38: =AG9-AG38 -> 344 | AJ38: =AG37-AG38 -> 0
C39: 35 | X39: =W5-W39 -> 324 | Y39: =W9-W39 -> 265 | Z39: =W38-W39 -> 0 | AC39: =AB5-AB39 -> 364 | AD39: =AB$9-AB39 -> 310 | AE39: =AB38-AB39 -> 0 | AH39: 397 | AI39: =AG9-AG39 -> 344 | AJ39: =AG38-AG39 -> 0
C40: 36 | X40: =W5-W40 -> 324 | Y40: =W9-W40 -> 265 | Z40: =W39-W40 -> 0 | AC40: =AB5-AB40 -> 364 | AD40: =AB$9-AB40 -> 310 | AE40: =AB39-AB40 -> 0 | AH40: 397 | AI40: =AG9-AG40 -> 344 | AJ40: =AG39-AG40 -> 0
C41: 37 | X41: =W5-W41 -> 324 | Y41: =W9-W41 -> 265 | Z41: =W40-W41 -> 0 | AC41: =AB5-AB41 -> 364 | AD41: =AB$9-AB41 -> 310 | AE41: =AB40-AB41 -> 0 | AH41: 397 | AI41: =AG9-AG41 -> 344 | AJ41: =AG40-AG41 -> 0
C42: 38 | X42: =W5-W42 -> 324 | Y42: =W9-W42 -> 265 | Z42: =W41-W42 -> 0 | AC42: =AB5-AB42 -> 364 | AD42: =AB$9-AB42 -> 310 | AE42: =AB41-AB42 -> 0 | AH42: 397 | AI42: =AG9-AG42 -> 344 | AJ42: =AG41-AG42 -> 0
C43: 39 | X43: =W5-W43 -> 324 | Y43: =W9-W43 -> 265 | Z43: =W42-W43 -> 0 | AC43: =AB5-AB43 -> 364 | AD43: =AB$9-AB43 -> 310 | AE43: =AB42-AB43 -> 0 | AH43: 397 | AI43: =AG9-AG43 -> 344 | AJ43: =AG42-AG43 -> 0
C44: 40 | X44: =W5-W44 -> 324 | Y44: =W9-W44 -> 265 | Z44: =W43-W44 -> 0 | AC44: =AB5-AB44 -> 364 | AD44: =AB$9-AB44 -> 310 | AE44: =AB43-AB44 -> 0 | AH44: 397 | AI44: =AG9-AG44 -> 344 | AJ44: =AG43-AG44 -> 0
C45: 41 | X45: =W5-W45 -> 324 | Y45: =W9-W45 -> 265 | Z45: =W44-W45 -> 0 | AC45: =AB5-AB45 -> 364 | AD45: =AB$9-AB45 -> 310 | AE45: =AB44-AB45 -> 0 | AH45: 397 | AI45: =AG9-AG45 -> 344 | AJ45: =AG44-AG45 -> 0
C46: 42 | X46: =W5-W46 -> 324 | Y46: =W9-W46 -> 265 | Z46: =W45-W46 -> 0 | AC46: =AB5-AB46 -> 364 | AD46: =AB$9-AB46 -> 310 | AE46: =AB45-AB46 -> 0 | AH46: 397 | AI46: =AG9-AG46 -> 344 | AJ46: =AG45-AG46 -> 0
C47: 43 | X47: =W5-W47 -> 324 | Y47: =W9-W47 -> 265 | Z47: =W46-W47 -> 0 | AC47: =AB5-AB47 -> 364 | AD47: =AB$9-AB47 -> 310 | AE47: =AB46-AB47 -> 0 | AH47: 397 | AI47: =AG9-AG47 -> 344 | AJ47: =AG46-AG47 -> 0
C48: 44 | X48: =W5-W48 -> 324 | Y48: =W9-W48 -> 265 | Z48: =W47-W48 -> 0 | AC48: =AB5-AB48 -> 364 | AD48: =AB$9-AB48 -> 310 | AE48: =AB47-AB48 -> 0 | AH48: 397 | AI48: =AG9-AG48 -> 344 | AJ48: =AG47-AG48 -> 0
C49: 45 | E49: 0 | L49: XXXXXXX | M49: 0 | N49: XXXXXXX | O49: 0 | R49: XXXXXXX | S49: 0 | T49: XXXXXXX | U49: 0 | V49: XXXXXXX | W49: 0 | X49: - | Y49: - | Z49: - | AC49: - | AD49: - | AE49: - | AF49: - | AG49: - | AH49: - | AI49: - | AJ49: -

Sheet CAMP EQUIPE EVOL
A1: 2022 | B1: OK | D1: OK | F1: OK | H1: OK | J1: OK | L1: OK | N1: OK | P1: OK | R1: OK | T1: OK | V1: OK | X1: DIF. LIDER | Y1: DIF. 3º | Z1: DIF. PRÓXIMO | AA1: OK | AC1: DIF. LIDER | AD1: DIF. 3º | AE1: DIF. PRÓXIMO
B2: ETAPA 2 | D2: ETAPA 3 | F2: ETAPA 3 | H2: ETAPA 4 | J2: ETAPA 5 | L2: ETAPA 6 | N2: ETAPA 7 | P2: ETAPA 8 | R2: ETAPA 9 | T2: ETAPA 10 | V2: ETAPA 11 | AA2: ETAPA 12
A4: EQUIPES | B4: EQUIPES | C4: Pontuação Geral | D4: EQUIPES | E4: Pontuação Geral | F4: EQUIPES | G4: Pontuação Geral | H4: EQUIPES | I4: Pontuação Geral | J4: EQUIPES | K4: Pontuação Geral | L4: EQUIPES | M4: Pontuação Geral | N4: Posição | O4: Pontos | P4: Posição | Q4: Pontos | R4: Posição | S4: Pontos | T4: Posição | U4: Pontos | V4: Posição | W4: Pontos | AA4: Posição | AB4: Pontos
A5: 1º | B5: Inovesa | C5: 68 | D5: RBC Racing | E5: 141 | F5: RBC Racing | G5: 142 | H5: RBC Racing | I5: 144 | J5: RBC Racing | K5: 210 | L5: RBC Racing | M5: 281 | N5: RBC Racing | O5: 345 | P5: RBC Racing | Q5: 417 | R5: RBC Racing | S5: 496 | T5: RBC Racing | U5: 569 | V5: RBC Racing | W5: 643 | X5: - | Y5: - | Z5: - | AA5: RBC Racing | AB5: 710 | AC5: - | AD5: - | AE5: -
B6: Luciano Brandão | C6: 45 | D6: Lúcio Chequer | E6: 78 | F6: Lúcio Chequer | G6: 79 | H6: Lúcio Chequer | I6: 46 | J6: Lúcio Chequer | K6: 81 | L6: Lúcio Chequer | M6: 114 | N6: Lúcio Chequer | O6: 145 | P6: Lúcio Chequer | Q6: 176 | R6: Lúcio Chequer | S6: 209 | T6: Lúcio Chequer | U6: 249 | V6: Lúcio Chequer | W6: 278 | X6: - | Y6: - | Z6: - | AA6: Lúcio Chequer | AB6: 304 | AC6: - | AD6: - | AE6: -
B7: Aparecido Arantes | C7: 0 | D7: Arthur Santiago | E7: 34 | F7: Arthur Santiago | G7: 34 | H7: Arthur Santiago | I7: 65 | J7: Arthur Santiago | K7: 96 | L7: Arthur Santiago | M7: 96 | N7: Arthur Santiago | O7: 96 | P7: Arthur Santiago | Q7: 96 | R7: Arthur Santiago | S7: 96 | T7: Arthur Santiago | U7: 96 | V7: Arthur Santiago | W7: 96 | X7: - | Y7: - | Z7: - | AA7: Arthur Santiago | AB7: 96 | AC7: - | AD7: - | AE7: -
B8: Leonardo Mattioda | C8: 23 | D8: Joanes Gouvea | E8: 29 | F8: Joanes Gouvea | G8: 29 | H8: Joanes Gouvea | I8: 33 | J8: Joanes Gouvea | K8: 33 | L8: Joanes Gouvea | M8: 71 | N8: Joanes Gouvea | O8: 104 | P8: Joanes Gouvea | Q8: 145 | R8: Joanes Gouvea | S8: 191 | T8: Joanes Gouvea | U8: 224 | V8: Joanes Gouvea | W8: 269 | X8: - | Y8: - | Z8: - | AA8: Joanes Gouvea | AB8: 310 | AC8: - | AD8: - | AE8: -
B9: XXXXXXXX | D9: XXXXXXX | F9: XXXXXXX | H9: XXXXXXX | J9: XXXXXXX | L9: XXXXXXX | N9: XXXXXXX | P9: XXXXXXX | R9: XXXXXXX | T9: XXXXXXX | V9: XXXXXXX | X9: - | Y9: - | Z9: - | AA9: XXXXXXX | AC9: - | AD9: - | AE9: -
B10: XXXXXXXX | D10: XXXXXXX | E10: 0 | F10: XXXXXXX | G10: 0 | H10: XXXXXXX | I10: 0 | J10: XXXXXXX | K10: 0 | L10: XXXXXXX | M10: 0 | N10: XXXXXXX | O10: 0 | P10: XXXXXXX | Q10: 0 | R10: XXXXXXX | S10: 0 | T10: XXXXXXX | U10: 0 | V10: XXXXXXX | W10: 0 | X10: - | Y10: - | Z10: - | AA10: XXXXXXX | AB10: 0 | AC10: - | AD10: - | AE10: -
A11: 2º | B11: RBC Racing | C11: 62 | D11: Inovesa | E11: 128 | F11: Inovesa | G11: 139 | H11: Inovesa | I11: 139 | J11: Inovesa | K11: 202 | L11: Inovesa | M11: 268 | N11: Inovesa | O11: 328 | P11: Inovesa | Q11: 389 | R11: Inovesa | S11: 448 | T11: Mercado Mineiro | U11: 515 | V11: Inovesa | W11: 573 | X11: =W5-W11 -> 70 | Y11: - | Z11: =W5-W11 -> 70 | AA11: Inovesa | AB11: 639 | AC11: =AB5-AB11 -> 71 | AD11: - | AE11: =AB5-AB11 -> 71
B12: Lúcio Chequer | C12: 33 | D12: Luciano Brandão | E12: 45 | F12: Luciano Brandão | G12: 76 | H12: Luciano Brandão | I12: 76 | J12: Luciano Brandão | K12: 116 | L12: Luciano Brandão | M12: 151 | N12: Luciano Brandão | O12: 151 | P12: Luciano Brandão | Q12: 179 | R12: Luciano Brandão | S12: 179 | T12: Anderson Teixeira | U12: 301 | V12: Luciano Brandão | W12: 243 | X12: - | Y12: - | Z12: - | AA12: Luciano Brandão | AB12: 280 | AC12: - | AD12: - | AE12: -
B13: Arthur Santiago | C13: 0 | D13: Aparecido Arantes | E13: 31 | F13: Aparecido Arantes | G13: 40 | H13: Aparecido Arantes | I13: 40 | J13: Aparecido Arantes | K13: 40 | L13: Aparecido Arantes | M13: 40 | N13: Aparecido Arantes | O13: 71 | P13: Aparecido Arantes | Q13: 71 | R13: Aparecido Arantes | S13: 99 | T13: Gabriel Gontijo | U13: 81 | V13: Aparecido Arantes | W13: 99 | X13: - | Y13: - | Z13: - | AA13: Aparecido Arantes | AB13: 99 | AC13: - | AD13: - | AE13: -
B14: Joanes Gouvea | C14: 29 | D14: Leonardo Mattioda | E14: 52 | F14: Leonardo Mattioda | G14: 23 | H14: Leonardo Mattioda | I14: 23 | J14: Leonardo Mattioda | K14: 46 | L14: Leonardo Mattioda | M14: 77 | N14: Leonardo Mattioda | O14: 106 | P14: Leonardo Mattioda | Q14: 139 | R14: Leonardo Mattioda | S14: 170 | T14: Emerson Guimarães | U14: 133 | V14: Leonardo Mattioda | W14: 231 | X14: - | Y14: - | Z14: - | AA14: Leonardo Mattioda | AB14: 260 | AC14: - | AD14: - | AE14: -
B15: XXXXXXX | D15: XXXXXXXX | F15: XXXXXXXX | H15: XXXXXXXX | J15: XXXXXXXX | L15: XXXXXXXX | N15: XXXXXXXX | P15: XXXXXXXX | R15: XXXXXXXX | T15: XXX | V15: XXXXXXXX | X15: - | Y15: - | Z15: - | AA15: XXXXXXXX | AC15: - | AD15: - | AE15: -
B16: XXXXXXX | C16: 0 | D16: XXXXXXXX | F16: XXXXXXXX | H16: XXXXXXXX | J16: XXXXXXXX | L16: XXXXXXXX | N16: XXXXXXXX | P16: XXXXXXXX | R16: XXXXXXXX | T16: XXX | U16: 0 | V16: XXXXXXXX | X16: - | Y16: - | Z16: - | AA16: XXXXXXXX | AC16: - | AD16: - | AE16: -
A17: 3º | B17: Multiseg | C17: 60 | D17: Rng | E17: 116 | F17: Multiseg | G17: 133 | H17: Mercado Mineiro | I17: 133 | J17: Mercado Mineiro | K17: 202 | L17: Mercado Mineiro | M17: 257 | N17: Mercado Mineiro | O17: 318 | P17: Mercado Mineiro | Q17: 378 | R17: Mercado Mineiro | S17: 447 | T17: Inovesa | U17: 505 | V17: Mercado Mineiro | W17: 571 | X17: =W5-W17 -> 72 | Y17: - | Z17: =W11-W17 -> 2 | AA17: Mercado Mineiro | AB17: 616 | AC17: =AB5-AB17 -> 94 | AD17: - | AE17: =AB11-AB17 -> 23
B18: Alexandre Melillo | C18: 35 | D18: Agostinho Neves | E18: 37 | F18: Alexandre Melillo | G18: 80 | H18: Anderson Teixeira | I18: 82 | J18: Anderson Teixeira | K18: 122 | L18: Anderson Teixeira | M18: 150 | N18: Anderson Teixeira | O18: 187 | P18: Anderson Teixeira | Q18: 224 | R18: Anderson Teixeira | S18: 264 | T18: Luciano Brandão | U18: 208 | V18: Anderson Teixeira | W18: 302 | X18: - | Y18: - | Z18: - | AA18: Anderson Teixeira | AB18: 347 | AC18: - | AD18: - | AE18: -
B19: Gladystone Reis | C19: 0 | D19: Wilson Cristofani | E19: 42 | F19: Gladystone Reis | G19: 0 | H19: Gabriel Gontijo | I19: 29 | J19: Gabriel Gontijo | K19: 29 | L19: Gabriel Gontijo | M19: 29 | N19: Gabriel Gontijo | O19: 29 | P19: Gabriel Gontijo | Q19: 52 | R19: Gabriel Gontijo | S19: 81 | T19: Aparecido Arantes | U19: 99 | V19: Gabriel Gontijo | W19: 101 | X19: - | Y19: - | Z19: - | AA19: Gabriel Gontijo | AB19: 101 | AC19: - | AD19: - | AE19: -
B20: Vitor Diniz | C20: 25 | D20: Gerson Junior | E20: 37 | F20: Vitor Diniz | G20: 53 | H20: Emerson Guimarães | I20: 22 | J20: Emerson Guimarães | K20: 51 | L20: Emerson Guimarães | M20: 78 | N20: Emerson Guimarães | O20: 102 | P20: Emerson Guimarães | Q20: 102 | R20: Emerson Guimarães | S20: 102 | T20: Leonardo Mattioda | U20: 198 | V20: Emerson Guimarães | W20: 168 | X20: - | Y20: - | Z20: - | AA20: Emerson Guimarães | AB20: 168 | AC20: - | AD20: - | AE20: -
B21: X | D21: XXXXX | F21: X | H21: XXX | J21: XXX | L21: XXX | N21: XXX | P21: XXX | R21: XXX | T21: XXXXXXXX | V21: XXX | X21: - | Y21: - | Z21: - | AA21: XXX | AC21: - | AD21: - | AE21: -
B22: X | C22: 0 | D22: XXXXX | E22: 0 | F22: X | G22: 0 | H22: XXX | I22: 0 | J22: XXX | K22: 0 | L22: XXX | M22: 0 | N22: XXX | O22: 0 | P22: XXX | Q22: 0 | R22: XXX | S22: 0 | T22: XXXXXXXX | V22: XXX | W22: 0 | X22: - | Y22: - | Z22: - | AA22: XXX | AB22: 0 | AC22: - | AD22: - | AE22: -
A23: 4º | B23: Rng | C23: 56 | D23: Mercado Mineiro | E23: 110 | F23: Rng | G23: 118 | H23: Multiseg | I23: 133 | J23: Multiseg | K23: 187 | L23: Grupo Santiago | M23: 252 | N23: Grupo Santiago | O23: 314 | P23: Grupo Santiago | Q23: 363 | R23: Grupo Santiago | S23: 422 | T23: Grupo Santiago | U23: 491 | V23: Grupo Santiago | W23: 557 | X23: =W5-W23 -> 86 | Y23: =W$17-W23 -> 14 | Z23: =W17-W23 -> 14 | AA23: Grupo Santiago | AB23: 603 | AC23: =AB5-AB23 -> 107 | AD23: =AB$17-AB23 -> 13 | AE23: =AB17-AB23 -> 13
B24: Agostinho Neves | C24: 37 | D24: Anderson Teixeira | E24: 28 | F24: Agostinho Neves | G24: 35 | H24: Alexandre Melillo | I24: 80 | J24: Alexandre Melillo | K24: 117 | L24: Fernando Mota | M24: 167 | N24: Fernando Mota | O24: 202 | P24: Fernando Mota | Q24: 227 | R24: Fernando Mota | S24: 264 | T24: Fernando Mota | U24: 309 | V24: Fernando Mota | W24: 349 | X24: - | Y24: - | Z24: - | AA24: Fernando Mota | AB24: 349 | AC24: - | AD24: - | AE24: -
B25: Wilson Cristofani | C25: 19 | D25: Gabriel Gontijo | E25: 20 | F25: Wilson Cristofani | G25: 23 | H25: Gladystone Reis | I25: 0 | J25: Gladystone Reis | K25: 0 | L25: Leodegario Junior | M25: 44 | N25: Leodegario Junior | O25: 71 | P25: Leodegario Junior | Q25: 95 | R25: Leodegario Junior | S25: 95 | T25: Leodegario Junior | U25: 119 | V25: Leodegario Junior | W25: 119 | X25: - | Y25: - | Z25: - | AA25: Leodegario Junior | AB25: 145 | AC25: - | AD25: - | AE25: -
B26: Gerson Junior | C26: 0 | D26: Emerson Guimarães | E26: 62 | F26: Gerson Junior | G26: 60 | H26: Vitor Diniz | I26: 53 | J26: Vitor Diniz | K26: 70 | L26: Danilo Soares | M26: 41 | N26: Danilo Soares | O26: 41 | P26: Danilo Soares | Q26: 41 | R26: Danilo Soares | S26: 63 | T26: Danilo Soares | U26: 63 | V26: Danilo Soares | W26: 89 | X26: - | Y26: - | Z26: - | AA26: Danilo Soares | AB26: 109 | AC26: - | AD26: - | AE26: -
B27: XXXXX | D27: XXX | F27: XXXXX | H27: X | J27: X | L27: XX | N27: XX | P27: XX | R27: XX | T27: XX | V27: XX | X27: - | Y27: - | Z27: - | AA27: XX | AC27: - | AD27: - | AE27: -
B28: XXXXX | C28: 0 | D28: XXX | E28: 0 | F28: XXXXX | G28: 0 | H28: X | I28: 0 | J28: X | K28: 0 | L28: XX | N28: XX | P28: XX | R28: XX | T28: XX | V28: XX | X28: - | Y28: - | Z28: - | AA28: XX | AC28: - | AD28: - | AE28: -
A29: 5º | B29: Mercado Mineiro | C29: 55 | D29: ComOferta | E29: 104 | F29: Mercado Mineiro | G29: 114 | H29: Rng | I29: 119 | J29: Grupo Santiago | K29: 184 | L29: Multiseg | M29: 237 | N29: Multiseg | O29: 286 | P29: Multiseg | Q29: 358 | R29: Multiseg | S29: 416 | T29: Multiseg | U29: 470 | V29: Multiseg | W29: 535 | X29: =W5-W29 -> 108 | Y29: =W$17-W29 -> 36 | Z29: =W23-W29 -> 22 | AA29: Multiseg | AB29: 598 | AC29: =AB5-AB29 -> 112 | AD29: =AB$17-AB29 -> 18 | AE29: =AB23-AB29 -> 5
B30: Anderson Teixeira | C30: 28 | D30: Anderson Oliveira | E30: 56 | F30: Anderson Teixeira | G30: 65 | H30: Agostinho Neves | I30: 36 | J30: Fernando Mota | K30: 122 | L30: Alexandre Melillo | M30: 141 | N30: Alexandre Melillo | O30: 170 | P30: Alexandre Melillo | Q30: 215 | R30: Alexandre Melillo | S30: 250 | T30: Alexandre Melillo | U30: 276 | V30: Alexandre Melillo | W30: 313 | X30: - | Y30: - | Z30: - | AA30: Alexandre Melillo | AB30: 348 | AC30: - | AD30: - | AE30: -
B31: Gabriel Gontijo | C31: 0 | D31: Matheus Dias | E31: 28 | F31: Gabriel Gontijo | G31: 0 | H31: Wilson Cristofani | I31: 23 | J31: Leodegario Junior | K31: 44 | L31: Gladystone Reis | M31: 0 | N31: Gladystone Reis | O31: 0 | P31: Gladystone Reis | Q31: 0 | R31: Gladystone Reis | S31: 0 | T31: Gladystone Reis | U31: 0 | V31: Gladystone Reis | W31: 0 | X31: - | Y31: - | Z31: - | AA31: Gladystone Reis | AB31: 0 | AC31: - | AD31: - | AE31: -
B32: Emerson Guimarães | C32: 27 | D32: Gladson Souza | E32: 20 | F32: Emerson Guimarães | G32: 49 | H32: Gerson Junior | I32: 60 | J32: Danilo Soares | K32: 18 | L32: Vitor Diniz | M32: 96 | N32: Vitor Diniz | O32: 116 | P32: Vitor Diniz | Q32: 143 | R32: Vitor Diniz | S32: 166 | T32: Vitor Diniz | U32: 194 | V32: Vitor Diniz | W32: 222 | X32: - | Y32: - | Z32: - | AA32: Vitor Diniz | AB32: 250 | AC32: - | AD32: - | AE32: -
B33: XXX | D33: XXXXXX | F33: XXX | H33: XXXXX | J33: XX | L33: X | N33: X | P33: X | R33: X | T33: X | V33: X | X33: - | Y33: - | Z33: - | AA33: X | AC33: - | AD33: - | AE33: -
B34: XXX | C34: 0 | D34: XXXXXX | E34: 0 | F34: XXX | G34: 0 | H34: XXXXX | I34: 0 | J34: XX | L34: X | M34: 0 | N34: X | O34: 0 | P34: X | Q34: 0 | R34: X | S34: 0 | T34: X | U34: 0 | V34: X | W34: 0 | X34: - | Y34: - | Z34: - | AA34: X | AB34: 0 | AC34: - | AD34: - | AE34: -
A35: 6º | B35: ComOferta | C35: 51 | D35: Multiseg | E35: 101 | F35: ComOferta | G35: 107 | H35: Grupo Santiago | I35: 113 | J35: Rng | K35: 175 | L35: Rng | M35: 231 | N35: Rng | O35: 271 | P35: ComOferta | Q35: 321 | R35: ComOferta | S35: 370 | T35: ComOferta | U35: 396 | V35: ComOferta | W35: 423 | X35: =W5-W35 -> 220 | Y35: =W$17-W35 -> 148 | Z35: =W29-W35 -> 112 | AA35: ComOferta | AB35: 454 | AC35: =AB5-AB35 -> 256 | AD35: =AB$17-AB35 -> 162 | AE35: =AB29-AB35 -> 144
B36: Anderson Oliveira | C36: 31 | D36: Alexandre Melillo | E36: 35 | F36: Anderson Oliveira | G36: 54 | H36: Fernando Mota | I36: 77 | J36: Agostinho Neves | K36: 73 | L36: Agostinho Neves | M36: 108 | N36: Agostinho Neves | O36: 148 | P36: Anderson Oliveira | Q36: 148 | R36: Anderson Oliveira | S36: 173 | T36: Anderson Oliveira | U36: 173 | V36: Anderson Oliveira | W36: 173 | X36: - | Y36: - | Z36: - | AA36: Anderson Oliveira | AB36: 173 | AC36: - | AD36: - | AE36: -
B37: Matheus Dias | C37: 0 | D37: Gladystone Reis | E37: 17 | F37: Matheus Dias | G37: 28 | H37: Leodegario Junior | I37: 18 | J37: Wilson Cristofani | K37: 42 | L37: Wilson Cristofani | M37: 42 | N37: Wilson Cristofani | O37: 42 | P37: Matheus Dias | Q37: 81 | R37: Matheus Dias | S37: 81 | T37: Matheus Dias | U37: 81 | V37: Matheus Dias | W37: 81 | X37: - | Y37: - | Z37: - | AA37: Matheus Dias | AB37: 81 | AC37: - | AD37: - | AE37: -
B38: Gladson Souza | C38: 20 | D38: Vitor Diniz | E38: 49 | F38: Gladson Souza | G38: 25 | H38: Danilo Soares | I38: 18 | J38: Gerson Junior | K38: 60 | L38: Gerson Junior | M38: 81 | N38: Gerson Junior | O38: 81 | P38: Gladson Souza | Q38: 92 | R38: Gladson Souza | S38: 116 | T38: Gladson Souza | U38: 142 | V38: Gladson Souza | W38: 169 | X38: - | Y38: - | Z38: - | AA38: Gladson Souza | AB38: 200 | AC38: - | AD38: - | AE38: -
B39: XXXXXX | D39: X | F39: XXXXXX | H39: XX | J39: XXXXX | L39: XXXXX | N39: XXXXX | P39: XXXXXX | R39: XXXXXX | T39: XXXXXX | V39: XXXXXX | X39: - | Y39: - | Z39: - | AA39: XXXXXX | AC39: - | AD39: - | AE39: -
B40: XXXXXX | C40: 0 | D40: X | E40: 0 | F40: XXXXXX | G40: 0 | H40: XX | J40: XXXXX | K40: 0 | L40: XXXXX | M40: 0 | N40: XXXXX | O40: 0 | P40: XXXXXX | Q40: 0 | R40: XXXXXX | S40: 0 | T40: XXXXXX | U40: 0 | V40: XXXXXX | W40: 0 | X40: - | Y40: - | Z40: - | AA40: XXXXXX | AB40: 0 | AC40: - | AD40: - | AE40: -
A41: 7º | B41: Os Piratas | C41: 44 | D41: Grupo Santiago | E41: 98 | F41: Grupo Santiago | G41: 104 | H41: ComOferta | I41: 107 | J41: ComOferta | K41: 161 | L41: ComOferta | M41: 213 | N41: ComOferta | O41: 264 | P41: Rng | Q41: 304 | R41: Rng | S41: 331 | T41: Rng | U41: 366 | V41: Rng | W41: 397 | X41: =W5-W41 -> 246 | Y41: =W$17-W41 -> 174 | Z41: =W35-W41 -> 26 | AA41: Rng | AB41: 397 | AC41: =AB5-AB41 -> 313 | AD41: =AB$17-AB41 -> 219 | AE41: =AB35-AB41 -> 57
B42: Felipe Franca | C42: 0 | D42: Fernando Mota | E42: 80 | F42: Fernando Mota | G42: 40 | H42: Anderson Oliveira | I42: 54 | J42: Anderson Oliveira | K42: 82 | L42: Anderson Oliveira | M42: 82 | N42: Anderson Oliveira | O42: 113 | P42: Agostinho Neves | Q42: 181 | R42: Agostinho Neves | S42: 208 | T42: Agostinho Neves | U42: 208 | V42: Agostinho Neves | W42: 208 | X42: - | Y42: - | Z42: - | AA42: Agostinho Neves | AB42: 208 | AC42: - | AD42: - | AE42: -
B43: Leandro Leite | C43: 23 | D43: Leodegario Junior | E43: 0 | F43: Leodegario Junior | G43: 26 | H43: Matheus Dias | I43: 28 | J43: Matheus Dias | K43: 54 | L43: Matheus Dias | M43: 81 | N43: Matheus Dias | O43: 81 | P43: Wilson Cristofani | Q43: 42 | R43: Wilson Cristofani | S43: 42 | T43: Wilson Cristofani | U43: 77 | V43: Wilson Cristofani | W43: 108 | X43: - | Y43: - | Z43: - | AA43: Wilson Cristofani | AB43: 108 | AC43: - | AD43: - | AE43: -
B44: Ezequiel Netto | C44: 21 | D44: Danilo Soares | E44: 18 | F44: Danilo Soares | G44: 38 | H44: Gladson Souza | I44: 25 | J44: Gladson Souza | K44: 25 | L44: Gladson Souza | M44: 50 | N44: Gladson Souza | O44: 70 | P44: Gerson Junior | Q44: 81 | R44: Gerson Junior | S44: 81 | T44: Gerson Junior | U44: 81 | V44: Gerson Junior | W44: 81 | X44: - | Y44: - | Z44: - | AA44: Gerson Junior | AB44: 81 | AC44: - | AD44: - | AE44: -
B45: XXXX | D45: XX | F45: XX | H45: XXXXXX | J45: XXXXXX | L45: XXXXXX | N45: XXXXXX | P45: XXXXX | R45: XXXXX | T45: XXXXX | V45: XXXXX | X45: - | Y45: - | Z45: - | AA45: XXXXX | AC45: - | AD45: - | AE45: -
B46: XXXX | C46: 0 | D46: XX | F46: XX | H46: XXXXXX | I46: 0 | J46: XXXXXX | K46: 0 | L46: XXXXXX | M46: 0 | N46: XXXXXX | O46: 0 | P46: XXXXX | Q46: 0 | R46: XXXXX | S46: 0 | T46: XXXXX | U46: 0 | V46: XXXXX | W46: 0 | X46: - | Y46: - | Z46: - | AA46: XXXXX | AB46: 0 | AC46: - | AD46: - | AE46: -
A47: 8º | B47: Grupo Santiago | C47: 40 | D47: Os Piratas | E47: 93 | F47: Os Piratas | G47: 96 | H47: Os Piratas | I47: 96 | J47: Os Piratas | K47: 139 | L47: Os Piratas | M47: 139 | N47: Os Piratas | O47: 161 | P47: Os Piratas | Q47: 161 | R47: Os Piratas | S47: 181 | T47: Os Piratas | U47: 181 | V47: Os Piratas | W47: 181 | X47: =W5-W47 -> 462 | Y47: =W$17-W47 -> 390 | Z47: =W41-W47 -> 216 | AA47: Os Piratas | AB47: 181 | AC47: =AB5-AB47 -> 529 | AD47: =AB$17-AB47 -> 435 | AE47: =AB41-AB47 -> 216
B48: Fernando Mota | C48: 40 | D48: Felipe Franca | E48: 22 | F48: Felipe Franca | G48: 22 | H48: Felipe Franca | I48: 22 | J48: Felipe Franca | K48: 22 | L48: Felipe Franca | M48: 22 | N48: Felipe Franca | O48: 22 | P48: Felipe Franca | Q48: 22 | R48: Felipe Franca | S48: 22 | T48: Felipe Franca | U48: 22 | V48: Felipe Franca | W48: 22 | X48: - | Y48: - | Z48: - | AA48: Felipe Franca | AB48: 22 | AC48: - | AD48: - | AE48: -
B49: Leodegario Junior | C49: 0 | D49: Leandro Leite | E49: 50 | F49: Leandro Leite | G49: 55 | H49: Leandro Leite | I49: 55 | J49: Leandro Leite | K49: 77 | L49: Leandro Leite | M49: 77 | N49: Leandro Leite | O49: 77 | P49: Leandro Leite | Q49: 77 | R49: Leandro Leite | S49: 77 | T49: Leandro Leite | U49: 77 | V49: Leandro Leite | W49: 77 | X49: - | Y49: - | Z49: - | AA49: Leandro Leite | AB49: 77 | AC49: - | AD49: - | AE49: -
B50: Danilo Soares | C50: 0 | D50: Ezequiel Netto | E50: 21 | F50: Ezequiel Netto | G50: 19 | H50: Ezequiel Netto | I50: 19 | J50: Ezequiel Netto | K50: 40 | L50: Ezequiel Netto | M50: 40 | N50: Ezequiel Netto | O50: 62 | P50: Ezequiel Netto | Q50: 62 | R50: Ezequiel Netto | S50: 82 | T50: Ezequiel Netto | U50: 82 | V50: Ezequiel Netto | W50: 82 | X50: - | Y50: - | Z50: - | AA50: Ezequiel Netto | AB50: 82 | AC50: - | AD50: - | AE50: -
B51: XX | D51: XXXX | F51: Gabriel Ramos | G51: 0 | H51: Gabriel Ramos | I51: 0 | J51: Gabriel Ramos | K51: 0 | L51: Gabriel Ramos | M51: 0 | N51: Gabriel Ramos | O51: 0 | P51: Gabriel Ramos | Q51: 0 | R51: Gabriel Ramos | S51: 0 | T51: Gabriel Ramos | U51: 0 | V51: Gabriel Ramos | W51: 0 | X51: - | Y51: - | Z51: - | AA51: Gabriel Ramos | AB51: 0 | AC51: - | AD51: - | AE51: -
B52: XX | D52: XXXX | E52: 0 | F52: XXXX | G52: 0 | H52: XXXX | I52: 0 | J52: XXXX | K52: 0 | L52: XXXX | M52: 0 | N52: XXXX | O52: 0 | P52: XXXX | Q52: 0 | R52: XXXX | S52: 0 | T52: XXXX | U52: 0 | V52: XXXX | W52: 0 | X52: - | Y52: - | Z52: - | AA52: XXXX | AB52: 0 | AC52: - | AD52: - | AE52: -
A53: 9º | B53: Gui Figueiredo | C53: 26 | D53: Gui Figueiredo | E53: 26 | F53: Gui Figueiredo | G53: 26 | H53: Gui Figueiredo | I53: 72 | J53: Gui Figueiredo | K53: 84 | L53: Gui Figueiredo | M53: 84 | N53: Gui Figueiredo | O53: 109 | P53: Gui Figueiredo | Q53: 109 | R53: Gui Figueiredo | S53: 133 | T53: Gui Figueiredo | U53: 154 | V53: Gui Figueiredo | W53: 154 | X53: =W5-W53 -> 489 | Y53: =W$17-W53 -> 417 | Z53: =W47-W53 -> 27 | AA53: Gui Figueiredo | AB53: 154 | AC53: =AB5-AB53 -> 556 | AD53: =AB$17-AB53 -> 462 | AE53: =AB47-AB53 -> 27
B54: Rodrigo Guimaraes | C54: 26 | D54: Rodrigo Guimaraes | E54: 26 | F54: Rodrigo Guimaraes | G54: 26 | H54: Rodrigo Guimaraes | I54: 50 | J54: Rodrigo Guimaraes | K54: 62 | L54: Rodrigo Guimaraes | M54: 62 | N54: Rodrigo Guimaraes | O54: 87 | P54: Rodrigo Guimaraes | Q54: 87 | R54: Rodrigo Guimaraes | S54: 111 | T54: Rodrigo Guimaraes | U54: 132 | V54: Rodrigo Guimaraes | W54: 132 | X54: - | Y54: - | Z54: - | AA54: Rodrigo Guimaraes | AB54: 132 | AC54: - | AD54: - | AE54: -
B55: Thiago Xavier | C55: 0 | D55: Thiago Xavier | E55: 0 | F55: Thiago Xavier | G55: 0 | H55: Thiago Xavier | I55: 0 | J55: Thiago Xavier | K55: 0 | L55: Thiago Xavier | M55: 0 | N55: Thiago Xavier | O55: 0 | P55: Thiago Xavier | Q55: 0 | R55: Thiago Xavier | S55: 0 | T55: Thiago Xavier | U55: 0 | V55: Thiago Xavier | W55: 0 | X55: - | Y55: - | Z55: - | AA55: Thiago Xavier | AB55: 0 | AC55: - | AD55: - | AE55: -
B56: XXXXXXXXX | C56: 0 | D56: XXXXXXXXX | E56: 0 | F56: André Triginelli | G56: 0 | H56: André Triginelli | I56: 22 | J56: André Triginelli | K56: 22 | L56: André Triginelli | M56: 22 | N56: André Triginelli | O56: 22 | P56: André Triginelli | Q56: 22 | R56: André Triginelli | S56: 22 | T56: André Triginelli | U56: 22 | V56: André Triginelli | W56: 22 | X56: - | Y56: - | Z56: - | AA56: André Triginelli | AB56: 22 | AC56: - | AD56: - | AE56: -
B57: XXXXXXXXX | D57: XXXXXXXXX | F57: XXXXXXXXX | H57: XXXXXXXXX | J57: XXXXXXXXX | L57: XXXXXXXXX | N57: XXXXXXXXX | P57: XXXXXXXXX | R57: XXXXXXXXX | T57: XXXXXXXXX | V57: XXXXXXXXX | X57: - | Y57: - | Z57: - | AA57: XXXXXXXXX | AC57: - | AD57: - | AE57: -
B58: XXXXXXXXX | D58: XXXXXXXXX | F58: XXXXXXXXX | H58: XXXXXXXXX | J58: XXXXXXXXX | L58: XXXXXXXXX | N58: XXXXXXXXX | P58: XXXXXXXXX | R58: XXXXXXXXX | T58: XXXXXXXXX | V58: XXXXXXXXX | X58: - | Y58: - | Z58: - | AA58: XXXXXXXXX | AC58: - | AD58: - | AE58: -

Sheet TABELA
A1: 2022 | E1: OK | I1: OK | M1: OK | Q1: OK | U1: OK | Y1: OK | AC1: OK | AG1: OK | AK1: OK | AO1: OK | AS1: OK | AW1: OK
D2: ETAPA 2 | H2: ETAPA 3 | L2: ETAPA 1 | P2: ETAPA 4 | T2: ETAPA 5 | X2: ETAPA 6 | AB2: ETAPA 7 | AF2: ETAPA 8 | AJ2: ETAPA 9 | AN2: ETAPA 10 | AR2: ETAPA 11 | AV2: ETAPA 12
D3: SUPER | H3: LIGHT | L3: LIGHT | P3: SUPER | T3: LIGHT | X3: SUPER | AB3: SUPER | AJ3: SUPER | AN3: LIGHT | AR3: SUPER | AV3: LIGHT
B4: Nome do (a) Piloto (a) | C4: Pontuação Geral | D4: Posição | E4: Pontos | F4: Bônus | G4: Penalidade | H4: Posição | I4: Pontos | J4: Bônus | K4: Penalidade | L4: Posição | M4: Pontos | N4: Bônus | O4: Penalidade | P4: Posição | Q4: Pontos | R4: Bônus | S4: Penalidade | T4: Posição | U4: Pontos | V4: Bônus | W4: Penalidade | X4: Posição | Y4: Pontos | Z4: Bônus | AA4: Penalidade | AB4: Posição | AC4: Pontos | AD4: Bônus | AE4: Penalidade | AF4: Posição | AG4: Pontos | AH4: Bônus | AI4: Penalidade | AJ4: Posição | AK4: Pontos | AL4: Bônus | AM4: Penalidade | AN4: Posição | AO4: Pontos | AP4: Bônus | AQ4: Penalidade | AR4: Posição | AS4: Pontos | AT4: Bônus | AU4: Penalidade | AV4: Posição | AW4: Pontos | AX4: Bônus | AY4: Penalidade | AZ4: 1º LUGAR | BA4: 2º LUGAR | BB4: 3º LUGAR | BC4: 4º LUGAR | BD4: 5º LUGAR | BE4: 6º LUGAR | BF4: 7º LUGAR | BG4: 8º LUGAR | BH4: 9º LUGAR | BI4: 10º LUGAR | BJ4: 11º LUGAR | BK4: 12º LUGAR | BL4: 13º LUGAR | BM4: 14º LUGAR | BN4: 15º LUGAR | BO4: 16º LUGAR | BP4: 17º LUGAR | BQ4: 18º LUGAR | BR4: 19º LUGAR | BS4: 20º LUGAR | BT4: 21º LUGAR | BU4: 22º LUGAR | BV4: 23º LUGAR | BW4: 24º LUGAR | BX4: 25º LUGAR | BY4: 26º LUGAR | BZ4: 27º LUGAR | CA4: 28º LUGAR | CB4: 29º LUGAR | CC4: 30º LUGAR | CD4: 31º LUGAR | CE4: 32º LUGAR | CF4: 33º LUGAR | CG4: 34º LUGAR | CH4: 35º LUGAR | CI4: 36º LUGAR | CJ4: 37º LUGAR | CK4: 38º LUGAR | CL4: 39º LUGAR | CM4: 40º LUGAR | CN4: 41º LUGAR
A5: 1 | B5: Agostinho Neves | C5: 229 | D5: 3 | E5: 37 | H5: 15 | I5: 21 | L5: 4 | M5: 35 | P5: 4 | Q5: 35 | R5: 1 | T5: 5 | U5: 33 | Y5: 0 | AB5: 2 | AC5: 40 | AG5: 0 | AJ5: 9 | AK5: 27 | AO5: 0 | AR5: 0 | AS5: 0 | AU5: SIM | AW5: 0 | AZ5: 0 | BA5: 1 | BB5: 1 | BC5: 2 | BD5: 1 | BE5: 0 | BF5: 0 | BG5: 0 | BH5: 1 | BI5: 0 | BJ5: 0 | BK5: 0 | BL5: 0 | BM5: 0 | BN5: 1 | BO5: 0 | BP5: 0 | BQ5: 0 | BR5: 0 | BS5: 0 | BT5: 0 | BU5: 0 | BV5: 0 | BW5: 0 | BX5: 0 | BY5: 0 | BZ5: 0 | CA5: 0 | CB5: 0 | CC5: 0 | CD5: 0 | CE5: 0 | CF5: 0 | CG5: 0 | CH5: 0 | CI5: 0 | CJ5: 0 | CK5: 0 | CL5: 0 | CM5: 0 | CN5: 0
A6: 2 | B6: Alexandre Melillo | C6: 407 | D6: 4 | E6: 35 | H6: 22 | I6: 14 | L6: 1 | M6: 45 | P6: 8 | Q6: 28 | T6: 3 | U6: 37 | X6: 12 | Y6: 24 | AB6: 1 | AC6: 45 | AD6: 1 | AF6: 1 | AG6: 45 | AJ6: 4 | AK6: 35 | AN6: 11 | AO6: 25 | AP6: 1 | AR6: 3 | AS6: 37 | AV6: 4 | AW6: 35 | AZ6: 3 | BA6: 0 | BB6: 2 | BC6: 3 | BD6: 0 | BE6: 0 | BF6: 0 | BG6: 1 | BH6: 0 | BI6: 0 | BJ6: 1 | BK6: 1 | BL6: 0 | BM6: 0 | BN6: 0 | BO6: 0 | BP6: 0 | BQ6: 0 | BR6: 0 | BS6: 0 | BT6: 0 | BU6: 1 | BV6: 0 | BW6: 0 | BX6: 0 | BY6: 0 | BZ6: 0 | CA6: 0 | CB6: 0 | CC6: 0 | CD6: 0 | CE6: 0 | CF6: 0 | CG6: 0 | CH6: 0 | CI6: 0 | CJ6: 0 | CK6: 0 | CL6: 0 | CM6: 0 | CN6: 0
A7: 3 | B7: Anderson Oliveira | C7: 173 | D7: 6 | E7: 31 | H7: 11 | I7: 25 | L7: 7 | M7: 29 | P7: 9 | Q7: 27 | T7: 11 | U7: 25 | V7: 1 | Y7: 0 | AC7: 0 | AF7: 4 | AG7: 35 | AK7: 0 | AO7: 0 | AS7: 0 | AW7: 0 | AZ7: 0 | BA7: 0 | BB7: 0 | BC7: 1 | BD7: 0 | BE7: 1 | BF7: 1 | BG7: 0 | BH7: 1 | BI7: 0 | BJ7: 2 | BK7: 0 | BL7: 0 | BM7: 0 | BN7: 0 | BO7: 0 | BP7: 0 | BQ7: 0 | BR7: 0 | BS7: 0 | BT7: 0 | BU7: 0 | BV7: 0 | BW7: 0 | BX7: 0 | BY7: 0 | BZ7: 0 | CA7: 0 | CB7: 0 | CC7: 0 | CD7: 0 | CE7: 0 | CF7: 0 | CG7: 0 | CH7: 0 | CI7: 0 | CJ7: 0 | CK7: 0 | CL7: 0 | CM7: 0 | CN7: 0
A8: 4 | B8: Anderson Teixeira | C8: 429 | D8: 8 | E8: 28 | H8: 17 | I8: 19 | L8: 3 | M8: 37 | P8: 1 | Q8: 45 | T8: 2 | U8: 40 | X8: 2 | Y8: 40 | AB8: 3 | AC8: 37 | AF8: 3 | AG8: 37 | AJ8: 2 | AK8: 40 | AN8: 3 | AO8: 37 | AR8: 13 | AS8: 23 | AT8: 1 | AU8: SIM | AV8: 1 | AW8: 45 | AZ8: 2 | BA8: 3 | BB8: 4 | BC8: 0 | BD8: 0 | BE8: 0 | BF8: 0 | BG8: 1 | BH8: 0 | BI8: 0 | BJ8: 0 | BK8: 0 | BL8: 1 | BM8: 0 | BN8: 0 | BO8: 0 | BP8: 1 | BQ8: 0 | BR8: 0 | BS8: 0 | BT8: 0 | BU8: 0 | BV8: 0 | BW8: 0 | BX8: 0 | BY8: 0 | BZ8: 0 | CA8: 0 | CB8: 0 | CC8: 0 | CD8: 0 | CE8: 0 | CF8: 0 | CG8: 0 | CH8: 0 | CI8: 0 | CJ8: 0 | CK8: 0 | CL8: 0 | CM8: 0 | CN8: 0
A9: 5 | B9: Aparecido Arantes | C9: 219 | E9: 0 | H9: 6 | I9: 31 | L9: 2 | M9: 40 | P9: 21 | Q9: 15 | U9: 0 | X9: 7 | Y9: 29 | AC9: 0 | AF9: 10 | AG9: 26 | AJ9: 8 | AK9: 28 | AN9: 13 | AO9: 23 | AS9: 0 | AV9: 9 | AW9: 27 | AZ9: 0 | BA9: 1 | BB9: 0 | BC9: 0 | BD9: 0 | BE9: 1 | BF9: 1 | BG9: 1 | BH9: 1 | BI9: 1 | BJ9: 0 | BK9: 0 | BL9: 1 | BM9: 0 | BN9: 0 | BO9: 0 | BP9: 0 | BQ9: 0 | BR9: 0 | BS9: 0 | BT9: 1 | BU9: 0 | BV9: 0 | BW9: 0 | BX9: 0 | BY9: 0 | BZ9: 0 | CA9: 0 | CB9: 0 | CC9: 0 | CD9: 0 | CE9: 0 | CF9: 0 | CG9: 0 | CH9: 0 | CI9: 0 | CJ9: 0 | CK9: 0 | CL9: 0 | CM9: 0 | CN9: 0
A10: 6 | B10: Arthur Santiago | C10: 220 | E10: 0 | H10: 5 | I10: 33 | J10: 1 | L10: 19 | M10: 17 | P10: 6 | Q10: 31 | T10: 6 | U10: 31 | X10: 8 | Y10: 28 | AB10: 15 | AC10: 21 | AF10: 7 | AG10: 29 | AK10: 0 | AN10: 7 | AO10: 29 | AS10: 0 | AW10: 0 | AZ10: 0 | BA10: 0 | BB10: 0 | BC10: 0 | BD10: 1 | BE10: 2 | BF10: 2 | BG10: 1 | BH10: 0 | BI10: 0 | BJ10: 0 | BK10: 0 | BL10: 0 | BM10: 0 | BN10: 1 | BO10: 0 | BP10: 0 | BQ10: 0 | BR10: 1 | BS10: 0 | BT10: 0 | BU10: 0 | BV10: 0 | BW10: 0 | BX10: 0 | BY10: 0 | BZ10: 0 | CA10: 0 | CB10: 0 | CC10: 0 | CD10: 0 | CE10: 0 | CF10: 0 | CG10: 0 | CH10: 0 | CI10: 0 | CJ10: 0 | CK10: 0 | CL10: 0 | CM10: 0 | CN10: 0
A11: 7 | B11: Danilo Soares | C11: 149 | E11: 0 | H11: 18 | I11: 18 | L11: 16 | M11: 20 | P11: 19 | Q11: 17 | U11: 0 | X11: 13 | Y11: 23 | AB11: 13 | AC11: 23 | AG11: 0 | AJ11: 14 | AK11: 22 | AO11: 0 | AR11: 10 | AS11: 26 | AW11: 0 | AZ11: 0 | BA11: 0 | BB11: 0 | BC11: 0 | BD11: 0 | BE11: 0 | BF11: 0 | BG11: 0 | BH11: 0 | BI11: 1 | BJ11: 0 | BK11: 0 | BL11: 2 | BM11: 1 | BN11: 0 | BO11: 1 | BP11: 0 | BQ11: 1 | BR11: 1 | BS11: 0 | BT11: 0 | BU11: 0 | BV11: 0 | BW11: 0 | BX11: 0 | BY11: 0 | BZ11: 0 | CA11: 0 | CB11: 0 | CC11: 0 | CD11: 0 | CE11: 0 | CF11: 0 | CG11: 0 | CH11: 0 | CI11: 0 | CJ11: 0 | CK11: 0 | CL11: 0 | CM11: 0 | CN11: 0
A12: 8 | B12: Emerson Guimarães | C12: 218 | D12: 9 | E12: 27 | H12: 4 | I12: 35 | L12: 14 | M12: 22 | P12: 11 | Q12: 25 | T12: 7 | U12: 29 | Y12: 0 | AB12: 12 | AC12: 24 | AG12: 0 | AJ12: 11 | AK12: 25 | AN12: 6 | AO12: 31 | AS12: 0 | AW12: 0 | AZ12: 0 | BA12: 0 | BB12: 0 | BC12: 1 | BD12: 0 | BE12: 1 | BF12: 1 | BG12: 0 | BH12: 1 | BI12: 0 | BJ12: 2 | BK12: 1 | BL12: 0 | BM12: 1 | BN12: 0 | BO12: 0 | BP12: 0 | BQ12: 0 | BR12: 0 | BS12: 0 | BT12: 0 | BU12: 0 | BV12: 0 | BW12: 0 | BX12: 0 | BY12: 0 | BZ12: 0 | CA12: 0 | CB12: 0 | CC12: 0 | CD12: 0 | CE12: 0 | CF12: 0 | CG12: 0 | CH12: 0 | CI12: 0 | CJ12: 0 | CK12: 0 | CL12: 0 | CM12: 0 | CN12: 0
A13: 9 | B13: Ezequiel Netto | C13: 97 | D13: 15 | E13: 21 | H13: 21 | I13: 15 | L13: 17 | M13: 19 | Q13: 0 | U13: 0 | Y13: 0 | AB13: 14 | AC13: 22 | AG13: 0 | AJ13: 16 | AK13: 20 | AO13: 0 | AS13: 0 | AW13: 0 | AZ13: 0 | BA13: 0 | BB13: 0 | BC13: 0 | BD13: 0 | BE13: 0 | BF13: 0 | BG13: 0 | BH13: 0 | BI13: 0 | BJ13: 0 | BK13: 0 | BL13: 0 | BM13: 1 | BN13: 1 | BO13: 1 | BP13: 1 | BQ13: 0 | BR13: 0 | BS13: 0 | BT13: 1 | BU13: 0 | BV13: 0 | BW13: 0 | BX13: 0 | BY13: 0 | BZ13: 0 | CA13: 0 | CB13: 0 | CC13: 0 | CD13: 0 | CE13: 0 | CF13: 0 | CG13: 0 | CH13: 0 | CI13: 0 | CJ13: 0 | CK13: 0 | CL13: 0 | CM13: 0 | CN13: 0
A14: 10 | B14: Felipe Franca | C14: 38 | E14: 0 | H14: 14 | I14: 22 | K14: SIM | L14: 20 | M14: 16 | Q14: 0 | U14: 0 | Y14: 0 | AC14: 0 | AG14: 0 | AK14: 0 | AO14: 0 | AS14: 0 | AW14: 0 | AZ14: 0 | BA14: 0 | BB14: 0 | BC14: 0 | BD14: 0 | BE14: 0 | BF14: 0 | BG14: 0 | BH14: 0 | BI14: 0 | BJ14: 0 | BK14: 0 | BL14: 0 | BM14: 1 | BN14: 0 | BO14: 0 | BP14: 0 | BQ14: 0 | BR14: 0 | BS14: 1 | BT14: 0 | BU14: 0 | BV14: 0 | BW14: 0 | BX14: 0 | BY14: 0 | BZ14: 0 | CA14: 0 | CB14: 0 | CC14: 0 | CD14: 0 | CE14: 0 | CF14: 0 | CG14: 0 | CH14: 0 | CI14: 0 | CJ14: 0 | CK14: 0 | CL14: 0 | CM14: 0 | CN14: 0
A15: 11 | B15: Fernando Mota | C15: 437 | D15: 2 | E15: 40 | H15: 2 | I15: 40 | L15: 21 | M15: 15 | P15: 3 | Q15: 37 | T15: 1 | U15: 45 | X15: 1 | Y15: 45 | AB15: 4 | AC15: 35 | AF15: 11 | AG15: 25 | AJ15: 3 | AK15: 37 | AN15: 1 | AO15: 45 | AR15: 2 | AS15: 40 | AV15: 5 | AW15: 33 | AZ15: 3 | BA15: 3 | BB15: 2 | BC15: 1 | BD15: 1 | BE15: 0 | BF15: 0 | BG15: 0 | BH15: 0 | BI15: 0 | BJ15: 1 | BK15: 0 | BL15: 0 | BM15: 0 | BN15: 0 | BO15: 0 | BP15: 0 | BQ15: 0 | BR15: 0 | BS15: 0 | BT15: 1 | BU15: 0 | BV15: 0 | BW15: 0 | BX15: 0 | BY15: 0 | BZ15: 0 | CA15: 0 | CB15: 0 | CC15: 0 | CD15: 0 | CE15: 0 | CF15: 0 | CG15: 0 | CH15: 0 | CI15: 0 | CJ15: 0 | CK15: 0 | CL15: 0 | CM15: 0 | CN15: 0
A16: 12 | B16: Gabriel Gontijo | C16: 166 | D16: 12 | E16: 24 | H16: 16 | I16: 20 | L16: 22 | M16: 14 | P16: 7 | Q16: 29 | T16: 9 | U16: 27 | Y16: 0 | AC16: 0 | AF16: 13 | AG16: 23 | AJ16: 7 | AK16: 29 | AO16: 0 | AS16: 0 | AW16: 0 | AZ16: 0 | BA16: 0 | BB16: 0 | BC16: 0 | BD16: 0 | BE16: 0 | BF16: 2 | BG16: 0 | BH16: 1 | BI16: 0 | BJ16: 0 | BK16: 1 | BL16: 1 | BM16: 0 | BN16: 0 | BO16: 1 | BP16: 0 | BQ16: 0 | BR16: 0 | BS16: 0 | BT16: 0 | BU16: 1 | BV16: 0 | BW16: 0 | BX16: 0 | BY16: 0 | BZ16: 0 | CA16: 0 | CB16: 0 | CC16: 0 | CD16: 0 | CE16: 0 | CF16: 0 | CG16: 0 | CH16: 0 | CI16: 0 | CJ16: 0 | CK16: 0 | CL16: 0 | CM16: 0 | CN16: 0
A17: 13 | B17: Gerson Junior | C17: 81 | E17: 0 | H17: 3 | I17: 37 | L17: 13 | M17: 23 | P17: 15 | Q17: 21 | U17: 0 | Y17: 0 | AC17: 0 | AG17: 0 | AK17: 0 | AO17: 0 | AS17: 0 | AW17: 0 | AZ17: 0 | BA17: 0 | BB17: 1 | BC17: 0 | BD17: 0 | BE17: 0 | BF17: 0 | BG17: 0 | BH17: 0 | BI17: 0 | BJ17: 0 | BK17: 0 | BL17: 1 | BM17: 0 | BN17: 1 | BO17: 0 | BP17: 0 | BQ17: 0 | BR17: 0 | BS17: 0 | BT17: 0 | BU17: 0 | BV17: 0 | BW17: 0 | BX17: 0 | BY17: 0 | BZ17: 0 | CA17: 0 | CB17: 0 | CC17: 0 | CD17: 0 | CE17: 0 | CF17: 0 | CG17: 0 | CH17: 0 | CI17: 0 | CJ17: 0 | CK17: 0 | CL17: 0 | CM17: 0 | CN17: 0
A18: 14 | B18: Gladson Souza | C18: 275 | D18: 16 | E18: 20 | H18: 20 | I18: 16 | L18: 11 | M18: 25 | P18: 20 | Q18: 16 | T18: 12 | U18: 24 | X18: 11 | Y18: 25 | AB18: 10 | AC18: 26 | AF18: 14 | AG18: 22 | AJ18: 15 | AK18: 21 | AN18: 14 | AO18: 22 | AR18: 9 | AS18: 27 | AV18: 6 | AW18: 31 | AZ18: 0 | BA18: 0 | BB18: 0 | BC18: 0 | BD18: 0 | BE18: 1 | BF18: 0 | BG18: 0 | BH18: 1 | BI18: 1 | BJ18: 2 | BK18: 1 | BL18: 0 | BM18: 2 | BN18: 1 | BO18: 1 | BP18: 0 | BQ18: 0 | BR18: 0 | BS18: 2 | BT18: 0 | BU18: 0 | BV18: 0 | BW18: 0 | BX18: 0 | BY18: 0 | BZ18: 0 | CA18: 0 | CB18: 0 | CC18: 0 | CD18: 0 | CE18: 0 | CF18: 0 | CG18: 0 | CH18: 0 | CI18: 0 | CJ18: 0 | CK18: 0 | CL18: 0 | CM18: 0 | CN18: 0
A19: 15 | B19: Gladystone Reis | C19: 35 | E19: 0 | H19: 19 | I19: 17 | L19: 18 | M19: 18 | Q19: 0 | U19: 0 | Y19: 0 | AC19: 0 | AG19: 0 | AK19: 0 | AO19: 0 | AS19: 0 | AW19: 0 | AZ19: 0 | BA19: 0 | BB19: 0 | BC19: 0 | BD19: 0 | BE19: 0 | BF19: 0 | BG19: 0 | BH19: 0 | BI19: 0 | BJ19: 0 | BK19: 0 | BL19: 0 | BM19: 0 | BN19: 0 | BO19: 0 | BP19: 0 | BQ19: 1 | BR19: 1 | BS19: 0 | BT19: 0 | BU19: 0 | BV19: 0 | BW19: 0 | BX19: 0 | BY19: 0 | BZ19: 0 | CA19: 0 | CB19: 0 | CC19: 0 | CD19: 0 | CE19: 0 | CF19: 0 | CG19: 0 | CH19: 0 | CI19: 0 | CJ19: 0 | CK19: 0 | CL19: 0 | CM19: 0 | CN19: 0
A20: 16 | B20: Joanes Gouvea | C20: 351 | D20: 7 | E20: 29 | H20: 24 | I20: 12 | M20: 0 | P20: 5 | Q20: 33 | U20: 0 | X20: 3 | Y20: 37 | Z20: 1 | AB20: 5 | AC20: 33 | AF20: 2 | AG20: 40 | AH20: 1 | AJ20: 1 | AK20: 45 | AL20: 1 | AN20: 5 | AO20: 33 | AR20: 1 | AS20: 45 | AV20: 2 | AW20: 40 | AX20: 1 | AZ20: 2 | BA20: 2 | BB20: 1 | BC20: 0 | BD20: 3 | BE20: 0 | BF20: 1 | BG20: 0 | BH20: 0 | BI20: 0 | BJ20: 0 | BK20: 0 | BL20: 0 | BM20: 0 | BN20: 0 | BO20: 0 | BP20: 0 | BQ20: 0 | BR20: 0 | BS20: 0 | BT20: 0 | BU20: 0 | BV20: 0 | BW20: 1 | BX20: 0 | BY20: 0 | BZ20: 0 | CA20: 0 | CB20: 0 | CC20: 0 | CD20: 0 | CE20: 0 | CF20: 0 | CG20: 0 | CH20: 0 | CI20: 0 | CJ20: 0 | CK20: 0 | CL20: 0 | CM20: 0 | CN20: 0
A21: 17 | B21: Leandro Leite | C21: 77 | D21: 14 | E21: 22 | F21: 1 | H21: 9 | I21: 27 | L21: 9 | M21: 27 | Q21: 0 | U21: 0 | Y21: 0 | AC21: 0 | AG21: 0 | AK21: 0 | AO21: 0 | AS21: 0 | AW21: 0 | AZ21: 0 | BA21: 0 | BB21: 0 | BC21: 0 | BD21: 0 | BE21: 0 | BF21: 0 | BG21: 0 | BH21: 2 | BI21: 0 | BJ21: 0 | BK21: 0 | BL21: 0 | BM21: 1 | BN21: 0 | BO21: 0 | BP21: 0 | BQ21: 0 | BR21: 0 | BS21: 0 | BT21: 0 | BU21: 0 | BV21: 0 | BW21: 0 | BX21: 0 | BY21: 0 | BZ21: 0 | CA21: 0 | CB21: 0 | CC21: 0 | CD21: 0 | CE21: 0 | CF21: 0 | CG21: 0 | CH21: 0 | CI21: 0 | CJ21: 0 | CK21: 0 | CL21: 0 | CM21: 0 | CN21: 0
A22: 18 | B22: Leodegario Junior | C22: 180 | E22: 0 | H22: 23 | I22: 13 | L22: 10 | M22: 26 | P22: 18 | Q22: 18 | T22: 10 | U22: 26 | X22: 14 | Y22: 22 | AB22: 9 | AC22: 27 | AF22: 12 | AG22: 24 | AK22: 0 | AN22: 12 | AO22: 24 | AS22: 0 | AW22: 0 | AZ22: 0 | BA22: 0 | BB22: 0 | BC22: 0 | BD22: 0 | BE22: 0 | BF22: 0 | BG22: 0 | BH22: 1 | BI22: 2 | BJ22: 0 | BK22: 2 | BL22: 0 | BM22: 1 | BN22: 0 | BO22: 0 | BP22: 0 | BQ22: 1 | BR22: 0 | BS22: 0 | BT22: 0 | BU22: 0 | BV22: 1 | BW22: 0 | BX22: 0 | BY22: 0 | BZ22: 0 | CA22: 0 | CB22: 0 | CC22: 0 | CD22: 0 | CE22: 0 | CF22: 0 | CG22: 0 | CH22: 0 | CI22: 0 | CJ22: 0 | CK22: 0 | CL22: 0 | CM22: 0 | CN22: 0
A23: 19 | B23: Leonardo Mattioda | C23: 308 | D23: 13 | E23: 23 | H23: 7 | I23: 29 | L23: 15 | M23: 21 | P23: 13 | Q23: 23 | U23: 0 | X23: 6 | Y23: 31 | AB23: 8 | AC23: 28 | AF23: 5 | AG23: 33 | AJ23: 6 | AK23: 31 | AN23: 9 | AO23: 27 | AR23: 5 | AS23: 33 | AV23: 7 | AW23: 29 | AZ23: 0 | BA23: 0 | BB23: 0 | BC23: 0 | BD23: 2 | BE23: 2 | BF23: 2 | BG23: 1 | BH23: 1 | BI23: 0 | BJ23: 0 | BK23: 0 | BL23: 2 | BM23: 0 | BN23: 1 | BO23: 0 | BP23: 0 | BQ23: 0 | BR23: 0 | BS23: 0 | BT23: 0 | BU23: 0 | BV23: 0 | BW23: 0 | BX23: 0 | BY23: 0 | BZ23: 0 | CA23: 0 | CB23: 0 | CC23: 0 | CD23: 0 | CE23: 0 | CF23: 0 | CG23: 0 | CH23: 0 | CI23: 0 | CJ23: 0 | CK23: 0 | CL23: 0 | CM23: 0 | CN23: 0
A24: 20 | B24: Luciano Brandão | C24: 386 | D24: 1 | E24: 45 | H24: 10 | I24: 26 | L24: 6 | M24: 31 | P24: 2 | Q24: 40 | T24: 8 | U24: 28 | X24: 4 | Y24: 35 | AB24: 7 | AC24: 29 | AF24: 8 | AG24: 28 | AJ24: 10 | AK24: 26 | AN24: 10 | AO24: 26 | AR24: 4 | AS24: 35 | AV24: 3 | AW24: 37 | AZ24: 1 | BA24: 1 | BB24: 1 | BC24: 2 | BD24: 0 | BE24: 1 | BF24: 1 | BG24: 2 | BH24: 0 | BI24: 3 | BJ24: 0 | BK24: 0 | BL24: 0 | BM24: 0 | BN24: 0 | BO24: 0 | BP24: 0 | BQ24: 0 | BR24: 0 | BS24: 0 | BT24: 0 | BU24: 0 | BV24: 0 | BW24: 0 | BX24: 0 | BY24: 0 | BZ24: 0 | CA24: 0 | CB24: 0 | CC24: 0 | CD24: 0 | CE24: 0 | CF24: 0 | CG24: 0 | CH24: 0 | CI24: 0 | CJ24: 0 | CK24: 0 | CL24: 0 | CM24: 0 | CN24: 0
A25: 21 | B25: Lúcio Chequer | C25: 389 | D25: 5 | E25: 33 | H25: 1 | I25: 45 | L25: 5 | M25: 33 | N25: 1 | P25: 17 | Q25: 19 | T25: 4 | U25: 35 | X25: 5 | Y25: 33 | AB25: 6 | AC25: 31 | AF25: 6 | AG25: 31 | AJ25: 5 | AK25: 33 | AN25: 2 | AO25: 40 | AR25: 7 | AS25: 29 | AV25: 10 | AW25: 26 | AZ25: 1 | BA25: 1 | BB25: 0 | BC25: 1 | BD25: 4 | BE25: 2 | BF25: 1 | BG25: 0 | BH25: 0 | BI25: 1 | BJ25: 0 | BK25: 0 | BL25: 0 | BM25: 0 | BN25: 0 | BO25: 0 | BP25: 1 | BQ25: 0 | BR25: 0 | BS25: 0 | BT25: 0 | BU25: 0 | BV25: 0 | BW25: 0 | BX25: 0 | BY25: 0 | BZ25: 0 | CA25: 0 | CB25: 0 | CC25: 0 | CD25: 0 | CE25: 0 | CF25: 0 | CG25: 0 | CH25: 0 | CI25: 0 | CJ25: 0 | CK25: 0 | CL25: 0 | CM25: 0 | CN25: 0
A26: 22 | B26: Matheus Dias | C26: 128 | E26: 0 | H26: 8 | I26: 28 | L26: 12 | M26: 24 | P26: 10 | Q26: 26 | T26: 13 | U26: 23 | X26: 9 | Y26: 27 | AC26: 0 | AG26: 0 | AK26: 0 | AO26: 0 | AS26: 0 | AW26: 0 | AZ26: 0 | BA26: 0 | BB26: 0 | BC26: 0 | BD26: 0 | BE26: 0 | BF26: 0 | BG26: 1 | BH26: 1 | BI26: 1 | BJ26: 0 | BK26: 1 | BL26: 1 | BM26: 0 | BN26: 0 | BO26: 0 | BP26: 0 | BQ26: 0 | BR26: 0 | BS26: 0 | BT26: 0 | BU26: 0 | BV26: 0 | BW26: 0 | BX26: 0 | BY26: 0 | BZ26: 0 | CA26: 0 | CB26: 0 | CC26: 0 | CD26: 0 | CE26: 0 | CF26: 0 | CG26: 0 | CH26: 0 | CI26: 0 | CJ26: 0 | CK26: 0 | CL26: 0 | CM26: 0 | CN26: 0
A27: 23 | B27: Rodrigo Guimaraes | C27: 132 | D27: 10 | E27: 26 | I27: 0 | M27: 0 | P27: 12 | Q27: 24 | T27: 24 | U27: 12 | W27: SIM | Y27: 0 | AB27: 11 | AC27: 25 | AG27: 0 | AJ27: 12 | AK27: 24 | AN27: 15 | AO27: 21 | AS27: 0 | AW27: 0 | AZ27: 0 | BA27: 0 | BB27: 0 | BC27: 0 | BD27: 0 | BE27: 0 | BF27: 0 | BG27: 0 | BH27: 0 | BI27: 1 | BJ27: 1 | BK27: 2 | BL27: 0 | BM27: 0 | BN27: 1 | BO27: 0 | BP27: 0 | BQ27: 0 | BR27: 0 | BS27: 0 | BT27: 0 | BU27: 0 | BV27: 0 | BW27: 1 | BX27: 0 | BY27: 0 | BZ27: 0 | CA27: 0 | CB27: 0 | CC27: 0 | CD27: 0 | CE27: 0 | CF27: 0 | CG27: 0 | CH27: 0 | CI27: 0 | CJ27: 0 | CK27: 0 | CL27: 0 | CM27: 0 | CN27: 0
A28: 24 | B28: Thiago Xavier | C28: 0 | E28: 0 | I28: 0 | M28: 0 | Q28: 0 | U28: 0 | Y28: 0 | AC28: 0 | AG28: 0 | AK28: 0 | AO28: 0 | AS28: 0 | AW28: 0 | AZ28: 0 | BA28: 0 | BB28: 0 | BC28: 0 | BD28: 0 | BE28: 0 | BF28: 0 | BG28: 0 | BH28: 0 | BI28: 0 | BJ28: 0 | BK28: 0 | BL28: 0 | BM28: 0 | BN28: 0 | BO28: 0 | BP28: 0 | BQ28: 0 | BR28: 0 | BS28: 0 | BT28: 0 | BU28: 0 | BV28: 0 | BW28: 0 | BX28: 0 | BY28: 0 | BZ28: 0 | CA28: 0 | CB28: 0 | CC28: 0 | CD28: 0 | CE28: 0 | CF28: 0 | CG28: 0 | CH28: 0 | CI28: 0 | CJ28: 0 | CK28: 0 | CL28: 0 | CM28: 0 | CN28: 0
A29: 25 | B29: Vitor Diniz | C29: 274 | D29: 11 | E29: 25 | H29: 12 | I29: 24 | L29: 8 | M29: 28 | P29: 16 | Q29: 20 | T29: 19 | U29: 17 | W29: SIM | X29: 10 | Y29: 26 | AC29: 0 | AF29: 9 | AG29: 27 | AJ29: 13 | AK29: 23 | AN29: 8 | AO29: 28 | AR29: 8 | AS29: 28 | AV29: 8 | AW29: 28 | AZ29: 0 | BA29: 0 | BB29: 0 | BC29: 0 | BD29: 0 | BE29: 0 | BF29: 0 | BG29: 4 | BH29: 1 | BI29: 1 | BJ29: 1 | BK29: 1 | BL29: 1 | BM29: 0 | BN29: 0 | BO29: 1 | BP29: 0 | BQ29: 0 | BR29: 1 | BS29: 0 | BT29: 0 | BU29: 0 | BV29: 0 | BW29: 0 | BX29: 0 | BY29: 0 | BZ29: 0 | CA29: 0 | CB29: 0 | CC29: 0 | CD29: 0 | CE29: 0 | CF29: 0 | CG29: 0 | CH29: 0 | CI29: 0 | CJ29: 0 | CK29: 0 | CL29: 0 | CM29: 0 | CN29: 0
A30: 26 | B30: Wilson Cristofani | C30: 108 | D30: 17 | E30: 19 | H30: 13 | I30: 23 | M30: 0 | Q30: 0 | U30: 0 | Y30: 0 | AC30: 0 | AG30: 0 | AK30: 0 | AN30: 4 | AO30: 35 | AR30: 6 | AS30: 31 | AW30: 0 | AZ30: 0 | BA30: 0 | BB30: 0 | BC30: 1 | BD30: 0 | BE30: 1 | BF30: 0 | BG30: 0 | BH30: 0 | BI30: 0 | BJ30: 0 | BK30: 0 | BL30: 1 | BM30: 0 | BN30: 0 | BO30: 0 | BP30: 1 | BQ30: 0 | BR30: 0 | BS30: 0 | BT30: 0 | BU30: 0 | BV30: 0 | BW30: 0 | BX30: 0 | BY30: 0 | BZ30: 0 | CA30: 0 | CB30: 0 | CC30: 0 | CD30: 0 | CE30: 0 | CF30: 0 | CG30: 0 | CH30: 0 | CI30: 0 | CJ30: 0 | CK30: 0 | CL30: 0 | CM30: 0 | CN30: 0
A31: 27 | B31: André Triginelli | C31: 22 | E31: 0 | I31: 0 | M31: 0 | P31: 14 | Q31: 22 | U31: 0 | Y31: 0 | AC31: 0 | AG31: 0 | AK31: 0 | AO31: 0 | AS31: 0 | AW31: 0 | AZ31: 0 | BA31: 0 | BB31: 0 | BC31: 0 | BD31: 0 | BE31: 0 | BF31: 0 | BG31: 0 | BH31: 0 | BI31: 0 | BJ31: 0 | BK31: 0 | BL31: 0 | BM31: 0 | BN31: 0 | BO31: 0 | BP31: 0 | BQ31: 0 | BR31: 0 | BS31: 0 | BT31: 0 | BU31: 0 | BV31: 0 | BW31: 0 | BX31: 0 | BY31: 0 | BZ31: 0 | CA31: 0 | CB31: 0 | CC31: 0 | CD31: 0 | CE31: 0 | CF31: 0 | CG31: 0 | CH31: 0 | CI31: 0 | CJ31: 0 | CK31: 0 | CL31: 0 | CM31: 0 | CN31: 0
A32: 28 | B32: Gabriel Ramos | C32: 0 | E32: 0 | I32: 0 | M32: 0 | Q32: 0 | U32: 0 | Y32: 0 | AC32: 0 | AG32: 0 | AK32: 0 | AO32: 0 | AS32: 0 | AW32: 0 | AZ32: 0 | BA32: 0 | BB32: 0 | BC32: 0 | BD32: 0 | BE32: 0 | BF32: 0 | BG32: 0 | BH32: 0 | BI32: 0 | BJ32: 0 | BK32: 0 | BL32: 0 | BM32: 0 | BN32: 0 | BO32: 0 | BP32: 0 | BQ32: 0 | BR32: 0 | BS32: 0 | BT32: 0 | BU32: 0 | BV32: 0 | BW32: 0 | BX32: 0 | BY32: 0 | BZ32: 0 | CA32: 0 | CB32: 0 | CC32: 0 | CD32: 0 | CE32: 0 | CF32: 0 | CG32: 0 | CH32: 0 | CI32: 0 | CJ32: 0 | CK32: 0 | CL32: 0 | CM32: 0 | CN32: 0
A33: 29 | C33: 0 | E33: 0 | I33: 0 | M33: 0 | Q33: 0 | U33: 0 | Y33: 0 | AC33: 0 | AG33: 0 | AK33: 0 | AO33: 0 | AS33: 0 | AW33: 0 | AZ33: 0 | BA33: 0 | BB33: 0 | BC33: 0 | BD33: 0 | BE33: 0 | BF33: 0 | BG33: 0 | BH33: 0 | BI33: 0 | BJ33: 0 | BK33: 0 | BL33: 0 | BM33: 0 | BN33: 0 | BO33: 0 | BP33: 0 | BQ33: 0 | BR33: 0 | BS33: 0 | BT33: 0 | BU33: 0 | BV33: 0 | BW33: 0 | BX33: 0 | BY33: 0 | BZ33: 0 | CA33: 0 | CB33: 0 | CC33: 0 | CD33: 0 | CE33: 0 | CF33: 0 | CG33: 0 | CH33: 0 | CI33: 0 | CJ33: 0 | CK33: 0 | CL33: 0 | CM33: 0 | CN33: 0
A34: 30 | C34: 0 | E34: 0 | I34: 0 | M34: 0 | Q34: 0 | U34: 0 | Y34: 0 | AC34: 0 | AG34: 0 | AK34: 0 | AO34: 0 | AS34: 0 | AW34: 0 | AZ34: 0 | BA34: 0 | BB34: 0 | BC34: 0 | BD34: 0 | BE34: 0 | BF34: 0 | BG34: 0 | BH34: 0 | BI34: 0 | BJ34: 0 | BK34: 0 | BL34: 0 | BM34: 0 | BN34: 0 | BO34: 0 | BP34: 0 | BQ34: 0 | BR34: 0 | BS34: 0 | BT34: 0 | BU34: 0 | BV34: 0 | BW34: 0 | BX34: 0 | BY34: 0 | BZ34: 0 | CA34: 0 | CB34: 0 | CC34: 0 | CD34: 0 | CE34: 0 | CF34: 0 | CG34: 0 | CH34: 0 | CI34: 0 | CJ34: 0 | CK34: 0 | CL34: 0 | CM34: 0 | CN34: 0
A35: 31 | C35: 0 | E35: 0 | I35: 0 | M35: 0 | Q35: 0 | U35: 0 | Y35: 0 | AC35: 0 | AG35: 0 | AK35: 0 | AO35: 0 | AS35: 0 | AW35: 0 | AZ35: 0 | BA35: 0 | BB35: 0 | BC35: 0 | BD35: 0 | BE35: 0 | BF35: 0 | BG35: 0 | BH35: 0 | BI35: 0 | BJ35: 0 | BK35: 0 | BL35: 0 | BM35: 0 | BN35: 0 | BO35: 0 | BP35: 0 | BQ35: 0 | BR35: 0 | BS35: 0 | BT35: 0 | BU35: 0 | BV35: 0 | BW35: 0 | BX35: 0 | BY35: 0 | BZ35: 0 | CA35: 0 | CB35: 0 | CC35: 0 | CD35: 0 | CE35: 0 | CF35: 0 | CG35: 0 | CH35: 0 | CI35: 0 | CJ35: 0 | CK35: 0 | CL35: 0 | CM35: 0 | CN35: 0
A36: 32 | C36: 0 | E36: 0 | I36: 0 | M36: 0 | Q36: 0 | U36: 0 | Y36: 0 | AC36: 0 | AG36: 0 | AK36: 0 | AO36: 0 | AS36: 0 | AW36: 0 | AZ36: 0 | BA36: 0 | BB36: 0 | BC36: 0 | BD36: 0 | BE36: 0 | BF36: 0 | BG36: 0 | BH36: 0 | BI36: 0 | BJ36: 0 | BK36: 0 | BL36: 0 | BM36: 0 | BN36: 0 | BO36: 0 | BP36: 0 | BQ36: 0 | BR36: 0 | BS36: 0 | BT36: 0 | BU36: 0 | BV36: 0 | BW36: 0 | BX36: 0 | BY36: 0 | BZ36: 0 | CA36: 0 | CB36: 0 | CC36: 0 | CD36: 0 | CE36: 0 | CF36: 0 | CG36: 0 | CH36: 0 | CI36: 0 | CJ36: 0 | CK36: 0 | CL36: 0 | CM36: 0 | CN36: 0
A37: 33 | C37: 0 | E37: 0 | I37: 0 | M37: 0 | Q37: 0 | U37: 0 | Y37: 0 | AC37: 0 | AG37: 0 | AK37: 0 | AO37: 0 | AS37: 0 | AW37: 0 | AZ37: 0 | BA37: 0 | BB37: 0 | BC37: 0 | BD37: 0 | BE37: 0 | BF37: 0 | BG37: 0 | BH37: 0 | BI37: 0 | BJ37: 0 | BK37: 0 | BL37: 0 | BM37: 0 | BN37: 0 | BO37: 0 | BP37: 0 | BQ37: 0 | BR37: 0 | BS37: 0 | BT37: 0 | BU37: 0 | BV37: 0 | BW37: 0 | BX37: 0 | BY37: 0 | BZ37: 0 | CA37: 0 | CB37: 0 | CC37: 0 | CD37: 0 | CE37: 0 | CF37: 0 | CG37: 0 | CH37: 0 | CI37: 0 | CJ37: 0 | CK37: 0 | CL37: 0 | CM37: 0 | CN37: 0
A38: 34 | C38: 0 | E38: 0 | I38: 0 | M38: 0 | Q38: 0 | U38: 0 | Y38: 0 | AC38: 0 | AG38: 0 | AK38: 0 | AO38: 0 | AS38: 0 | AW38: 0 | AZ38: 0 | BA38: 0 | BB38: 0 | BC38: 0 | BD38: 0 | BE38: 0 | BF38: 0 | BG38: 0 | BH38: 0 | BI38: 0 | BJ38: 0 | BK38: 0 | BL38: 0 | BM38: 0 | BN38: 0 | BO38: 0 | BP38: 0 | BQ38: 0 | BR38: 0 | BS38: 0 | BT38: 0 | BU38: 0 | BV38: 0 | BW38: 0 | BX38: 0 | BY38: 0 | BZ38: 0 | CA38: 0 | CB38: 0 | CC38: 0 | CD38: 0 | CE38: 0 | CF38: 0 | CG38: 0 | CH38: 0 | CI38: 0 | CJ38: 0 | CK38: 0 | CL38: 0 | CM38: 0 | CN38: 0
A39: 35 | C39: 0 | E39: 0 | I39: 0 | M39: 0 | Q39: 0 | U39: 0 | Y39: 0 | AC39: 0 | AG39: 0 | AK39: 0 | AO39: 0 | AS39: 0 | AW39: 0 | AZ39: 0 | BA39: 0 | BB39: 0 | BC39: 0 | BD39: 0 | BE39: 0 | BF39: 0 | BG39: 0 | BH39: 0 | BI39: 0 | BJ39: 0 | BK39: 0 | BL39: 0 | BM39: 0 | BN39: 0 | BO39: 0 | BP39: 0 | BQ39: 0 | BR39: 0 | BS39: 0 | BT39: 0 | BU39: 0 | BV39: 0 | BW39: 0 | BX39: 0 | BY39: 0 | BZ39: 0 | CA39: 0 | CB39: 0 | CC39: 0 | CD39: 0 | CE39: 0 | CF39: 0 | CG39: 0 | CH39: 0 | CI39: 0 | CJ39: 0 | CK39: 0 | CL39: 0 | CM39: 0 | CN39: 0
A40: 36 | C40: 0 | E40: 0 | I40: 0 | M40: 0 | Q40: 0 | U40: 0 | Y40: 0 | AC40: 0 | AG40: 0 | AK40: 0 | AO40: 0 | AS40: 0 | AW40: 0 | AZ40: 0 | BA40: 0 | BB40: 0 | BC40: 0 | BD40: 0 | BE40: 0 | BF40: 0 | BG40: 0 | BH40: 0 | BI40: 0 | BJ40: 0 | BK40: 0 | BL40: 0 | BM40: 0 | BN40: 0 | BO40: 0 | BP40: 0 | BQ40: 0 | BR40: 0 | BS40: 0 | BT40: 0 | BU40: 0 | BV40: 0 | BW40: 0 | BX40: 0 | BY40: 0 | BZ40: 0 | CA40: 0 | CB40: 0 | CC40: 0 | CD40: 0 | CE40: 0 | CF40: 0 | CG40: 0 | CH40: 0 | CI40: 0 | CJ40: 0 | CK40: 0 | CL40: 0 | CM40: 0 | CN40: 0
A41: 37 | C41: 0 | E41: 0 | I41: 0 | M41: 0 | Q41: 0 | U41: 0 | Y41: 0 | AC41: 0 | AG41: 0 | AK41: 0 | AO41: 0 | AS41: 0 | AW41: 0 | AZ41: 0 | BA41: 0 | BB41: 0 | BC41: 0 | BD41: 0 | BE41: 0 | BF41: 0 | BG41: 0 | BH41: 0 | BI41: 0 | BJ41: 0 | BK41: 0 | BL41: 0 | BM41: 0 | BN41: 0 | BO41: 0 | BP41: 0 | BQ41: 0 | BR41: 0 | BS41: 0 | BT41: 0 | BU41: 0 | BV41: 0 | BW41: 0 | BX41: 0 | BY41: 0 | BZ41: 0 | CA41: 0 | CB41: 0 | CC41: 0 | CD41: 0 | CE41: 0 | CF41: 0 | CG41: 0 | CH41: 0 | CI41: 0 | CJ41: 0 | CK41: 0 | CL41: 0 | CM41: 0 | CN41: 0
A42: 38 | C42: 0 | E42: 0 | I42: 0 | M42: 0 | Q42: 0 | U42: 0 | Y42: 0 | AC42: 0 | AG42: 0 | AK42: 0 | AO42: 0 | AS42: 0 | AW42: 0 | AZ42: 0 | BA42: 0 | BB42: 0 | BC42: 0 | BD42: 0 | BE42: 0 | BF42: 0 | BG42: 0 | BH42: 0 | BI42: 0 | BJ42: 0 | BK42: 0 | BL42: 0 | BM42: 0 | BN42: 0 | BO42: 0 | BP42: 0 | BQ42: 0 | BR42: 0 | BS42: 0 | BT42: 0 | BU42: 0 | BV42: 0 | BW42: 0 | BX42: 0 | BY42: 0 | BZ42: 0 | CA42: 0 | CB42: 0 | CC42: 0 | CD42: 0 | CE42: 0 | CF42: 0 | CG42: 0 | CH42: 0 | CI42: 0 | CJ42: 0 | CK42: 0 | CL42: 0 | CM42: 0 | CN42: 0
A43: 39 | C43: 0 | E43: 0 | I43: 0 | M43: 0 | Q43: 0 | U43: 0 | Y43: 0 | AC43: 0 | AG43: 0 | AK43: 0 | AO43: 0 | AS43: 0 | AW43: 0 | AZ43: 0 | BA43: 0 | BB43: 0 | BC43: 0 | BD43: 0 | BE43: 0 | BF43: 0 | BG43: 0 | BH43: 0 | BI43: 0 | BJ43: 0 | BK43: 0 | BL43: 0 | BM43: 0 | BN43: 0 | BO43: 0 | BP43: 0 | BQ43: 0 | BR43: 0 | BS43: 0 | BT43: 0 | BU43: 0 | BV43: 0 | BW43: 0 | BX43: 0 | BY43: 0 | BZ43: 0 | CA43: 0 | CB43: 0 | CC43: 0 | CD43: 0 | CE43: 0 | CF43: 0 | CG43: 0 | CH43: 0 | CI43: 0 | CJ43: 0 | CK43: 0 | CL43: 0 | CM43: 0 | CN43: 0
A44: 40 | C44: 0 | E44: 0 | I44: 0 | M44: 0 | Q44: 0 | U44: 0 | Y44: 0 | AC44: 0 | AG44: 0 | AK44: 0 | AO44: 0 | AS44: 0 | AW44: 0 | AZ44: 0 | BA44: 0 | BB44: 0 | BC44: 0 | BD44: 0 | BE44: 0 | BF44: 0 | BG44: 0 | BH44: 0 | BI44: 0 | BJ44: 0 | BK44: 0 | BL44: 0 | BM44: 0 | BN44: 0 | BO44: 0 | BP44: 0 | BQ44: 0 | BR44: 0 | BS44: 0 | BT44: 0 | BU44: 0 | BV44: 0 | BW44: 0 | BX44: 0 | BY44: 0 | BZ44: 0 | CA44: 0 | CB44: 0 | CC44: 0 | CD44: 0 | CE44: 0 | CF44: 0 | CG44: 0 | CH44: 0 | CI44: 0 | CJ44: 0 | CK44: 0 | CL44: 0 | CM44: 0 | CN44: 0
A45: 41 | C45: 0 | E45: 0 | I45: 0 | M45: 0 | Q45: 0 | U45: 0 | Y45: 0 | AC45: 0 | AG45: 0 | AK45: 0 | AO45: 0 | AS45: 0 | AW45: 0 | AZ45: 0 | BA45: 0 | BB45: 0 | BC45: 0 | BD45: 0 | BE45: 0 | BF45: 0 | BG45: 0 | BH45: 0 | BI45: 0 | BJ45: 0 | BK45: 0 | BL45: 0 | BM45: 0 | BN45: 0 | BO45: 0 | BP45: 0 | BQ45: 0 | BR45: 0 | BS45: 0 | BT45: 0 | BU45: 0 | BV45: 0 | BW45: 0 | BX45: 0 | BY45: 0 | BZ45: 0 | CA45: 0 | CB45: 0 | CC45: 0 | CD45: 0 | CE45: 0 | CF45: 0 | CG45: 0 | CH45: 0 | CI45: 0 | CJ45: 0 | CK45: 0 | CL45: 0 | CM45: 0 | CN45: 0
A46: 42 | C46: 0 | E46: 0 | I46: 0 | M46: 0 | Q46: 0 | U46: 0 | Y46: 0 | AC46: 0 | AG46: 0 | AK46: 0 | AO46: 0 | AS46: 0 | AW46: 0 | AZ46: 0 | BA46: 0 | BB46: 0 | BC46: 0 | BD46: 0 | BE46: 0 | BF46: 0 | BG46: 0 | BH46: 0 | BI46: 0 | BJ46: 0 | BK46: 0 | BL46: 0 | BM46: 0 | BN46: 0 | BO46: 0 | BP46: 0 | BQ46: 0 | BR46: 0 | BS46: 0 | BT46: 0 | BU46: 0 | BV46: 0 | BW46: 0 | BX46: 0 | BY46: 0 | BZ46: 0 | CA46: 0 | CB46: 0 | CC46: 0 | CD46: 0 | CE46: 0 | CF46: 0 | CG46: 0 | CH46: 0 | CI46: 0 | CJ46: 0 | CK46: 0 | CL46: 0 | CM46: 0 | CN46: 0
A47: 43 | C47: 0 | E47: 0 | I47: 0 | M47: 0 | Q47: 0 | U47: 0 | Y47: 0 | AC47: 0 | AG47: 0 | AK47: 0 | AO47: 0 | AS47: 0 | AW47: 0 | AZ47: 0 | BA47: 0 | BB47: 0 | BC47: 0 | BD47: 0 | BE47: 0 | BF47: 0 | BG47: 0 | BH47: 0 | BI47: 0 | BJ47: 0 | BK47: 0 | BL47: 0 | BM47: 0 | BN47: 0 | BO47: 0 | BP47: 0 | BQ47: 0 | BR47: 0 | BS47: 0 | BT47: 0 | BU47: 0 | BV47: 0 | BW47: 0 | BX47: 0 | BY47: 0 | BZ47: 0 | CA47: 0 | CB47: 0 | CC47: 0 | CD47: 0 | CE47: 0 | CF47: 0 | CG47: 0 | CH47: 0 | CI47: 0 | CJ47: 0 | CK47: 0 | CL47: 0 | CM47: 0 | CN47: 0
A48: 44 | C48: 0 | E48: 0 | I48: 0 | M48: 0 | Q48: 0 | U48: 0 | Y48: 0 | AC48: 0 | AG48: 0 | AK48: 0 | AO48: 0 | AS48: 0 | AW48: 0 | AZ48: 0 | BA48: 0 | BB48: 0 | BC48: 0 | BD48: 0 | BE48: 0 | BF48: 0 | BG48: 0 | BH48: 0 | BI48: 0 | BJ48: 0 | BK48: 0 | BL48: 0 | BM48: 0 | BN48: 0 | BO48: 0 | BP48: 0 | BQ48: 0 | BR48: 0 | BS48: 0 | BT48: 0 | BU48: 0 | BV48: 0 | BW48: 0 | BX48: 0 | BY48: 0 | BZ48: 0 | CA48: 0 | CB48: 0 | CC48: 0 | CD48: 0 | CE48: 0 | CF48: 0 | CG48: 0 | CH48: 0 | CI48: 0 | CJ48: 0 | CK48: 0 | CL48: 0 | CM48: 0 | CN48: 0
A49: 45 | C49: 0 | E49: 0 | I49: 0 | M49: 0 | Q49: 0 | U49: 0 | Y49: 0 | AC49: 0 | AG49: 0 | AK49: 0 | AO49: 0 | AS49: 0 | AW49: 0 | AZ49: 0 | BA49: 0 | BB49: 0 | BC49: 0 | BD49: 0 | BE49: 0 | BF49: 0 | BG49: 0 | BH49: 0 | BI49: 0 | BJ49: 0 | BK49: 0 | BL49: 0 | BM49: 0 | BN49: 0 | BO49: 0 | BP49: 0 | BQ49: 0 | BR49: 0 | BS49: 0 | BT49: 0 | BU49: 0 | BV49: 0 | BW49: 0 | BX49: 0 | BY49: 0 | BZ49: 0 | CA49: 0 | CB49: 0 | CC49: 0 | CD49: 0 | CE49: 0 | CF49: 0 | CG49: 0 | CH49: 0 | CI49: 0 | CJ49: 0 | CK49: 0 | CL49: 0 | CM49: 0 | CN49: 0

Sheet Classificação Geral
A1: 2022 | E1: OK | I1: OK | M1: OK | Q1: OK | U1: OK | Y1: OK | AC1: OK | AG1: OK | AK1: OK | AO1: OK | AS1: OK | AW1: OK
D2: ETAPA 2 | H2: ETAPA 3 | L2: ETAPA 1 | P2: ETAPA 4 | T2: ETAPA 5 | X2: ETAPA 6 | AB2: ETAPA 7 | AF2: ETAPA 8 | AJ2: ETAPA 9 | AN2: ETAPA 10 | AR2: ETAPA 11 | AV2: ETAPA 12
D3: SUPER | H3: LIGHT | L3: LIGHT | P3: SUPER | T3: LIGHT | X3: SUPER | AB3: SUPER | AJ3: SUPER | AN3: LIGHT | AR3: SUPER | AV3: LIGHT
B4: Nome do (a) Piloto (a) | C4: Pontuação Geral | D4: Posição | E4: Pontos | F4: Bônus | G4: Penalidade | H4: Posição | I4: Pontos | J4: Bônus | K4: Penalidade | L4: Posição | M4: Pontos | N4: Bônus | O4: Penalidade | P4: Posição | Q4: Pontos | R4: Bônus | S4: Penalidade | T4: Posição | U4: Pontos | V4: Bônus | W4: Penalidade | X4: Posição | Y4: Pontos | Z4: Bônus | AA4: Penalidade | AB4: Posição | AC4: Pontos | AD4: Bônus | AE4: Penalidade | AF4: Posição | AG4: Pontos | AH4: Bônus | AI4: Penalidade | AJ4: Posição | AK4: Pontos | AL4: Bônus | AM4: Penalidade | AN4: Posição | AO4: Pontos | AP4: Bônus | AQ4: Penalidade | AR4: Posição | AS4: Pontos | AT4: Bônus | AU4: Penalidade | AV4: Posição | AW4: Pontos | AX4: Bônus | AY4: Penalidade | AZ4: 1º LUGAR | BA4: 2º LUGAR | BB4: 3º LUGAR | BC4: 4º LUGAR | BD4: 5º LUGAR | BE4: 6º LUGAR | BF4: 7º LUGAR | BG4: 8º LUGAR | BH4: 9º LUGAR | BI4: 10º LUGAR | BJ4: 11º LUGAR | BK4: 12º LUGAR | BL4: 13º LUGAR | BM4: 14º LUGAR | BN4: 15º LUGAR | BO4: 16º LUGAR | BP4: 17º LUGAR | BQ4: 18º LUGAR | BR4: 19º LUGAR | BS4: 20º LUGAR | BT4: 21º LUGAR | BU4: 22º LUGAR | BV4: 23º LUGAR | BW4: 24º LUGAR | BX4: 25º LUGAR | BY4: 26º LUGAR | BZ4: 27º LUGAR | CA4: 28º LUGAR | CB4: 29º LUGAR | CC4: 30º LUGAR | CD4: 31º LUGAR | CE4: 32º LUGAR | CF4: 33º LUGAR | CG4: 34º LUGAR | CH4: 35º LUGAR | CI4: 36º LUGAR | CJ4: 37º LUGAR | CK4: 38º LUGAR | CL4: 39º LUGAR | CM4: 40º LUGAR | CN4: 41º LUGAR
A5: 1 | B5: Fernando Mota | C5: 437 | D5: 2 | E5: 40 | H5: 2 | I5: 40 | L5: 21 | M5: 15 | P5: 3 | Q5: 37 | T5: 1 | U5: 45 | X5: 1 | Y5: 45 | AB5: 4 | AC5: 35 | AF5: 11 | AG5: 25 | AJ5: 3 | AK5: 37 | AN5: 1 | AO5: 45 | AR5: 2 | AS5: 40 | AV5: 5 | AW5: 33 | AZ5: 3 | BA5: 3 | BB5: 2 | BC5: 1 | BD5: 1 | BE5: 0 | BF5: 0 | BG5: 0 | BH5: 0 | BI5: 0 | BJ5: 1 | BK5: 0 | BL5: 0 | BM5: 0 | BN5: 0 | BO5: 0 | BP5: 0 | BQ5: 0 | BR5: 0 | BS5: 0 | BT5: 1 | BU5: 0 | BV5: 0 | BW5: 0 | BX5: 0 | BY5: 0 | BZ5: 0 | CA5: 0 | CB5: 0 | CC5: 0 | CD5: 0 | CE5: 0 | CF5: 0 | CG5: 0 | CH5: 0 | CI5: 0 | CJ5: 0 | CK5: 0 | CL5: 0 | CM5: 0 | CN5: 0
A6: 2 | B6: Anderson Teixeira | C6: 429 | D6: 8 | E6: 28 | H6: 17 | I6: 19 | L6: 3 | M6: 37 | P6: 1 | Q6: 45 | T6: 2 | U6: 40 | X6: 2 | Y6: 40 | AB6: 3 | AC6: 37 | AF6: 3 | AG6: 37 | AJ6: 2 | AK6: 40 | AN6: 3 | AO6: 37 | AR6: 13 | AS6: 23 | AT6: 1 | AU6: SIM | AV6: 1 | AW6: 45 | AZ6: 2 | BA6: 3 | BB6: 4 | BC6: 0 | BD6: 0 | BE6: 0 | BF6: 0 | BG6: 1 | BH6: 0 | BI6: 0 | BJ6: 0 | BK6: 0 | BL6: 1 | BM6: 0 | BN6: 0 | BO6: 0 | BP6: 1 | BQ6: 0 | BR6: 0 | BS6: 0 | BT6: 0 | BU6: 0 | BV6: 0 | BW6: 0 | BX6: 0 | BY6: 0 | BZ6: 0 | CA6: 0 | CB6: 0 | CC6: 0 | CD6: 0 | CE6: 0 | CF6: 0 | CG6: 0 | CH6: 0 | CI6: 0 | CJ6: 0 | CK6: 0 | CL6: 0 | CM6: 0 | CN6: 0
A7: 3 | B7: Alexandre Melillo | C7: 407 | D7: 4 | E7: 35 | H7: 22 | I7: 14 | L7: 1 | M7: 45 | P7: 8 | Q7: 28 | T7: 3 | U7: 37 | X7: 12 | Y7: 24 | AB7: 1 | AC7: 45 | AD7: 1 | AF7: 1 | AG7: 45 | AJ7: 4 | AK7: 35 | AN7: 11 | AO7: 25 | AP7: 1 | AR7: 3 | AS7: 37 | AV7: 4 | AW7: 35 | AZ7: 3 | BA7: 0 | BB7: 2 | BC7: 3 | BD7: 0 | BE7: 0 | BF7: 0 | BG7: 1 | BH7: 0 | BI7: 0 | BJ7: 1 | BK7: 1 | BL7: 0 | BM7: 0 | BN7: 0 | BO7: 0 | BP7: 0 | BQ7: 0 | BR7: 0 | BS7: 0 | BT7: 0 | BU7: 1 | BV7: 0 | BW7: 0 | BX7: 0 | BY7: 0 | BZ7: 0 | CA7: 0 | CB7: 0 | CC7: 0 | CD7: 0 | CE7: 0 | CF7: 0 | CG7: 0 | CH7: 0 | CI7: 0 | CJ7: 0 | CK7: 0 | CL7: 0 | CM7: 0 | CN7: 0
A8: 4 | B8: Lúcio Chequer | C8: 389 | D8: 5 | E8: 33 | H8: 1 | I8: 45 | L8: 5 | M8: 33 | N8: 1 | P8: 17 | Q8: 19 | T8: 4 | U8: 35 | X8: 5 | Y8: 33 | AB8: 6 | AC8: 31 | AF8: 6 | AG8: 31 | AJ8: 5 | AK8: 33 | AN8: 2 | AO8: 40 | AR8: 7 | AS8: 29 | AV8: 10 | AW8: 26 | AZ8: 1 | BA8: 1 | BB8: 0 | BC8: 1 | BD8: 4 | BE8: 2 | BF8: 1 | BG8: 0 | BH8: 0 | BI8: 1 | BJ8: 0 | BK8: 0 | BL8: 0 | BM8: 0 | BN8: 0 | BO8: 0 | BP8: 1 | BQ8: 0 | BR8: 0 | BS8: 0 | BT8: 0 | BU8: 0 | BV8: 0 | BW8: 0 | BX8: 0 | BY8: 0 | BZ8: 0 | CA8: 0 | CB8: 0 | CC8: 0 | CD8: 0 | CE8: 0 | CF8: 0 | CG8: 0 | CH8: 0 | CI8: 0 | CJ8: 0 | CK8: 0 | CL8: 0 | CM8: 0 | CN8: 0
A9: 5 | B9: Luciano Brandão | C9: 386 | D9: 1 | E9: 45 | H9: 10 | I9: 26 | L9: 6 | M9: 31 | P9: 2 | Q9: 40 | T9: 8 | U9: 28 | X9: 4 | Y9: 35 | AB9: 7 | AC9: 29 | AF9: 8 | AG9: 28 | AJ9: 10 | AK9: 26 | AN9: 10 | AO9: 26 | AR9: 4 | AS9: 35 | AV9: 3 | AW9: 37 | AZ9: 1 | BA9: 1 | BB9: 1 | BC9: 2 | BD9: 0 | BE9: 1 | BF9: 1 | BG9: 2 | BH9: 0 | BI9: 3 | BJ9: 0 | BK9: 0 | BL9: 0 | BM9: 0 | BN9: 0 | BO9: 0 | BP9: 0 | BQ9: 0 | BR9: 0 | BS9: 0 | BT9: 0 | BU9: 0 | BV9: 0 | BW9: 0 | BX9: 0 | BY9: 0 | BZ9: 0 | CA9: 0 | CB9: 0 | CC9: 0 | CD9: 0 | CE9: 0 | CF9: 0 | CG9: 0 | CH9: 0 | CI9: 0 | CJ9: 0 | CK9: 0 | CL9: 0 | CM9: 0 | CN9: 0
A10: 6 | B10: Joanes Gouvea | C10: 351 | D10: 7 | E10: 29 | H10: 24 | I10: 12 | M10: 0 | P10: 5 | Q10: 33 | U10: 0 | X10: 3 | Y10: 37 | Z10: 1 | AB10: 5 | AC10: 33 | AF10: 2 | AG10: 40 | AH10: 1 | AJ10: 1 | AK10: 45 | AL10: 1 | AN10: 5 | AO10: 33 | AR10: 1 | AS10: 45 | AV10: 2 | AW10: 40 | AX10: 1 | AZ10: 2 | BA10: 2 | BB10: 1 | BC10: 0 | BD10: 3 | BE10: 0 | BF10: 1 | BG10: 0 | BH10: 0 | BI10: 0 | BJ10: 0 | BK10: 0 | BL10: 0 | BM10: 0 | BN10: 0 | BO10: 0 | BP10: 0 | BQ10: 0 | BR10: 0 | BS10: 0 | BT10: 0 | BU10: 0 | BV10: 0 | BW10: 1 | BX10: 0 | BY10: 0 | BZ10: 0 | CA10: 0 | CB10: 0 | CC10: 0 | CD10: 0 | CE10: 0 | CF10: 0 | CG10: 0 | CH10: 0 | CI10: 0 | CJ10: 0 | CK10: 0 | CL10: 0 | CM10: 0 | CN10: 0
A11: 7 | B11: Leonardo Mattioda | C11: 308 | D11: 13 | E11: 23 | H11: 7 | I11: 29 | L11: 15 | M11: 21 | P11: 13 | Q11: 23 | U11: 0 | X11: 6 | Y11: 31 | AB11: 8 | AC11: 28 | AF11: 5 | AG11: 33 | AJ11: 6 | AK11: 31 | AN11: 9 | AO11: 27 | AR11: 5 | AS11: 33 | AV11: 7 | AW11: 29 | AZ11: 0 | BA11: 0 | BB11: 0 | BC11: 0 | BD11: 2 | BE11: 2 | BF11: 2 | BG11: 1 | BH11: 1 | BI11: 0 | BJ11: 0 | BK11: 0 | BL11: 2 | BM11: 0 | BN11: 1 | BO11: 0 | BP11: 0 | BQ11: 0 | BR11: 0 | BS11: 0 | BT11: 0 | BU11: 0 | BV11: 0 | BW11: 0 | BX11: 0 | BY11: 0 | BZ11: 0 | CA11: 0 | CB11: 0 | CC11: 0 | CD11: 0 | CE11: 0 | CF11: 0 | CG11: 0 | CH11: 0 | CI11: 0 | CJ11: 0 | CK11: 0 | CL11: 0 | CM11: 0 | CN11: 0
A12: 8 | B12: Gladson Souza | C12: 275 | D12: 16 | E12: 20 | H12: 20 | I12: 16 | L12: 11 | M12: 25 | P12: 20 | Q12: 16 | T12: 12 | U12: 24 | X12: 11 | Y12: 25 | AB12: 10 | AC12: 26 | AF12: 14 | AG12: 22 | AJ12: 15 | AK12: 21 | AN12: 14 | AO12: 22 | AR12: 9 | AS12: 27 | AV12: 6 | AW12: 31 | AZ12: 0 | BA12: 0 | BB12: 0 | BC12: 0 | BD12: 0 | BE12: 1 | BF12: 0 | BG12: 0 | BH12: 1 | BI12: 1 | BJ12: 2 | BK12: 1 | BL12: 0 | BM12: 2 | BN12: 1 | BO12: 1 | BP12: 0 | BQ12: 0 | BR12: 0 | BS12: 2 | BT12: 0 | BU12: 0 | BV12: 0 | BW12: 0 | BX12: 0 | BY12: 0 | BZ12: 0 | CA12: 0 | CB12: 0 | CC12: 0 | CD12: 0 | CE12: 0 | CF12: 0 | CG12: 0 | CH12: 0 | CI12: 0 | CJ12: 0 | CK12: 0 | CL12: 0 | CM12: 0 | CN12: 0
A13: 9 | B13: Vitor Diniz | C13: 274 | D13: 11 | E13: 25 | H13: 12 | I13: 24 | L13: 8 | M13: 28 | P13: 16 | Q13: 20 | T13: 19 | U13: 17 | W13: SIM | X13: 10 | Y13: 26 | AC13: 0 | AF13: 9 | AG13: 27 | AJ13: 13 | AK13: 23 | AN13: 8 | AO13: 28 | AR13: 8 | AS13: 28 | AV13: 8 | AW13: 28 | AZ13: 0 | BA13: 0 | BB13: 0 | BC13: 0 | BD13: 0 | BE13: 0 | BF13: 0 | BG13: 4 | BH13: 1 | BI13: 1 | BJ13: 1 | BK13: 1 | BL13: 1 | BM13: 0 | BN13: 0 | BO13: 1 | BP13: 0 | BQ13: 0 | BR13: 1 | BS13: 0 | BT13: 0 | BU13: 0 | BV13: 0 | BW13: 0 | BX13: 0 | BY13: 0 | BZ13: 0 | CA13: 0 | CB13: 0 | CC13: 0 | CD13: 0 | CE13: 0 | CF13: 0 | CG13: 0 | CH13: 0 | CI13: 0 | CJ13: 0 | CK13: 0 | CL13: 0 | CM13: 0 | CN13: 0
A14: 10 | B14: Agostinho Neves | C14: 229 | D14: 3 | E14: 37 | H14: 15 | I14: 21 | L14: 4 | M14: 35 | P14: 4 | Q14: 35 | R14: 1 | T14: 5 | U14: 33 | Y14: 0 | AB14: 2 | AC14: 40 | AG14: 0 | AJ14: 9 | AK14: 27 | AO14: 0 | AR14: 0 | AS14: 0 | AU14: SIM | AW14: 0 | AZ14: 0 | BA14: 1 | BB14: 1 | BC14: 2 | BD14: 1 | BE14: 0 | BF14: 0 | BG14: 0 | BH14: 1 | BI14: 0 | BJ14: 0 | BK14: 0 | BL14: 0 | BM14: 0 | BN14: 1 | BO14: 0 | BP14: 0 | BQ14: 0 | BR14: 0 | BS14: 0 | BT14: 0 | BU14: 0 | BV14: 0 | BW14: 0 | BX14: 0 | BY14: 0 | BZ14: 0 | CA14: 0 | CB14: 0 | CC14: 0 | CD14: 0 | CE14: 0 | CF14: 0 | CG14: 0 | CH14: 0 | CI14: 0 | CJ14: 0 | CK14: 0 | CL14: 0 | CM14: 0 | CN14: 0
A15: 11 | B15: Arthur Santiago | C15: 220 | E15: 0 | H15: 5 | I15: 33 | J15: 1 | L15: 19 | M15: 17 | P15: 6 | Q15: 31 | T15: 6 | U15: 31 | X15: 8 | Y15: 28 | AB15: 15 | AC15: 21 | AF15: 7 | AG15: 29 | AK15: 0 | AN15: 7 | AO15: 29 | AS15: 0 | AW15: 0 | AZ15: 0 | BA15: 0 | BB15: 0 | BC15: 0 | BD15: 1 | BE15: 2 | BF15: 2 | BG15: 1 | BH15: 0 | BI15: 0 | BJ15: 0 | BK15: 0 | BL15: 0 | BM15: 0 | BN15: 1 | BO15: 0 | BP15: 0 | BQ15: 0 | BR15: 1 | BS15: 0 | BT15: 0 | BU15: 0 | BV15: 0 | BW15: 0 | BX15: 0 | BY15: 0 | BZ15: 0 | CA15: 0 | CB15: 0 | CC15: 0 | CD15: 0 | CE15: 0 | CF15: 0 | CG15: 0 | CH15: 0 | CI15: 0 | CJ15: 0 | CK15: 0 | CL15: 0 | CM15: 0 | CN15: 0
A16: 12 | B16: Aparecido Arantes | C16: 219 | E16: 0 | H16: 6 | I16: 31 | L16: 2 | M16: 40 | P16: 21 | Q16: 15 | U16: 0 | X16: 7 | Y16: 29 | AC16: 0 | AF16: 10 | AG16: 26 | AJ16: 8 | AK16: 28 | AN16: 13 | AO16: 23 | AS16: 0 | AV16: 9 | AW16: 27 | AZ16: 0 | BA16: 1 | BB16: 0 | BC16: 0 | BD16: 0 | BE16: 1 | BF16: 1 | BG16: 1 | BH16: 1 | BI16: 1 | BJ16: 0 | BK16: 0 | BL16: 1 | BM16: 0 | BN16: 0 | BO16: 0 | BP16: 0 | BQ16: 0 | BR16: 0 | BS16: 0 | BT16: 1 | BU16: 0 | BV16: 0 | BW16: 0 | BX16: 0 | BY16: 0 | BZ16: 0 | CA16: 0 | CB16: 0 | CC16: 0 | CD16: 0 | CE16: 0 | CF16: 0 | CG16: 0 | CH16: 0 | CI16: 0 | CJ16: 0 | CK16: 0 | CL16: 0 | CM16: 0 | CN16: 0
A17: 13 | B17: Emerson Guimarães | C17: 218 | D17: 9 | E17: 27 | H17: 4 | I17: 35 | L17: 14 | M17: 22 | P17: 11 | Q17: 25 | T17: 7 | U17: 29 | Y17: 0 | AB17: 12 | AC17: 24 | AG17: 0 | AJ17: 11 | AK17: 25 | AN17: 6 | AO17: 31 | AS17: 0 | AW17: 0 | AZ17: 0 | BA17: 0 | BB17: 0 | BC17: 1 | BD17: 0 | BE17: 1 | BF17: 1 | BG17: 0 | BH17: 1 | BI17: 0 | BJ17: 2 | BK17: 1 | BL17: 0 | BM17: 1 | BN17: 0 | BO17: 0 | BP17: 0 | BQ17: 0 | BR17: 0 | BS17: 0 | BT17: 0 | BU17: 0 | BV17: 0 | BW17: 0 | BX17: 0 | BY17: 0 | BZ17: 0 | CA17: 0 | CB17: 0 | CC17: 0 | CD17: 0 | CE17: 0 | CF17: 0 | CG17: 0 | CH17: 0 | CI17: 0 | CJ17: 0 | CK17: 0 | CL17: 0 | CM17: 0 | CN17: 0
A18: 14 | B18: Leodegario Junior | C18: 180 | E18: 0 | H18: 23 | I18: 13 | L18: 10 | M18: 26 | P18: 18 | Q18: 18 | T18: 10 | U18: 26 | X18: 14 | Y18: 22 | AB18: 9 | AC18: 27 | AF18: 12 | AG18: 24 | AK18: 0 | AN18: 12 | AO18: 24 | AS18: 0 | AW18: 0 | AZ18: 0 | BA18: 0 | BB18: 0 | BC18: 0 | BD18: 0 | BE18: 0 | BF18: 0 | BG18: 0 | BH18: 1 | BI18: 2 | BJ18: 0 | BK18: 2 | BL18: 0 | BM18: 1 | BN18: 0 | BO18: 0 | BP18: 0 | BQ18: 1 | BR18: 0 | BS18: 0 | BT18: 0 | BU18: 0 | BV18: 1 | BW18: 0 | BX18: 0 | BY18: 0 | BZ18: 0 | CA18: 0 | CB18: 0 | CC18: 0 | CD18: 0 | CE18: 0 | CF18: 0 | CG18: 0 | CH18: 0 | CI18: 0 | CJ18: 0 | CK18: 0 | CL18: 0 | CM18: 0 | CN18: 0
A19: 15 | B19: Anderson Oliveira | C19: 173 | D19: 6 | E19: 31 | H19: 11 | I19: 25 | L19: 7 | M19: 29 | P19: 9 | Q19: 27 | T19: 11 | U19: 25 | V19: 1 | Y19: 0 | AC19: 0 | AF19: 4 | AG19: 35 | AK19: 0 | AO19: 0 | AS19: 0 | AW19: 0 | AZ19: 0 | BA19: 0 | BB19: 0 | BC19: 1 | BD19: 0 | BE19: 1 | BF19: 1 | BG19: 0 | BH19: 1 | BI19: 0 | BJ19: 2 | BK19: 0 | BL19: 0 | BM19: 0 | BN19: 0 | BO19: 0 | BP19: 0 | BQ19: 0 | BR19: 0 | BS19: 0 | BT19: 0 | BU19: 0 | BV19: 0 | BW19: 0 | BX19: 0 | BY19: 0 | BZ19: 0 | CA19: 0 | CB19: 0 | CC19: 0 | CD19: 0 | CE19: 0 | CF19: 0 | CG19: 0 | CH19: 0 | CI19: 0 | CJ19: 0 | CK19: 0 | CL19: 0 | CM19: 0 | CN19: 0
A20: 16 | B20: Gabriel Gontijo | C20: 166 | D20: 12 | E20: 24 | H20: 16 | I20: 20 | L20: 22 | M20: 14 | P20: 7 | Q20: 29 | T20: 9 | U20: 27 | Y20: 0 | AC20: 0 | AF20: 13 | AG20: 23 | AJ20: 7 | AK20: 29 | AO20: 0 | AS20: 0 | AW20: 0 | AZ20: 0 | BA20: 0 | BB20: 0 | BC20: 0 | BD20: 0 | BE20: 0 | BF20: 2 | BG20: 0 | BH20: 1 | BI20: 0 | BJ20: 0 | BK20: 1 | BL20: 1 | BM20: 0 | BN20: 0 | BO20: 1 | BP20: 0 | BQ20: 0 | BR20: 0 | BS20: 0 | BT20: 0 | BU20: 1 | BV20: 0 | BW20: 0 | BX20: 0 | BY20: 0 | BZ20: 0 | CA20: 0 | CB20: 0 | CC20: 0 | CD20: 0 | CE20: 0 | CF20: 0 | CG20: 0 | CH20: 0 | CI20: 0 | CJ20: 0 | CK20: 0 | CL20: 0 | CM20: 0 | CN20: 0
A21: 17 | B21: Danilo Soares | C21: 149 | E21: 0 | H21: 18 | I21: 18 | L21: 16 | M21: 20 | P21: 19 | Q21: 17 | U21: 0 | X21: 13 | Y21: 23 | AB21: 13 | AC21: 23 | AG21: 0 | AJ21: 14 | AK21: 22 | AO21: 0 | AR21: 10 | AS21: 26 | AW21: 0 | AZ21: 0 | BA21: 0 | BB21: 0 | BC21: 0 | BD21: 0 | BE21: 0 | BF21: 0 | BG21: 0 | BH21: 0 | BI21: 1 | BJ21: 0 | BK21: 0 | BL21: 2 | BM21: 1 | BN21: 0 | BO21: 1 | BP21: 0 | BQ21: 1 | BR21: 1 | BS21: 0 | BT21: 0 | BU21: 0 | BV21: 0 | BW21: 0 | BX21: 0 | BY21: 0 | BZ21: 0 | CA21: 0 | CB21: 0 | CC21: 0 | CD21: 0 | CE21: 0 | CF21: 0 | CG21: 0 | CH21: 0 | CI21: 0 | CJ21: 0 | CK21: 0 | CL21: 0 | CM21: 0 | CN21: 0
A22: 18 | B22: Rodrigo Guimaraes | C22: 132 | D22: 10 | E22: 26 | I22: 0 | M22: 0 | P22: 12 | Q22: 24 | T22: 24 | U22: 12 | W22: SIM | Y22: 0 | AB22: 11 | AC22: 25 | AG22: 0 | AJ22: 12 | AK22: 24 | AN22: 15 | AO22: 21 | AS22: 0 | AW22: 0 | AZ22: 0 | BA22: 0 | BB22: 0 | BC22: 0 | BD22: 0 | BE22: 0 | BF22: 0 | BG22: 0 | BH22: 0 | BI22: 1 | BJ22: 1 | BK22: 2 | BL22: 0 | BM22: 0 | BN22: 1 | BO22: 0 | BP22: 0 | BQ22: 0 | BR22: 0 | BS22: 0 | BT22: 0 | BU22: 0 | BV22: 0 | BW22: 1 | BX22: 0 | BY22: 0 | BZ22: 0 | CA22: 0 | CB22: 0 | CC22: 0 | CD22: 0 | CE22: 0 | CF22: 0 | CG22: 0 | CH22: 0 | CI22: 0 | CJ22: 0 | CK22: 0 | CL22: 0 | CM22: 0 | CN22: 0
A23: 19 | B23: Matheus Dias | C23: 128 | E23: 0 | H23: 8 | I23: 28 | L23: 12 | M23: 24 | P23: 10 | Q23: 26 | T23: 13 | U23: 23 | X23: 9 | Y23: 27 | AC23: 0 | AG23: 0 | AK23: 0 | AO23: 0 | AS23: 0 | AW23: 0 | AZ23: 0 | BA23: 0 | BB23: 0 | BC23: 0 | BD23: 0 | BE23: 0 | BF23: 0 | BG23: 1 | BH23: 1 | BI23: 1 | BJ23: 0 | BK23: 1 | BL23: 1 | BM23: 0 | BN23: 0 | BO23: 0 | BP23: 0 | BQ23: 0 | BR23: 0 | BS23: 0 | BT23: 0 | BU23: 0 | BV23: 0 | BW23: 0 | BX23: 0 | BY23: 0 | BZ23: 0 | CA23: 0 | CB23: 0 | CC23: 0 | CD23: 0 | CE23: 0 | CF23: 0 | CG23: 0 | CH23: 0 | CI23: 0 | CJ23: 0 | CK23: 0 | CL23: 0 | CM23: 0 | CN23: 0
A24: 20 | B24: Wilson Cristofani | C24: 108 | D24: 17 | E24: 19 | H24: 13 | I24: 23 | M24: 0 | Q24: 0 | U24: 0 | Y24: 0 | AC24: 0 | AG24: 0 | AK24: 0 | AN24: 4 | AO24: 35 | AR24: 6 | AS24: 31 | AW24: 0 | AZ24: 0 | BA24: 0 | BB24: 0 | BC24: 1 | BD24: 0 | BE24: 1 | BF24: 0 | BG24: 0 | BH24: 0 | BI24: 0 | BJ24: 0 | BK24: 0 | BL24: 1 | BM24: 0 | BN24: 0 | BO24: 0 | BP24: 1 | BQ24: 0 | BR24: 0 | BS24: 0 | BT24: 0 | BU24: 0 | BV24: 0 | BW24: 0 | BX24: 0 | BY24: 0 | BZ24: 0 | CA24: 0 | CB24: 0 | CC24: 0 | CD24: 0 | CE24: 0 | CF24: 0 | CG24: 0 | CH24: 0 | CI24: 0 | CJ24: 0 | CK24: 0 | CL24: 0 | CM24: 0 | CN24: 0
A25: 21 | B25: Ezequiel Netto | C25: 97 | D25: 15 | E25: 21 | H25: 21 | I25: 15 | L25: 17 | M25: 19 | Q25: 0 | U25: 0 | Y25: 0 | AB25: 14 | AC25: 22 | AG25: 0 | AJ25: 16 | AK25: 20 | AO25: 0 | AS25: 0 | AW25: 0 | AZ25: 0 | BA25: 0 | BB25: 0 | BC25: 0 | BD25: 0 | BE25: 0 | BF25: 0 | BG25: 0 | BH25: 0 | BI25: 0 | BJ25: 0 | BK25: 0 | BL25: 0 | BM25: 1 | BN25: 1 | BO25: 1 | BP25: 1 | BQ25: 0 | BR25: 0 | BS25: 0 | BT25: 1 | BU25: 0 | BV25: 0 | BW25: 0 | BX25: 0 | BY25: 0 | BZ25: 0 | CA25: 0 | CB25: 0 | CC25: 0 | CD25: 0 | CE25: 0 | CF25: 0 | CG25: 0 | CH25: 0 | CI25: 0 | CJ25: 0 | CK25: 0 | CL25: 0 | CM25: 0 | CN25: 0
A26: 22 | B26: Gerson Junior | C26: 81 | E26: 0 | H26: 3 | I26: 37 | L26: 13 | M26: 23 | P26: 15 | Q26: 21 | U26: 0 | Y26: 0 | AC26: 0 | AG26: 0 | AK26: 0 | AO26: 0 | AS26: 0 | AW26: 0 | AZ26: 0 | BA26: 0 | BB26: 1 | BC26: 0 | BD26: 0 | BE26: 0 | BF26: 0 | BG26: 0 | BH26: 0 | BI26: 0 | BJ26: 0 | BK26: 0 | BL26: 1 | BM26: 0 | BN26: 1 | BO26: 0 | BP26: 0 | BQ26: 0 | BR26: 0 | BS26: 0 | BT26: 0 | BU26: 0 | BV26: 0 | BW26: 0 | BX26: 0 | BY26: 0 | BZ26: 0 | CA26: 0 | CB26: 0 | CC26: 0 | CD26: 0 | CE26: 0 | CF26: 0 | CG26: 0 | CH26: 0 | CI26: 0 | CJ26: 0 | CK26: 0 | CL26: 0 | CM26: 0 | CN26: 0
A27: 23 | B27: Leandro Leite | C27: 77 | D27: 14 | E27: 22 | F27: 1 | H27: 9 | I27: 27 | L27: 9 | M27: 27 | Q27: 0 | U27: 0 | Y27: 0 | AC27: 0 | AG27: 0 | AK27: 0 | AO27: 0 | AS27: 0 | AW27: 0 | AZ27: 0 | BA27: 0 | BB27: 0 | BC27: 0 | BD27: 0 | BE27: 0 | BF27: 0 | BG27: 0 | BH27: 2 | BI27: 0 | BJ27: 0 | BK27: 0 | BL27: 0 | BM27: 1 | BN27: 0 | BO27: 0 | BP27: 0 | BQ27: 0 | BR27: 0 | BS27: 0 | BT27: 0 | BU27: 0 | BV27: 0 | BW27: 0 | BX27: 0 | BY27: 0 | BZ27: 0 | CA27: 0 | CB27: 0 | CC27: 0 | CD27: 0 | CE27: 0 | CF27: 0 | CG27: 0 | CH27: 0 | CI27: 0 | CJ27: 0 | CK27: 0 | CL27: 0 | CM27: 0 | CN27: 0
A28: 24 | B28: Felipe Franca | C28: 38 | E28: 0 | H28: 14 | I28: 22 | K28: SIM | L28: 20 | M28: 16 | Q28: 0 | U28: 0 | Y28: 0 | AC28: 0 | AG28: 0 | AK28: 0 | AO28: 0 | AS28: 0 | AW28: 0 | AZ28: 0 | BA28: 0 | BB28: 0 | BC28: 0 | BD28: 0 | BE28: 0 | BF28: 0 | BG28: 0 | BH28: 0 | BI28: 0 | BJ28: 0 | BK28: 0 | BL28: 0 | BM28: 1 | BN28: 0 | BO28: 0 | BP28: 0 | BQ28: 0 | BR28: 0 | BS28: 1 | BT28: 0 | BU28: 0 | BV28: 0 | BW28: 0 | BX28: 0 | BY28: 0 | BZ28: 0 | CA28: 0 | CB28: 0 | CC28: 0 | CD28: 0 | CE28: 0 | CF28: 0 | CG28: 0 | CH28: 0 | CI28: 0 | CJ28: 0 | CK28: 0 | CL28: 0 | CM28: 0 | CN28: 0
A29: 25 | B29: Gladystone Reis | C29: 35 | E29: 0 | H29: 19 | I29: 17 | L29: 18 | M29: 18 | Q29: 0 | U29: 0 | Y29: 0 | AC29: 0 | AG29: 0 | AK29: 0 | AO29: 0 | AS29: 0 | AW29: 0 | AZ29: 0 | BA29: 0 | BB29: 0 | BC29: 0 | BD29: 0 | BE29: 0 | BF29: 0 | BG29: 0 | BH29: 0 | BI29: 0 | BJ29: 0 | BK29: 0 | BL29: 0 | BM29: 0 | BN29: 0 | BO29: 0 | BP29: 0 | BQ29: 1 | BR29: 1 | BS29: 0 | BT29: 0 | BU29: 0 | BV29: 0 | BW29: 0 | BX29: 0 | BY29: 0 | BZ29: 0 | CA29: 0 | CB29: 0 | CC29: 0 | CD29: 0 | CE29: 0 | CF29: 0 | CG29: 0 | CH29: 0 | CI29: 0 | CJ29: 0 | CK29: 0 | CL29: 0 | CM29: 0 | CN29: 0
A30: 26 | B30: André Triginelli | C30: 22 | E30: 0 | I30: 0 | M30: 0 | P30: 14 | Q30: 22 | U30: 0 | Y30: 0 | AC30: 0 | AG30: 0 | AK30: 0 | AO30: 0 | AS30: 0 | AW30: 0 | AZ30: 0 | BA30: 0 | BB30: 0 | BC30: 0 | BD30: 0 | BE30: 0 | BF30: 0 | BG30: 0 | BH30: 0 | BI30: 0 | BJ30: 0 | BK30: 0 | BL30: 0 | BM30: 0 | BN30: 0 | BO30: 0 | BP30: 0 | BQ30: 0 | BR30: 0 | BS30: 0 | BT30: 0 | BU30: 0 | BV30: 0 | BW30: 0 | BX30: 0 | BY30: 0 | BZ30: 0 | CA30: 0 | CB30: 0 | CC30: 0 | CD30: 0 | CE30: 0 | CF30: 0 | CG30: 0 | CH30: 0 | CI30: 0 | CJ30: 0 | CK30: 0 | CL30: 0 | CM30: 0 | CN30: 0
A31: 27 | B31: Thiago Xavier | C31: 0 | E31: 0 | I31: 0 | M31: 0 | Q31: 0 | U31: 0 | Y31: 0 | AC31: 0 | AG31: 0 | AK31: 0 | AO31: 0 | AS31: 0 | AW31: 0 | AZ31: 0 | BA31: 0 | BB31: 0 | BC31: 0 | BD31: 0 | BE31: 0 | BF31: 0 | BG31: 0 | BH31: 0 | BI31: 0 | BJ31: 0 | BK31: 0 | BL31: 0 | BM31: 0 | BN31: 0 | BO31: 0 | BP31: 0 | BQ31: 0 | BR31: 0 | BS31: 0 | BT31: 0 | BU31: 0 | BV31: 0 | BW31: 0 | BX31: 0 | BY31: 0 | BZ31: 0 | CA31: 0 | CB31: 0 | CC31: 0 | CD31: 0 | CE31: 0 | CF31: 0 | CG31: 0 | CH31: 0 | CI31: 0 | CJ31: 0 | CK31: 0 | CL31: 0 | CM31: 0 | CN31: 0
A32: 28 | B32: Gabriel Ramos | C32: 0 | E32: 0 | I32: 0 | M32: 0 | Q32: 0 | U32: 0 | Y32: 0 | AC32: 0 | AG32: 0 | AK32: 0 | AO32: 0 | AS32: 0 | AW32: 0 | AZ32: 0 | BA32: 0 | BB32: 0 | BC32: 0 | BD32: 0 | BE32: 0 | BF32: 0 | BG32: 0 | BH32: 0 | BI32: 0 | BJ32: 0 | BK32: 0 | BL32: 0 | BM32: 0 | BN32: 0 | BO32: 0 | BP32: 0 | BQ32: 0 | BR32: 0 | BS32: 0 | BT32: 0 | BU32: 0 | BV32: 0 | BW32: 0 | BX32: 0 | BY32: 0 | BZ32: 0 | CA32: 0 | CB32: 0 | CC32: 0 | CD32: 0 | CE32: 0 | CF32: 0 | CG32: 0 | CH32: 0 | CI32: 0 | CJ32: 0 | CK32: 0 | CL32: 0 | CM32: 0 | CN32: 0
A33: 29 | C33: 0 | E33: 0 | I33: 0 | M33: 0 | Q33: 0 | U33: 0 | Y33: 0 | AC33: 0 | AG33: 0 | AK33: 0 | AO33: 0 | AS33: 0 | AW33: 0 | AZ33: 0 | BA33: 0 | BB33: 0 | BC33: 0 | BD33: 0 | BE33: 0 | BF33: 0 | BG33: 0 | BH33: 0 | BI33: 0 | BJ33: 0 | BK33: 0 | BL33: 0 | BM33: 0 | BN33: 0 | BO33: 0 | BP33: 0 | BQ33: 0 | BR33: 0 | BS33: 0 | BT33: 0 | BU33: 0 | BV33: 0 | BW33: 0 | BX33: 0 | BY33: 0 | BZ33: 0 | CA33: 0 | CB33: 0 | CC33: 0 | CD33: 0 | CE33: 0 | CF33: 0 | CG33: 0 | CH33: 0 | CI33: 0 | CJ33: 0 | CK33: 0 | CL33: 0 | CM33: 0 | CN33: 0
A34: 30 | C34: 0 | E34: 0 | I34: 0 | M34: 0 | Q34: 0 | U34: 0 | Y34: 0 | AC34: 0 | AG34: 0 | AK34: 0 | AO34: 0 | AS34: 0 | AW34: 0 | AZ34: 0 | BA34: 0 | BB34: 0 | BC34: 0 | BD34: 0 | BE34: 0 | BF34: 0 | BG34: 0 | BH34: 0 | BI34: 0 | BJ34: 0 | BK34: 0 | BL34: 0 | BM34: 0 | BN34: 0 | BO34: 0 | BP34: 0 | BQ34: 0 | BR34: 0 | BS34: 0 | BT34: 0 | BU34: 0 | BV34: 0 | BW34: 0 | BX34: 0 | BY34: 0 | BZ34: 0 | CA34: 0 | CB34: 0 | CC34: 0 | CD34: 0 | CE34: 0 | CF34: 0 | CG34: 0 | CH34: 0 | CI34: 0 | CJ34: 0 | CK34: 0 | CL34: 0 | CM34: 0 | CN34: 0
A35: 31 | C35: 0 | E35: 0 | I35: 0 | M35: 0 | Q35: 0 | U35: 0 | Y35: 0 | AC35: 0 | AG35: 0 | AK35: 0 | AO35: 0 | AS35: 0 | AW35: 0 | AZ35: 0 | BA35: 0 | BB35: 0 | BC35: 0 | BD35: 0 | BE35: 0 | BF35: 0 | BG35: 0 | BH35: 0 | BI35: 0 | BJ35: 0 | BK35: 0 | BL35: 0 | BM35: 0 | BN35: 0 | BO35: 0 | BP35: 0 | BQ35: 0 | BR35: 0 | BS35: 0 | BT35: 0 | BU35: 0 | BV35: 0 | BW35: 0 | BX35: 0 | BY35: 0 | BZ35: 0 | CA35: 0 | CB35: 0 | CC35: 0 | CD35: 0 | CE35: 0 | CF35: 0 | CG35: 0 | CH35: 0 | CI35: 0 | CJ35: 0 | CK35: 0 | CL35: 0 | CM35: 0 | CN35: 0
A36: 32 | C36: 0 | E36: 0 | I36: 0 | M36: 0 | Q36: 0 | U36: 0 | Y36: 0 | AC36: 0 | AG36: 0 | AK36: 0 | AO36: 0 | AS36: 0 | AW36: 0 | AZ36: 0 | BA36: 0 | BB36: 0 | BC36: 0 | BD36: 0 | BE36: 0 | BF36: 0 | BG36: 0 | BH36: 0 | BI36: 0 | BJ36: 0 | BK36: 0 | BL36: 0 | BM36: 0 | BN36: 0 | BO36: 0 | BP36: 0 | BQ36: 0 | BR36: 0 | BS36: 0 | BT36: 0 | BU36: 0 | BV36: 0 | BW36: 0 | BX36: 0 | BY36: 0 | BZ36: 0 | CA36: 0 | CB36: 0 | CC36: 0 | CD36: 0 | CE36: 0 | CF36: 0 | CG36: 0 | CH36: 0 | CI36: 0 | CJ36: 0 | CK36: 0 | CL36: 0 | CM36: 0 | CN36: 0
A37: 33 | C37: 0 | E37: 0 | I37: 0 | M37: 0 | Q37: 0 | U37: 0 | Y37: 0 | AC37: 0 | AG37: 0 | AK37: 0 | AO37: 0 | AS37: 0 | AW37: 0 | AZ37: 0 | BA37: 0 | BB37: 0 | BC37: 0 | BD37: 0 | BE37: 0 | BF37: 0 | BG37: 0 | BH37: 0 | BI37: 0 | BJ37: 0 | BK37: 0 | BL37: 0 | BM37: 0 | BN37: 0 | BO37: 0 | BP37: 0 | BQ37: 0 | BR37: 0 | BS37: 0 | BT37: 0 | BU37: 0 | BV37: 0 | BW37: 0 | BX37: 0 | BY37: 0 | BZ37: 0 | CA37: 0 | CB37: 0 | CC37: 0 | CD37: 0 | CE37: 0 | CF37: 0 | CG37: 0 | CH37: 0 | CI37: 0 | CJ37: 0 | CK37: 0 | CL37: 0 | CM37: 0 | CN37: 0
A38: 34 | C38: 0 | E38: 0 | I38: 0 | M38: 0 | Q38: 0 | U38: 0 | Y38: 0 | AC38: 0 | AG38: 0 | AK38: 0 | AO38: 0 | AS38: 0 | AW38: 0 | AZ38: 0 | BA38: 0 | BB38: 0 | BC38: 0 | BD38: 0 | BE38: 0 | BF38: 0 | BG38: 0 | BH38: 0 | BI38: 0 | BJ38: 0 | BK38: 0 | BL38: 0 | BM38: 0 | BN38: 0 | BO38: 0 | BP38: 0 | BQ38: 0 | BR38: 0 | BS38: 0 | BT38: 0 | BU38: 0 | BV38: 0 | BW38: 0 | BX38: 0 | BY38: 0 | BZ38: 0 | CA38: 0 | CB38: 0 | CC38: 0 | CD38: 0 | CE38: 0 | CF38: 0 | CG38: 0 | CH38: 0 | CI38: 0 | CJ38: 0 | CK38: 0 | CL38: 0 | CM38: 0 | CN38: 0
A39: 35 | C39: 0 | E39: 0 | I39: 0 | M39: 0 | Q39: 0 | U39: 0 | Y39: 0 | AC39: 0 | AG39: 0 | AK39: 0 | AO39: 0 | AS39: 0 | AW39: 0 | AZ39: 0 | BA39: 0 | BB39: 0 | BC39: 0 | BD39: 0 | BE39: 0 | BF39: 0 | BG39: 0 | BH39: 0 | BI39: 0 | BJ39: 0 | BK39: 0 | BL39: 0 | BM39: 0 | BN39: 0 | BO39: 0 | BP39: 0 | BQ39: 0 | BR39: 0 | BS39: 0 | BT39: 0 | BU39: 0 | BV39: 0 | BW39: 0 | BX39: 0 | BY39: 0 | BZ39: 0 | CA39: 0 | CB39: 0 | CC39: 0 | CD39: 0 | CE39: 0 | CF39: 0 | CG39: 0 | CH39: 0 | CI39: 0 | CJ39: 0 | CK39: 0 | CL39: 0 | CM39: 0 | CN39: 0
A40: 36 | C40: 0 | E40: 0 | I40: 0 | M40: 0 | Q40: 0 | U40: 0 | Y40: 0 | AC40: 0 | AG40: 0 | AK40: 0 | AO40: 0 | AS40: 0 | AW40: 0 | AZ40: 0 | BA40: 0 | BB40: 0 | BC40: 0 | BD40: 0 | BE40: 0 | BF40: 0 | BG40: 0 | BH40: 0 | BI40: 0 | BJ40: 0 | BK40: 0 | BL40: 0 | BM40: 0 | BN40: 0 | BO40: 0 | BP40: 0 | BQ40: 0 | BR40: 0 | BS40: 0 | BT40: 0 | BU40: 0 | BV40: 0 | BW40: 0 | BX40: 0 | BY40: 0 | BZ40: 0 | CA40: 0 | CB40: 0 | CC40: 0 | CD40: 0 | CE40: 0 | CF40: 0 | CG40: 0 | CH40: 0 | CI40: 0 | CJ40: 0 | CK40: 0 | CL40: 0 | CM40: 0 | CN40: 0
A41: 37 | C41: 0 | E41: 0 | I41: 0 | M41: 0 | Q41: 0 | U41: 0 | Y41: 0 | AC41: 0 | AG41: 0 | AK41: 0 | AO41: 0 | AS41: 0 | AW41: 0 | AZ41: 0 | BA41: 0 | BB41: 0 | BC41: 0 | BD41: 0 | BE41: 0 | BF41: 0 | BG41: 0 | BH41: 0 | BI41: 0 | BJ41: 0 | BK41: 0 | BL41: 0 | BM41: 0 | BN41: 0 | BO41: 0 | BP41: 0 | BQ41: 0 | BR41: 0 | BS41: 0 | BT41: 0 | BU41: 0 | BV41: 0 | BW41: 0 | BX41: 0 | BY41: 0 | BZ41: 0 | CA41: 0 | CB41: 0 | CC41: 0 | CD41: 0 | CE41: 0 | CF41: 0 | CG41: 0 | CH41: 0 | CI41: 0 | CJ41: 0 | CK41: 0 | CL41: 0 | CM41: 0 | CN41: 0
A42: 38 | C42: 0 | E42: 0 | I42: 0 | M42: 0 | Q42: 0 | U42: 0 | Y42: 0 | AC42: 0 | AG42: 0 | AK42: 0 | AO42: 0 | AS42: 0 | AW42: 0 | AZ42: 0 | BA42: 0 | BB42: 0 | BC42: 0 | BD42: 0 | BE42: 0 | BF42: 0 | BG42: 0 | BH42: 0 | BI42: 0 | BJ42: 0 | BK42: 0 | BL42: 0 | BM42: 0 | BN42: 0 | BO42: 0 | BP42: 0 | BQ42: 0 | BR42: 0 | BS42: 0 | BT42: 0 | BU42: 0 | BV42: 0 | BW42: 0 | BX42: 0 | BY42: 0 | BZ42: 0 | CA42: 0 | CB42: 0 | CC42: 0 | CD42: 0 | CE42: 0 | CF42: 0 | CG42: 0 | CH42: 0 | CI42: 0 | CJ42: 0 | CK42: 0 | CL42: 0 | CM42: 0 | CN42: 0
A43: 39 | C43: 0 | E43: 0 | I43: 0 | M43: 0 | Q43: 0 | U43: 0 | Y43: 0 | AC43: 0 | AG43: 0 | AK43: 0 | AO43: 0 | AS43: 0 | AW43: 0 | AZ43: 0 | BA43: 0 | BB43: 0 | BC43: 0 | BD43: 0 | BE43: 0 | BF43: 0 | BG43: 0 | BH43: 0 | BI43: 0 | BJ43: 0 | BK43: 0 | BL43: 0 | BM43: 0 | BN43: 0 | BO43: 0 | BP43: 0 | BQ43: 0 | BR43: 0 | BS43: 0 | BT43: 0 | BU43: 0 | BV43: 0 | BW43: 0 | BX43: 0 | BY43: 0 | BZ43: 0 | CA43: 0 | CB43: 0 | CC43: 0 | CD43: 0 | CE43: 0 | CF43: 0 | CG43: 0 | CH43: 0 | CI43: 0 | CJ43: 0 | CK43: 0 | CL43: 0 | CM43: 0 | CN43: 0
A44: 40 | C44: 0 | E44: 0 | I44: 0 | M44: 0 | Q44: 0 | U44: 0 | Y44: 0 | AC44: 0 | AG44: 0 | AK44: 0 | AO44: 0 | AS44: 0 | AW44: 0 | AZ44: 0 | BA44: 0 | BB44: 0 | BC44: 0 | BD44: 0 | BE44: 0 | BF44: 0 | BG44: 0 | BH44: 0 | BI44: 0 | BJ44: 0 | BK44: 0 | BL44: 0 | BM44: 0 | BN44: 0 | BO44: 0 | BP44: 0 | BQ44: 0 | BR44: 0 | BS44: 0 | BT44: 0 | BU44: 0 | BV44: 0 | BW44: 0 | BX44: 0 | BY44: 0 | BZ44: 0 | CA44: 0 | CB44: 0 | CC44: 0 | CD44: 0 | CE44: 0 | CF44: 0 | CG44: 0 | CH44: 0 | CI44: 0 | CJ44: 0 | CK44: 0 | CL44: 0 | CM44: 0 | CN44: 0
A45: 41 | C45: 0 | E45: 0 | I45: 0 | M45: 0 | Q45: 0 | U45: 0 | Y45: 0 | AC45: 0 | AG45: 0 | AK45: 0 | AO45: 0 | AS45: 0 | AW45: 0 | AZ45: 0 | BA45: 0 | BB45: 0 | BC45: 0 | BD45: 0 | BE45: 0 | BF45: 0 | BG45: 0 | BH45: 0 | BI45: 0 | BJ45: 0 | BK45: 0 | BL45: 0 | BM45: 0 | BN45: 0 | BO45: 0 | BP45: 0 | BQ45: 0 | BR45: 0 | BS45: 0 | BT45: 0 | BU45: 0 | BV45: 0 | BW45: 0 | BX45: 0 | BY45: 0 | BZ45: 0 | CA45: 0 | CB45: 0 | CC45: 0 | CD45: 0 | CE45: 0 | CF45: 0 | CG45: 0 | CH45: 0 | CI45: 0 | CJ45: 0 | CK45: 0 | CL45: 0 | CM45: 0 | CN45: 0
A46: 42 | C46: 0 | E46: 0 | I46: 0 | M46: 0 | Q46: 0 | U46: 0 | Y46: 0 | AC46: 0 | AG46: 0 | AK46: 0 | AO46: 0 | AS46: 0 | AW46: 0 | AZ46: 0 | BA46: 0 | BB46: 0 | BC46: 0 | BD46: 0 | BE46: 0 | BF46: 0 | BG46: 0 | BH46: 0 | BI46: 0 | BJ46: 0 | BK46: 0 | BL46: 0 | BM46: 0 | BN46: 0 | BO46: 0 | BP46: 0 | BQ46: 0 | BR46: 0 | BS46: 0 | BT46: 0 | BU46: 0 | BV46: 0 | BW46: 0 | BX46: 0 | BY46: 0 | BZ46: 0 | CA46: 0 | CB46: 0 | CC46: 0 | CD46: 0 | CE46: 0 | CF46: 0 | CG46: 0 | CH46: 0 | CI46: 0 | CJ46: 0 | CK46: 0 | CL46: 0 | CM46: 0 | CN46: 0
A47: 43 | C47: 0 | E47: 0 | I47: 0 | M47: 0 | Q47: 0 | U47: 0 | Y47: 0 | AC47: 0 | AG47: 0 | AK47: 0 | AO47: 0 | AS47: 0 | AW47: 0 | AZ47: 0 | BA47: 0 | BB47: 0 | BC47: 0 | BD47: 0 | BE47: 0 | BF47: 0 | BG47: 0 | BH47: 0 | BI47: 0 | BJ47: 0 | BK47: 0 | BL47: 0 | BM47: 0 | BN47: 0 | BO47: 0 | BP47: 0 | BQ47: 0 | BR47: 0 | BS47: 0 | BT47: 0 | BU47: 0 | BV47: 0 | BW47: 0 | BX47: 0 | BY47: 0 | BZ47: 0 | CA47: 0 | CB47: 0 | CC47: 0 | CD47: 0 | CE47: 0 | CF47: 0 | CG47: 0 | CH47: 0 | CI47: 0 | CJ47: 0 | CK47: 0 | CL47: 0 | CM47: 0 | CN47: 0
A48: 44 | C48: 0 | E48: 0 | I48: 0 | M48: 0 | Q48: 0 | U48: 0 | Y48: 0 | AC48: 0 | AG48: 0 | AK48: 0 | AO48: 0 | AS48: 0 | AW48: 0 | AZ48: 0 | BA48: 0 | BB48: 0 | BC48: 0 | BD48: 0 | BE48: 0 | BF48: 0 | BG48: 0 | BH48: 0 | BI48: 0 | BJ48: 0 | BK48: 0 | BL48: 0 | BM48: 0 | BN48: 0 | BO48: 0 | BP48: 0 | BQ48: 0 | BR48: 0 | BS48: 0 | BT48: 0 | BU48: 0 | BV48: 0 | BW48: 0 | BX48: 0 | BY48: 0 | BZ48: 0 | CA48: 0 | CB48: 0 | CC48: 0 | CD48: 0 | CE48: 0 | CF48: 0 | CG48: 0 | CH48: 0 | CI48: 0 | CJ48: 0 | CK48: 0 | CL48: 0 | CM48: 0 | CN48: 0
A49: 45 | C49: 0 | E49: 0 | I49: 0 | M49: 0 | Q49: 0 | U49: 0 | Y49: 0 | AC49: 0 | AG49: 0 | AK49: 0 | AO49: 0 | AS49: 0 | AW49: 0 | AZ49: 0 | BA49: 0 | BB49: 0 | BC49: 0 | BD49: 0 | BE49: 0 | BF49: 0 | BG49: 0 | BH49: 0 | BI49: 0 | BJ49: 0 | BK49: 0 | BL49: 0 | BM49: 0 | BN49: 0 | BO49: 0 | BP49: 0 | BQ49: 0 | BR49: 0 | BS49: 0 | BT49: 0 | BU49: 0 | BV49: 0 | BW49: 0 | BX49: 0 | BY49: 0 | BZ49: 0 | CA49: 0 | CB49: 0 | CC49: 0 | CD49: 0 | CE49: 0 | CF49: 0 | CG49: 0 | CH49: 0 | CI49: 0 | CJ49: 0 | CK49: 0 | CL49: 0 | CM49: 0 | CN49: 0

Sheet Class. elimin. 2 piores res
A1: 2022 | E1: OK | I1: OK | M1: OK | Q1: OK | U1: OK | Y1: OK | AC1: OK | AG1: OK | AK1: OK | AO1: OK | AS1: OK | AW1: OK
D2: ETAPA 2 | H2: ETAPA 3 | L2: ETAPA 1 | P2: ETAPA 4 | T2: ETAPA 5 | X2: ETAPA 6 | AB2: ETAPA 7 | AF2: ETAPA 8 | AJ2: ETAPA 9 | AN2: ETAPA 10 | AR2: ETAPA 11 | AV2: ETAPA 12
D3: SUPER | H3: LIGHT | L3: LIGHT | P3: SUPER | T3: LIGHT | X3: SUPER | AB3: SUPER | AJ3: SUPER | AN3: LIGHT | AR3: SUPER | AV3: LIGHT
B4: Nome do (a) Piloto (a) | C4: Pontuação Geral | D4: Posição | E4: Pontos | F4: Bônus | G4: Penalidade | H4: Posição | I4: Pontos | J4: Bônus | K4: Penalidade | L4: Posição | M4: Pontos | N4: Bônus | O4: Penalidade | P4: Posição | Q4: Pontos | R4: Bônus | S4: Penalidade | T4: Posição | U4: Pontos | V4: Bônus | W4: Penalidade | X4: Posição | Y4: Pontos | Z4: Bônus | AA4: Penalidade | AB4: Posição | AC4: Pontos | AD4: Bônus | AE4: Penalidade | AF4: Posição | AG4: Pontos | AH4: Bônus | AI4: Penalidade | AJ4: Posição | AK4: Pontos | AL4: Bônus | AM4: Penalidade | AN4: Posição | AO4: Pontos | AP4: Bônus | AQ4: Penalidade | AR4: Posição | AS4: Pontos | AT4: Bônus | AU4: Penalidade | AV4: Posição | AW4: Pontos | AX4: Bônus | AY4: Penalidade | AZ4: 1º LUGAR | BA4: 2º LUGAR | BB4: 3º LUGAR | BC4: 4º LUGAR | BD4: 5º LUGAR | BE4: 6º LUGAR | BF4: 7º LUGAR | BG4: 8º LUGAR | BH4: 9º LUGAR | BI4: 10º LUGAR | BJ4: 11º LUGAR | BK4: 12º LUGAR | BL4: 13º LUGAR | BM4: 14º LUGAR | BN4: 15º LUGAR | BO4: 16º LUGAR | BP4: 17º LUGAR | BQ4: 18º LUGAR | BR4: 19º LUGAR | BS4: 20º LUGAR | BT4: 21º LUGAR | BU4: 22º LUGAR | BV4: 23º LUGAR | BW4: 24º LUGAR | BX4: 25º LUGAR | BY4: 26º LUGAR | BZ4: 27º LUGAR | CA4: 28º LUGAR | CB4: 29º LUGAR | CC4: 30º LUGAR | CD4: 31º LUGAR | CE4: 32º LUGAR | CF4: 33º LUGAR | CG4: 34º LUGAR | CH4: 35º LUGAR | CI4: 36º LUGAR | CJ4: 37º LUGAR | CK4: 38º LUGAR | CL4: 39º LUGAR | CM4: 40º LUGAR | CN4: 41º LUGAR
A5: 1 | B5: Fernando Mota | C5: 397 | D5: 2 | E5: 40 | H5: 2 | I5: 40 | L5: 21 | M5: 15* | P5: 3 | Q5: 37 | T5: 1 | U5: 45 | X5: 1 | Y5: 45 | AB5: 4 | AC5: 35 | AF5: 11 | AG5: 25* | AJ5: 3 | AK5: 37 | AN5: 1 | AO5: 45 | AR5: 2 | AS5: 40 | AV5: 5 | AW5: 33 | AZ5: 3 | BA5: 3 | BB5: 2 | BC5: 1 | BD5: 1 | BE5: 0 | BF5: 0 | BG5: 0 | BH5: 0 | BI5: 0 | BJ5: 1 | BK5: 0 | BL5: 0 | BM5: 0 | BN5: 0 | BO5: 0 | BP5: 0 | BQ5: 0 | BR5: 0 | BS5: 0 | BT5: 1 | BU5: 0 | BV5: 0 | BW5: 0 | BX5: 0 | BY5: 0 | BZ5: 0 | CA5: 0 | CB5: 0 | CC5: 0 | CD5: 0 | CE5: 0 | CF5: 0 | CG5: 0 | CH5: 0 | CI5: 0 | CJ5: 0 | CK5: 0 | CL5: 0 | CM5: 0 | CN5: 0
A6: 2 | B6: Anderson Teixeira | C6: 382 | D6: 8 | E6: 28* | H6: 17 | I6: 19* | L6: 3 | M6: 37 | P6: 1 | Q6: 45 | T6: 2 | U6: 40 | X6: 2 | Y6: 40 | AB6: 3 | AC6: 37 | AF6: 3 | AG6: 37 | AJ6: 2 | AK6: 40 | AN6: 3 | AO6: 37 | AR6: 13 | AS6: 23 | AT6: 1 | AU6: SIM | AV6: 1 | AW6: 45 | AZ6: 2 | BA6: 3 | BB6: 4 | BC6: 0 | BD6: 0 | BE6: 0 | BF6: 0 | BG6: 1 | BH6: 0 | BI6: 0 | BJ6: 0 | BK6: 0 | BL6: 1 | BM6: 0 | BN6: 0 | BO6: 0 | BP6: 1 | BQ6: 0 | BR6: 0 | BS6: 0 | BT6: 0 | BU6: 0 | BV6: 0 | BW6: 0 | BX6: 0 | BY6: 0 | BZ6: 0 | CA6: 0 | CB6: 0 | CC6: 0 | CD6: 0 | CE6: 0 | CF6: 0 | CG6: 0 | CH6: 0 | CI6: 0 | CJ6: 0 | CK6: 0 | CL6: 0 | CM6: 0 | CN6: 0
A7: 3 | B7: Alexandre Melillo | C7: 369 | D7: 4 | E7: 35 | H7: 22 | I7: 14* | L7: 1 | M7: 45 | P7: 8 | Q7: 28 | T7: 3 | U7: 37 | X7: 12 | Y7: 24* | AB7: 1 | AC7: 45 | AD7: 1 | AF7: 1 | AG7: 45 | AJ7: 4 | AK7: 35 | AN7: 11 | AO7: 25 | AP7: 1 | AR7: 3 | AS7: 37 | AV7: 4 | AW7: 35 | AZ7: 3 | BA7: 0 | BB7: 2 | BC7: 3 | BD7: 0 | BE7: 0 | BF7: 0 | BG7: 1 | BH7: 0 | BI7: 0 | BJ7: 1 | BK7: 1 | BL7: 0 | BM7: 0 | BN7: 0 | BO7: 0 | BP7: 0 | BQ7: 0 | BR7: 0 | BS7: 0 | BT7: 0 | BU7: 1 | BV7: 0 | BW7: 0 | BX7: 0 | BY7: 0 | BZ7: 0 | CA7: 0 | CB7: 0 | CC7: 0 | CD7: 0 | CE7: 0 | CF7: 0 | CG7: 0 | CH7: 0 | CI7: 0 | CJ7: 0 | CK7: 0 | CL7: 0 | CM7: 0 | CN7: 0
A8: 4 | B8: Joanes Gouvea | C8: 351 | D8: 7 | E8: 29 | H8: 24 | I8: 12 | M8: 0* | P8: 5 | Q8: 33 | U8: 0* | X8: 3 | Y8: 37 | Z8: 1 | AB8: 5 | AC8: 33 | AF8: 2 | AG8: 40 | AH8: 1 | AJ8: 1 | AK8: 45 | AL8: 1 | AN8: 5 | AO8: 33 | AR8: 1 | AS8: 45 | AV8: 2 | AW8: 40 | AX8: 1 | AZ8: 2 | BA8: 2 | BB8: 1 | BC8: 0 | BD8: 3 | BE8: 0 | BF8: 1 | BG8: 0 | BH8: 0 | BI8: 0 | BJ8: 0 | BK8: 0 | BL8: 0 | BM8: 0 | BN8: 0 | BO8: 0 | BP8: 0 | BQ8: 0 | BR8: 0 | BS8: 0 | BT8: 0 | BU8: 0 | BV8: 0 | BW8: 1 | BX8: 0 | BY8: 0 | BZ8: 0 | CA8: 0 | CB8: 0 | CC8: 0 | CD8: 0 | CE8: 0 | CF8: 0 | CG8: 0 | CH8: 0 | CI8: 0 | CJ8: 0 | CK8: 0 | CL8: 0 | CM8: 0 | CN8: 0
A9: 5 | B9: Lúcio Chequer | C9: 344 | D9: 5 | E9: 33 | H9: 1 | I9: 45 | L9: 5 | M9: 33 | N9: 1 | P9: 17 | Q9: 19* | T9: 4 | U9: 35 | X9: 5 | Y9: 33 | AB9: 6 | AC9: 31 | AF9: 6 | AG9: 31 | AJ9: 5 | AK9: 33 | AN9: 2 | AO9: 40 | AR9: 7 | AS9: 29 | AV9: 10 | AW9: 26* | AZ9: 1 | BA9: 1 | BB9: 0 | BC9: 1 | BD9: 4 | BE9: 2 | BF9: 1 | BG9: 0 | BH9: 0 | BI9: 1 | BJ9: 0 | BK9: 0 | BL9: 0 | BM9: 0 | BN9: 0 | BO9: 0 | BP9: 1 | BQ9: 0 | BR9: 0 | BS9: 0 | BT9: 0 | BU9: 0 | BV9: 0 | BW9: 0 | BX9: 0 | BY9: 0 | BZ9: 0 | CA9: 0 | CB9: 0 | CC9: 0 | CD9: 0 | CE9: 0 | CF9: 0 | CG9: 0 | CH9: 0 | CI9: 0 | CJ9: 0 | CK9: 0 | CL9: 0 | CM9: 0 | CN9: 0
A10: 6 | B10: Luciano Brandão | C10: 334 | D10: 1 | E10: 45 | H10: 10 | I10: 26* | L10: 6 | M10: 31 | P10: 2 | Q10: 40 | T10: 8 | U10: 28 | X10: 4 | Y10: 35 | AB10: 7 | AC10: 29 | AF10: 8 | AG10: 28 | AJ10: 10 | AK10: 26* | AN10: 10 | AO10: 26 | AR10: 4 | AS10: 35 | AV10: 3 | AW10: 37 | AZ10: 1 | BA10: 1 | BB10: 1 | BC10: 2 | BD10: 0 | BE10: 1 | BF10: 1 | BG10: 2 | BH10: 0 | BI10: 3 | BJ10: 0 | BK10: 0 | BL10: 0 | BM10: 0 | BN10: 0 | BO10: 0 | BP10: 0 | BQ10: 0 | BR10: 0 | BS10: 0 | BT10: 0 | BU10: 0 | BV10: 0 | BW10: 0 | BX10: 0 | BY10: 0 | BZ10: 0 | CA10: 0 | CB10: 0 | CC10: 0 | CD10: 0 | CE10: 0 | CF10: 0 | CG10: 0 | CH10: 0 | CI10: 0 | CJ10: 0 | CK10: 0 | CL10: 0 | CM10: 0 | CN10: 0
A11: 7 | B11: Leonardo Mattioda | C11: 287 | D11: 13 | E11: 23 | H11: 7 | I11: 29 | L11: 15 | M11: 21* | P11: 13 | Q11: 23 | U11: 0* | X11: 6 | Y11: 31 | AB11: 8 | AC11: 28 | AF11: 5 | AG11: 33 | AJ11: 6 | AK11: 31 | AN11: 9 | AO11: 27 | AR11: 5 | AS11: 33 | AV11: 7 | AW11: 29 | AZ11: 0 | BA11: 0 | BB11: 0 | BC11: 0 | BD11: 2 | BE11: 2 | BF11: 2 | BG11: 1 | BH11: 1 | BI11: 0 | BJ11: 0 | BK11: 0 | BL11: 2 | BM11: 0 | BN11: 1 | BO11: 0 | BP11: 0 | BQ11: 0 | BR11: 0 | BS11: 0 | BT11: 0 | BU11: 0 | BV11: 0 | BW11: 0 | BX11: 0 | BY11: 0 | BZ11: 0 | CA11: 0 | CB11: 0 | CC11: 0 | CD11: 0 | CE11: 0 | CF11: 0 | CG11: 0 | CH11: 0 | CI11: 0 | CJ11: 0 | CK11: 0 | CL11: 0 | CM11: 0 | CN11: 0
A12: 8 | B12: Vitor Diniz | C12: 254 | D12: 11 | E12: 25 | H12: 12 | I12: 24 | L12: 8 | M12: 28 | P12: 16 | Q12: 20* | T12: 19 | U12: 17 | W12: SIM | X12: 10 | Y12: 26 | AC12: 0* | AF12: 9 | AG12: 27 | AJ12: 13 | AK12: 23 | AN12: 8 | AO12: 28 | AR12: 8 | AS12: 28 | AV12: 8 | AW12: 28 | AZ12: 0 | BA12: 0 | BB12: 0 | BC12: 0 | BD12: 0 | BE12: 0 | BF12: 0 | BG12: 4 | BH12: 1 | BI12: 1 | BJ12: 1 | BK12: 1 | BL12: 1 | BM12: 0 | BN12: 0 | BO12: 1 | BP12: 0 | BQ12: 0 | BR12: 1 | BS12: 0 | BT12: 0 | BU12: 0 | BV12: 0 | BW12: 0 | BX12: 0 | BY12: 0 | BZ12: 0 | CA12: 0 | CB12: 0 | CC12: 0 | CD12: 0 | CE12: 0 | CF12: 0 | CG12: 0 | CH12: 0 | CI12: 0 | CJ12: 0 | CK12: 0 | CL12: 0 | CM12: 0 | CN12: 0
A13: 9 | B13: Gladson Souza | C13: 243 | D13: 16 | E13: 20 | H13: 20 | I13: 16* | L13: 11 | M13: 25 | P13: 20 | Q13: 16* | T13: 12 | U13: 24 | X13: 11 | Y13: 25 | AB13: 10 | AC13: 26 | AF13: 14 | AG13: 22 | AJ13: 15 | AK13: 21 | AN13: 14 | AO13: 22 | AR13: 9 | AS13: 27 | AV13: 6 | AW13: 31 | AZ13: 0 | BA13: 0 | BB13: 0 | BC13: 0 | BD13: 0 | BE13: 1 | BF13: 0 | BG13: 0 | BH13: 1 | BI13: 1 | BJ13: 2 | BK13: 1 | BL13: 0 | BM13: 2 | BN13: 1 | BO13: 1 | BP13: 0 | BQ13: 0 | BR13: 0 | BS13: 2 | BT13: 0 | BU13: 0 | BV13: 0 | BW13: 0 | BX13: 0 | BY13: 0 | BZ13: 0 | CA13: 0 | CB13: 0 | CC13: 0 | CD13: 0 | CE13: 0 | CF13: 0 | CG13: 0 | CH13: 0 | CI13: 0 | CJ13: 0 | CK13: 0 | CL13: 0 | CM13: 0 | CN13: 0
A14: 10 | B14: Agostinho Neves | C14: 229 | D14: 3 | E14: 37 | H14: 15 | I14: 21 | L14: 4 | M14: 35 | P14: 4 | Q14: 35 | R14: 1 | T14: 5 | U14: 33 | Y14: 0* | AB14: 2 | AC14: 40 | AG14: 0* | AJ14: 9 | AK14: 27 | AO14: 0 | AR14: 0 | AS14: 0 | AU14: SIM | AW14: 0 | AZ14: 0 | BA14: 1 | BB14: 1 | BC14: 2 | BD14: 1 | BE14: 0 | BF14: 0 | BG14: 0 | BH14: 1 | BI14: 0 | BJ14: 0 | BK14: 0 | BL14: 0 | BM14: 0 | BN14: 1 | BO14: 0 | BP14: 0 | BQ14: 0 | BR14: 0 | BS14: 0 | BT14: 0 | BU14: 0 | BV14: 0 | BW14: 0 | BX14: 0 | BY14: 0 | BZ14: 0 | CA14: 0 | CB14: 0 | CC14: 0 | CD14: 0 | CE14: 0 | CF14: 0 | CG14: 0 | CH14: 0 | CI14: 0 | CJ14: 0 | CK14: 0 | CL14: 0 | CM14: 0 | CN14: 0
A15: 11 | B15: Arthur Santiago | C15: 220 | E15: 0* | H15: 5 | I15: 33 | J15: 1 | L15: 19 | M15: 17 | P15: 6 | Q15: 31 | T15: 6 | U15: 31 | X15: 8 | Y15: 28 | AB15: 15 | AC15: 21 | AF15: 7 | AG15: 29 | AK15: 0* | AN15: 7 | AO15: 29 | AS15: 0 | AW15: 0 | AZ15: 0 | BA15: 0 | BB15: 0 | BC15: 0 | BD15: 1 | BE15: 2 | BF15: 2 | BG15: 1 | BH15: 0 | BI15: 0 | BJ15: 0 | BK15: 0 | BL15: 0 | BM15: 0 | BN15: 1 | BO15: 0 | BP15: 0 | BQ15: 0 | BR15: 1 | BS15: 0 | BT15: 0 | BU15: 0 | BV15: 0 | BW15: 0 | BX15: 0 | BY15: 0 | BZ15: 0 | CA15: 0 | CB15: 0 | CC15: 0 | CD15: 0 | CE15: 0 | CF15: 0 | CG15: 0 | CH15: 0 | CI15: 0 | CJ15: 0 | CK15: 0 | CL15: 0 | CM15: 0 | CN15: 0
A16: 12 | B16: Aparecido Arantes | C16: 219 | E16: 0* | H16: 6 | I16: 31 | L16: 2 | M16: 40 | P16: 21 | Q16: 15 | U16: 0* | X16: 7 | Y16: 29 | AC16: 0 | AF16: 10 | AG16: 26 | AJ16: 8 | AK16: 28 | AN16: 13 | AO16: 23 | AS16: 0 | AV16: 9 | AW16: 27 | AZ16: 0 | BA16: 1 | BB16: 0 | BC16: 0 | BD16: 0 | BE16: 1 | BF16: 1 | BG16: 1 | BH16: 1 | BI16: 1 | BJ16: 0 | BK16: 0 | BL16: 1 | BM16: 0 | BN16: 0 | BO16: 0 | BP16: 0 | BQ16: 0 | BR16: 0 | BS16: 0 | BT16: 1 | BU16: 0 | BV16: 0 | BW16: 0 | BX16: 0 | BY16: 0 | BZ16: 0 | CA16: 0 | CB16: 0 | CC16: 0 | CD16: 0 | CE16: 0 | CF16: 0 | CG16: 0 | CH16: 0 | CI16: 0 | CJ16: 0 | CK16: 0 | CL16: 0 | CM16: 0 | CN16: 0
A17: 13 | B17: Emerson Guimarães | C17: 218 | D17: 9 | E17: 27 | H17: 4 | I17: 35 | L17: 14 | M17: 22 | P17: 11 | Q17: 25 | T17: 7 | U17: 29 | Y17: 0* | AB17: 12 | AC17: 24 | AG17: 0* | AJ17: 11 | AK17: 25 | AN17: 6 | AO17: 31 | AS17: 0 | AW17: 0 | AZ17: 0 | BA17: 0 | BB17: 0 | BC17: 1 | BD17: 0 | BE17: 1 | BF17: 1 | BG17: 0 | BH17: 1 | BI17: 0 | BJ17: 2 | BK17: 1 | BL17: 0 | BM17: 1 | BN17: 0 | BO17: 0 | BP17: 0 | BQ17: 0 | BR17: 0 | BS17: 0 | BT17: 0 | BU17: 0 | BV17: 0 | BW17: 0 | BX17: 0 | BY17: 0 | BZ17: 0 | CA17: 0 | CB17: 0 | CC17: 0 | CD17: 0 | CE17: 0 | CF17: 0 | CG17: 0 | CH17: 0 | CI17: 0 | CJ17: 0 | CK17: 0 | CL17: 0 | CM17: 0 | CN17: 0
A18: 14 | B18: Leodegario Junior | C18: 180 | E18: 0* | H18: 23 | I18: 13 | L18: 10 | M18: 26 | P18: 18 | Q18: 18 | T18: 10 | U18: 26 | X18: 14 | Y18: 22 | AB18: 9 | AC18: 27 | AF18: 12 | AG18: 24 | AK18: 0* | AN18: 12 | AO18: 24 | AS18: 0 | AW18: 0 | AZ18: 0 | BA18: 0 | BB18: 0 | BC18: 0 | BD18: 0 | BE18: 0 | BF18: 0 | BG18: 0 | BH18: 1 | BI18: 2 | BJ18: 0 | BK18: 2 | BL18: 0 | BM18: 1 | BN18: 0 | BO18: 0 | BP18: 0 | BQ18: 1 | BR18: 0 | BS18: 0 | BT18: 0 | BU18: 0 | BV18: 1 | BW18: 0 | BX18: 0 | BY18: 0 | BZ18: 0 | CA18: 0 | CB18: 0 | CC18: 0 | CD18: 0 | CE18: 0 | CF18: 0 | CG18: 0 | CH18: 0 | CI18: 0 | CJ18: 0 | CK18: 0 | CL18: 0 | CM18: 0 | CN18: 0
A19: 15 | B19: Anderson Oliveira | C19: 173 | D19: 6 | E19: 31 | H19: 11 | I19: 25 | L19: 7 | M19: 29 | P19: 9 | Q19: 27 | T19: 11 | U19: 25 | V19: 1 | Y19: 0* | AC19: 0* | AF19: 4 | AG19: 35 | AK19: 0 | AO19: 0 | AS19: 0 | AW19: 0 | AZ19: 0 | BA19: 0 | BB19: 0 | BC19: 1 | BD19: 0 | BE19: 1 | BF19: 1 | BG19: 0 | BH19: 1 | BI19: 0 | BJ19: 2 | BK19: 0 | BL19: 0 | BM19: 0 | BN19: 0 | BO19: 0 | BP19: 0 | BQ19: 0 | BR19: 0 | BS19: 0 | BT19: 0 | BU19: 0 | BV19: 0 | BW19: 0 | BX19: 0 | BY19: 0 | BZ19: 0 | CA19: 0 | CB19: 0 | CC19: 0 | CD19: 0 | CE19: 0 | CF19: 0 | CG19: 0 | CH19: 0 | CI19: 0 | CJ19: 0 | CK19: 0 | CL19: 0 | CM19: 0 | CN19: 0
A20: 16 | B20: Gabriel Gontijo | C20: 166 | D20: 12 | E20: 24 | H20: 16 | I20: 20 | L20: 22 | M20: 14 | P20: 7 | Q20: 29 | T20: 9 | U20: 27 | Y20: 0* | AC20: 0* | AF20: 13 | AG20: 23 | AJ20: 7 | AK20: 29 | AO20: 0 | AS20: 0 | AW20: 0 | AZ20: 0 | BA20: 0 | BB20: 0 | BC20: 0 | BD20: 0 | BE20: 0 | BF20: 2 | BG20: 0 | BH20: 1 | BI20: 0 | BJ20: 0 | BK20: 1 | BL20: 1 | BM20: 0 | BN20: 0 | BO20: 1 | BP20: 0 | BQ20: 0 | BR20: 0 | BS20: 0 | BT20: 0 | BU20: 1 | BV20: 0 | BW20: 0 | BX20: 0 | BY20: 0 | BZ20: 0 | CA20: 0 | CB20: 0 | CC20: 0 | CD20: 0 | CE20: 0 | CF20: 0 | CG20: 0 | CH20: 0 | CI20: 0 | CJ20: 0 | CK20: 0 | CL20: 0 | CM20: 0 | CN20: 0
A21: 17 | B21: Danilo Soares | C21: 149 | E21: 0* | H21: 18 | I21: 18 | L21: 16 | M21: 20 | P21: 19 | Q21: 17 | U21: 0* | X21: 13 | Y21: 23 | AB21: 13 | AC21: 23 | AG21: 0 | AJ21: 14 | AK21: 22 | AO21: 0 | AR21: 10 | AS21: 26 | AW21: 0 | AZ21: 0 | BA21: 0 | BB21: 0 | BC21: 0 | BD21: 0 | BE21: 0 | BF21: 0 | BG21: 0 | BH21: 0 | BI21: 1 | BJ21: 0 | BK21: 0 | BL21: 2 | BM21: 1 | BN21: 0 | BO21: 1 | BP21: 0 | BQ21: 1 | BR21: 1 | BS21: 0 | BT21: 0 | BU21: 0 | BV21: 0 | BW21: 0 | BX21: 0 | BY21: 0 | BZ21: 0 | CA21: 0 | CB21: 0 | CC21: 0 | CD21: 0 | CE21: 0 | CF21: 0 | CG21: 0 | CH21: 0 | CI21: 0 | CJ21: 0 | CK21: 0 | CL21: 0 | CM21: 0 | CN21: 0
A22: 18 | B22: Rodrigo Guimaraes | C22: 132 | D22: 10 | E22: 26 | I22: 0* | M22: 0* | P22: 12 | Q22: 24 | T22: 24 | U22: 12 | W22: SIM | Y22: 0 | AB22: 11 | AC22: 25 | AG22: 0 | AJ22: 12 | AK22: 24 | AN22: 15 | AO22: 21 | AS22: 0 | AW22: 0 | AZ22: 0 | BA22: 0 | BB22: 0 | BC22: 0 | BD22: 0 | BE22: 0 | BF22: 0 | BG22: 0 | BH22: 0 | BI22: 1 | BJ22: 1 | BK22: 2 | BL22: 0 | BM22: 0 | BN22: 1 | BO22: 0 | BP22: 0 | BQ22: 0 | BR22: 0 | BS22: 0 | BT22: 0 | BU22: 0 | BV22: 0 | BW22: 1 | BX22: 0 | BY22: 0 | BZ22: 0 | CA22: 0 | CB22: 0 | CC22: 0 | CD22: 0 | CE22: 0 | CF22: 0 | CG22: 0 | CH22: 0 | CI22: 0 | CJ22: 0 | CK22: 0 | CL22: 0 | CM22: 0 | CN22: 0
A23: 19 | B23: Matheus Dias | C23: 128 | E23: 0* | H23: 8 | I23: 28 | L23: 12 | M23: 24 | P23: 10 | Q23: 26 | T23: 13 | U23: 23 | X23: 9 | Y23: 27 | AC23: 0* | AG23: 0 | AK23: 0 | AO23: 0 | AS23: 0 | AW23: 0 | AZ23: 0 | BA23: 0 | BB23: 0 | BC23: 0 | BD23: 0 | BE23: 0 | BF23: 0 | BG23: 1 | BH23: 1 | BI23: 1 | BJ23: 0 | BK23: 1 | BL23: 1 | BM23: 0 | BN23: 0 | BO23: 0 | BP23: 0 | BQ23: 0 | BR23: 0 | BS23: 0 | BT23: 0 | BU23: 0 | BV23: 0 | BW23: 0 | BX23: 0 | BY23: 0 | BZ23: 0 | CA23: 0 | CB23: 0 | CC23: 0 | CD23: 0 | CE23: 0 | CF23: 0 | CG23: 0 | CH23: 0 | CI23: 0 | CJ23: 0 | CK23: 0 | CL23: 0 | CM23: 0 | CN23: 0
A24: 20 | B24: Wilson Cristofani | C24: 108 | D24: 17 | E24: 19 | H24: 13 | I24: 23 | M24: 0* | Q24: 0* | U24: 0 | Y24: 0 | AC24: 0 | AG24: 0 | AK24: 0 | AN24: 4 | AO24: 35 | AR24: 6 | AS24: 31 | AW24: 0 | AZ24: 0 | BA24: 0 | BB24: 0 | BC24: 1 | BD24: 0 | BE24: 1 | BF24: 0 | BG24: 0 | BH24: 0 | BI24: 0 | BJ24: 0 | BK24: 0 | BL24: 1 | BM24: 0 | BN24: 0 | BO24: 0 | BP24: 1 | BQ24: 0 | BR24: 0 | BS24: 0 | BT24: 0 | BU24: 0 | BV24: 0 | BW24: 0 | BX24: 0 | BY24: 0 | BZ24: 0 | CA24: 0 | CB24: 0 | CC24: 0 | CD24: 0 | CE24: 0 | CF24: 0 | CG24: 0 | CH24: 0 | CI24: 0 | CJ24: 0 | CK24: 0 | CL24: 0 | CM24: 0 | CN24: 0
A25: 21 | B25: Ezequiel Netto | C25: 97 | D25: 15 | E25: 21 | H25: 21 | I25: 15 | L25: 17 | M25: 19 | Q25: 0* | U25: 0* | Y25: 0 | AB25: 14 | AC25: 22 | AG25: 0 | AJ25: 16 | AK25: 20 | AO25: 0 | AS25: 0 | AW25: 0 | AZ25: 0 | BA25: 0 | BB25: 0 | BC25: 0 | BD25: 0 | BE25: 0 | BF25: 0 | BG25: 0 | BH25: 0 | BI25: 0 | BJ25: 0 | BK25: 0 | BL25: 0 | BM25: 1 | BN25: 1 | BO25: 1 | BP25: 1 | BQ25: 0 | BR25: 0 | BS25: 0 | BT25: 1 | BU25: 0 | BV25: 0 | BW25: 0 | BX25: 0 | BY25: 0 | BZ25: 0 | CA25: 0 | CB25: 0 | CC25: 0 | CD25: 0 | CE25: 0 | CF25: 0 | CG25: 0 | CH25: 0 | CI25: 0 | CJ25: 0 | CK25: 0 | CL25: 0 | CM25: 0 | CN25: 0
A26: 22 | B26: Gerson Junior | C26: 81 | E26: 0* | H26: 3 | I26: 37 | L26: 13 | M26: 23 | P26: 15 | Q26: 21 | U26: 0* | Y26: 0 | AC26: 0 | AG26: 0 | AK26: 0 | AO26: 0 | AS26: 0 | AW26: 0 | AZ26: 0 | BA26: 0 | BB26: 1 | BC26: 0 | BD26: 0 | BE26: 0 | BF26: 0 | BG26: 0 | BH26: 0 | BI26: 0 | BJ26: 0 | BK26: 0 | BL26: 1 | BM26: 0 | BN26: 1 | BO26: 0 | BP26: 0 | BQ26: 0 | BR26: 0 | BS26: 0 | BT26: 0 | BU26: 0 | BV26: 0 | BW26: 0 | BX26: 0 | BY26: 0 | BZ26: 0 | CA26: 0 | CB26: 0 | CC26: 0 | CD26: 0 | CE26: 0 | CF26: 0 | CG26: 0 | CH26: 0 | CI26: 0 | CJ26: 0 | CK26: 0 | CL26: 0 | CM26: 0 | CN26: 0
A27: 23 | B27: Leandro Leite | C27: 77 | D27: 14 | E27: 22 | F27: 1 | H27: 9 | I27: 27 | L27: 9 | M27: 27 | Q27: 0* | U27: 0* | Y27: 0 | AC27: 0 | AG27: 0 | AK27: 0 | AO27: 0 | AS27: 0 | AW27: 0 | AZ27: 0 | BA27: 0 | BB27: 0 | BC27: 0 | BD27: 0 | BE27: 0 | BF27: 0 | BG27: 0 | BH27: 2 | BI27: 0 | BJ27: 0 | BK27: 0 | BL27: 0 | BM27: 1 | BN27: 0 | BO27: 0 | BP27: 0 | BQ27: 0 | BR27: 0 | BS27: 0 | BT27: 0 | BU27: 0 | BV27: 0 | BW27: 0 | BX27: 0 | BY27: 0 | BZ27: 0 | CA27: 0 | CB27: 0 | CC27: 0 | CD27: 0 | CE27: 0 | CF27: 0 | CG27: 0 | CH27: 0 | CI27: 0 | CJ27: 0 | CK27: 0 | CL27: 0 | CM27: 0 | CN27: 0
A28: 24 | B28: Felipe Franca | C28: 38 | E28: 0* | H28: 14 | I28: 22 | K28: SIM | L28: 20 | M28: 16 | Q28: 0* | U28: 0 | Y28: 0 | AC28: 0 | AG28: 0 | AK28: 0 | AO28: 0 | AS28: 0 | AW28: 0 | AZ28: 0 | BA28: 0 | BB28: 0 | BC28: 0 | BD28: 0 | BE28: 0 | BF28: 0 | BG28: 0 | BH28: 0 | BI28: 0 | BJ28: 0 | BK28: 0 | BL28: 0 | BM28: 1 | BN28: 0 | BO28: 0 | BP28: 0 | BQ28: 0 | BR28: 0 | BS28: 1 | BT28: 0 | BU28: 0 | BV28: 0 | BW28: 0 | BX28: 0 | BY28: 0 | BZ28: 0 | CA28: 0 | CB28: 0 | CC28: 0 | CD28: 0 | CE28: 0 | CF28: 0 | CG28: 0 | CH28: 0 | CI28: 0 | CJ28: 0 | CK28: 0 | CL28: 0 | CM28: 0 | CN28: 0
A29: 25 | B29: Gladystone Reis | C29: 35 | E29: 0* | H29: 19 | I29: 17 | L29: 18 | M29: 18 | Q29: 0* | U29: 0 | Y29: 0 | AC29: 0 | AG29: 0 | AK29: 0 | AO29: 0 | AS29: 0 | AW29: 0 | AZ29: 0 | BA29: 0 | BB29: 0 | BC29: 0 | BD29: 0 | BE29: 0 | BF29: 0 | BG29: 0 | BH29: 0 | BI29: 0 | BJ29: 0 | BK29: 0 | BL29: 0 | BM29: 0 | BN29: 0 | BO29: 0 | BP29: 0 | BQ29: 1 | BR29: 1 | BS29: 0 | BT29: 0 | BU29: 0 | BV29: 0 | BW29: 0 | BX29: 0 | BY29: 0 | BZ29: 0 | CA29: 0 | CB29: 0 | CC29: 0 | CD29: 0 | CE29: 0 | CF29: 0 | CG29: 0 | CH29: 0 | CI29: 0 | CJ29: 0 | CK29: 0 | CL29: 0 | CM29: 0 | CN29: 0
A30: 26 | B30: André Triginelli | C30: 22 | E30: 0* | I30: 0* | M30: 0 | P30: 14 | Q30: 22 | U30: 0 | Y30: 0 | AC30: 0 | AG30: 0 | AK30: 0 | AO30: 0 | AS30: 0 | AW30: 0 | AZ30: 0 | BA30: 0 | BB30: 0 | BC30: 0 | BD30: 0 | BE30: 0 | BF30: 0 | BG30: 0 | BH30: 0 | BI30: 0 | BJ30: 0 | BK30: 0 | BL30: 0 | BM30: 0 | BN30: 0 | BO30: 0 | BP30: 0 | BQ30: 0 | BR30: 0 | BS30: 0 | BT30: 0 | BU30: 0 | BV30: 0 | BW30: 0 | BX30: 0 | BY30: 0 | BZ30: 0 | CA30: 0 | CB30: 0 | CC30: 0 | CD30: 0 | CE30: 0 | CF30: 0 | CG30: 0 | CH30: 0 | CI30: 0 | CJ30: 0 | CK30: 0 | CL30: 0 | CM30: 0 | CN30: 0
A31: 27 | B31: Thiago Xavier | C31: 0 | E31: 0* | I31: 0* | M31: 0 | Q31: 0 | U31: 0 | Y31: 0 | AC31: 0 | AG31: 0 | AK31: 0 | AO31: 0 | AS31: 0 | AW31: 0 | AZ31: 0 | BA31: 0 | BB31: 0 | BC31: 0 | BD31: 0 | BE31: 0 | BF31: 0 | BG31: 0 | BH31: 0 | BI31: 0 | BJ31: 0 | BK31: 0 | BL31: 0 | BM31: 0 | BN31: 0 | BO31: 0 | BP31: 0 | BQ31: 0 | BR31: 0 | BS31: 0 | BT31: 0 | BU31: 0 | BV31: 0 | BW31: 0 | BX31: 0 | BY31: 0 | BZ31: 0 | CA31: 0 | CB31: 0 | CC31: 0 | CD31: 0 | CE31: 0 | CF31: 0 | CG31: 0 | CH31: 0 | CI31: 0 | CJ31: 0 | CK31: 0 | CL31: 0 | CM31: 0 | CN31: 0
A32: 28 | B32: Gabriel Ramos | C32: 0 | E32: 0* | I32: 0* | M32: 0 | Q32: 0 | U32: 0 | Y32: 0 | AC32: 0 | AG32: 0 | AK32: 0 | AO32: 0 | AS32: 0 | AW32: 0 | AZ32: 0 | BA32: 0 | BB32: 0 | BC32: 0 | BD32: 0 | BE32: 0 | BF32: 0 | BG32: 0 | BH32: 0 | BI32: 0 | BJ32: 0 | BK32: 0 | BL32: 0 | BM32: 0 | BN32: 0 | BO32: 0 | BP32: 0 | BQ32: 0 | BR32: 0 | BS32: 0 | BT32: 0 | BU32: 0 | BV32: 0 | BW32: 0 | BX32: 0 | BY32: 0 | BZ32: 0 | CA32: 0 | CB32: 0 | CC32: 0 | CD32: 0 | CE32: 0 | CF32: 0 | CG32: 0 | CH32: 0 | CI32: 0 | CJ32: 0 | CK32: 0 | CL32: 0 | CM32: 0 | CN32: 0
A33: 29 | C33: 0 | E33: 0 | I33: 0 | M33: 0 | Q33: 0 | U33: 0 | Y33: 0 | AC33: 0 | AG33: 0 | AK33: 0 | AO33: 0 | AS33: 0 | AW33: 0 | AZ33: 0 | BA33: 0 | BB33: 0 | BC33: 0 | BD33: 0 | BE33: 0 | BF33: 0 | BG33: 0 | BH33: 0 | BI33: 0 | BJ33: 0 | BK33: 0 | BL33: 0 | BM33: 0 | BN33: 0 | BO33: 0 | BP33: 0 | BQ33: 0 | BR33: 0 | BS33: 0 | BT33: 0 | BU33: 0 | BV33: 0 | BW33: 0 | BX33: 0 | BY33: 0 | BZ33: 0 | CA33: 0 | CB33: 0 | CC33: 0 | CD33: 0 | CE33: 0 | CF33: 0 | CG33: 0 | CH33: 0 | CI33: 0 | CJ33: 0 | CK33: 0 | CL33: 0 | CM33: 0 | CN33: 0
A34: 30 | C34: 0 | E34: 0 | I34: 0 | M34: 0 | Q34: 0 | U34: 0 | Y34: 0 | AC34: 0 | AG34: 0 | AK34: 0 | AO34: 0 | AS34: 0 | AW34: 0 | AZ34: 0 | BA34: 0 | BB34: 0 | BC34: 0 | BD34: 0 | BE34: 0 | BF34: 0 | BG34: 0 | BH34: 0 | BI34: 0 | BJ34: 0 | BK34: 0 | BL34: 0 | BM34: 0 | BN34: 0 | BO34: 0 | BP34: 0 | BQ34: 0 | BR34: 0 | BS34: 0 | BT34: 0 | BU34: 0 | BV34: 0 | BW34: 0 | BX34: 0 | BY34: 0 | BZ34: 0 | CA34: 0 | CB34: 0 | CC34: 0 | CD34: 0 | CE34: 0 | CF34: 0 | CG34: 0 | CH34: 0 | CI34: 0 | CJ34: 0 | CK34: 0 | CL34: 0 | CM34: 0 | CN34: 0
A35: 31 | C35: 0 | E35: 0 | I35: 0 | M35: 0 | Q35: 0 | U35: 0 | Y35: 0 | AC35: 0 | AG35: 0 | AK35: 0 | AO35: 0 | AS35: 0 | AW35: 0 | AZ35: 0 | BA35: 0 | BB35: 0 | BC35: 0 | BD35: 0 | BE35: 0 | BF35: 0 | BG35: 0 | BH35: 0 | BI35: 0 | BJ35: 0 | BK35: 0 | BL35: 0 | BM35: 0 | BN35: 0 | BO35: 0 | BP35: 0 | BQ35: 0 | BR35: 0 | BS35: 0 | BT35: 0 | BU35: 0 | BV35: 0 | BW35: 0 | BX35: 0 | BY35: 0 | BZ35: 0 | CA35: 0 | CB35: 0 | CC35: 0 | CD35: 0 | CE35: 0 | CF35: 0 | CG35: 0 | CH35: 0 | CI35: 0 | CJ35: 0 | CK35: 0 | CL35: 0 | CM35: 0 | CN35: 0
A36: 32 | C36: 0 | E36: 0 | I36: 0 | M36: 0 | Q36: 0 | U36: 0 | Y36: 0 | AC36: 0 | AG36: 0 | AK36: 0 | AO36: 0 | AS36: 0 | AW36: 0 | AZ36: 0 | BA36: 0 | BB36: 0 | BC36: 0 | BD36: 0 | BE36: 0 | BF36: 0 | BG36: 0 | BH36: 0 | BI36: 0 | BJ36: 0 | BK36: 0 | BL36: 0 | BM36: 0 | BN36: 0 | BO36: 0 | BP36: 0 | BQ36: 0 | BR36: 0 | BS36: 0 | BT36: 0 | BU36: 0 | BV36: 0 | BW36: 0 | BX36: 0 | BY36: 0 | BZ36: 0 | CA36: 0 | CB36: 0 | CC36: 0 | CD36: 0 | CE36: 0 | CF36: 0 | CG36: 0 | CH36: 0 | CI36: 0 | CJ36: 0 | CK36: 0 | CL36: 0 | CM36: 0 | CN36: 0
A37: 33 | C37: 0 | E37: 0 | I37: 0 | M37: 0 | Q37: 0 | U37: 0 | Y37: 0 | AC37: 0 | AG37: 0 | AK37: 0 | AO37: 0 | AS37: 0 | AW37: 0 | AZ37: 0 | BA37: 0 | BB37: 0 | BC37: 0 | BD37: 0 | BE37: 0 | BF37: 0 | BG37: 0 | BH37: 0 | BI37: 0 | BJ37: 0 | BK37: 0 | BL37: 0 | BM37: 0 | BN37: 0 | BO37: 0 | BP37: 0 | BQ37: 0 | BR37: 0 | BS37: 0 | BT37: 0 | BU37: 0 | BV37: 0 | BW37: 0 | BX37: 0 | BY37: 0 | BZ37: 0 | CA37: 0 | CB37: 0 | CC37: 0 | CD37: 0 | CE37: 0 | CF37: 0 | CG37: 0 | CH37: 0 | CI37: 0 | CJ37: 0 | CK37: 0 | CL37: 0 | CM37: 0 | CN37: 0
A38: 34 | C38: 0 | E38: 0 | I38: 0 | M38: 0 | Q38: 0 | U38: 0 | Y38: 0 | AC38: 0 | AG38: 0 | AK38: 0 | AO38: 0 | AS38: 0 | AW38: 0 | AZ38: 0 | BA38: 0 | BB38: 0 | BC38: 0 | BD38: 0 | BE38: 0 | BF38: 0 | BG38: 0 | BH38: 0 | BI38: 0 | BJ38: 0 | BK38: 0 | BL38: 0 | BM38: 0 | BN38: 0 | BO38: 0 | BP38: 0 | BQ38: 0 | BR38: 0 | BS38: 0 | BT38: 0 | BU38: 0 | BV38: 0 | BW38: 0 | BX38: 0 | BY38: 0 | BZ38: 0 | CA38: 0 | CB38: 0 | CC38: 0 | CD38: 0 | CE38: 0 | CF38: 0 | CG38: 0 | CH38: 0 | CI38: 0 | CJ38: 0 | CK38: 0 | CL38: 0 | CM38: 0 | CN38: 0
A39: 35 | C39: 0 | E39: 0 | I39: 0 | M39: 0 | Q39: 0 | U39: 0 | Y39: 0 | AC39: 0 | AG39: 0 | AK39: 0 | AO39: 0 | AS39: 0 | AW39: 0 | AZ39: 0 | BA39: 0 | BB39: 0 | BC39: 0 | BD39: 0 | BE39: 0 | BF39: 0 | BG39: 0 | BH39: 0 | BI39: 0 | BJ39: 0 | BK39: 0 | BL39: 0 | BM39: 0 | BN39: 0 | BO39: 0 | BP39: 0 | BQ39: 0 | BR39: 0 | BS39: 0 | BT39: 0 | BU39: 0 | BV39: 0 | BW39: 0 | BX39: 0 | BY39: 0 | BZ39: 0 | CA39: 0 | CB39: 0 | CC39: 0 | CD39: 0 | CE39: 0 | CF39: 0 | CG39: 0 | CH39: 0 | CI39: 0 | CJ39: 0 | CK39: 0 | CL39: 0 | CM39: 0 | CN39: 0
A40: 36 | C40: 0 | E40: 0 | I40: 0 | M40: 0 | Q40: 0 | U40: 0 | Y40: 0 | AC40: 0 | AG40: 0 | AK40: 0 | AO40: 0 | AS40: 0 | AW40: 0 | AZ40: 0 | BA40: 0 | BB40: 0 | BC40: 0 | BD40: 0 | BE40: 0 | BF40: 0 | BG40: 0 | BH40: 0 | BI40: 0 | BJ40: 0 | BK40: 0 | BL40: 0 | BM40: 0 | BN40: 0 | BO40: 0 | BP40: 0 | BQ40: 0 | BR40: 0 | BS40: 0 | BT40: 0 | BU40: 0 | BV40: 0 | BW40: 0 | BX40: 0 | BY40: 0 | BZ40: 0 | CA40: 0 | CB40: 0 | CC40: 0 | CD40: 0 | CE40: 0 | CF40: 0 | CG40: 0 | CH40: 0 | CI40: 0 | CJ40: 0 | CK40: 0 | CL40: 0 | CM40: 0 | CN40: 0
A41: 37 | C41: 0 | E41: 0 | I41: 0 | M41: 0 | Q41: 0 | U41: 0 | Y41: 0 | AC41: 0 | AG41: 0 | AK41: 0 | AO41: 0 | AS41: 0 | AW41: 0 | AZ41: 0 | BA41: 0 | BB41: 0 | BC41: 0 | BD41: 0 | BE41: 0 | BF41: 0 | BG41: 0 | BH41: 0 | BI41: 0 | BJ41: 0 | BK41: 0 | BL41: 0 | BM41: 0 | BN41: 0 | BO41: 0 | BP41: 0 | BQ41: 0 | BR41: 0 | BS41: 0 | BT41: 0 | BU41: 0 | BV41: 0 | BW41: 0 | BX41: 0 | BY41: 0 | BZ41: 0 | CA41: 0 | CB41: 0 | CC41: 0 | CD41: 0 | CE41: 0 | CF41: 0 | CG41: 0 | CH41: 0 | CI41: 0 | CJ41: 0 | CK41: 0 | CL41: 0 | CM41: 0 | CN41: 0
A42: 38 | C42: 0 | E42: 0 | I42: 0 | M42: 0 | Q42: 0 | U42: 0 | Y42: 0 | AC42: 0 | AG42: 0 | AK42: 0 | AO42: 0 | AS42: 0 | AW42: 0 | AZ42: 0 | BA42: 0 | BB42: 0 | BC42: 0 | BD42: 0 | BE42: 0 | BF42: 0 | BG42: 0 | BH42: 0 | BI42: 0 | BJ42: 0 | BK42: 0 | BL42: 0 | BM42: 0 | BN42: 0 | BO42: 0 | BP42: 0 | BQ42: 0 | BR42: 0 | BS42: 0 | BT42: 0 | BU42: 0 | BV42: 0 | BW42: 0 | BX42: 0 | BY42: 0 | BZ42: 0 | CA42: 0 | CB42: 0 | CC42: 0 | CD42: 0 | CE42: 0 | CF42: 0 | CG42: 0 | CH42: 0 | CI42: 0 | CJ42: 0 | CK42: 0 | CL42: 0 | CM42: 0 | CN42: 0
A43: 39 | C43: 0 | E43: 0 | I43: 0 | M43: 0 | Q43: 0 | U43: 0 | Y43: 0 | AC43: 0 | AG43: 0 | AK43: 0 | AO43: 0 | AS43: 0 | AW43: 0 | AZ43: 0 | BA43: 0 | BB43: 0 | BC43: 0 | BD43: 0 | BE43: 0 | BF43: 0 | BG43: 0 | BH43: 0 | BI43: 0 | BJ43: 0 | BK43: 0 | BL43: 0 | BM43: 0 | BN43: 0 | BO43: 0 | BP43: 0 | BQ43: 0 | BR43: 0 | BS43: 0 | BT43: 0 | BU43: 0 | BV43: 0 | BW43: 0 | BX43: 0 | BY43: 0 | BZ43: 0 | CA43: 0 | CB43: 0 | CC43: 0 | CD43: 0 | CE43: 0 | CF43: 0 | CG43: 0 | CH43: 0 | CI43: 0 | CJ43: 0 | CK43: 0 | CL43: 0 | CM43: 0 | CN43: 0
A44: 40 | C44: 0 | E44: 0 | I44: 0 | M44: 0 | Q44: 0 | U44: 0 | Y44: 0 | AC44: 0 | AG44: 0 | AK44: 0 | AO44: 0 | AS44: 0 | AW44: 0 | AZ44: 0 | BA44: 0 | BB44: 0 | BC44: 0 | BD44: 0 | BE44: 0 | BF44: 0 | BG44: 0 | BH44: 0 | BI44: 0 | BJ44: 0 | BK44: 0 | BL44: 0 | BM44: 0 | BN44: 0 | BO44: 0 | BP44: 0 | BQ44: 0 | BR44: 0 | BS44: 0 | BT44: 0 | BU44: 0 | BV44: 0 | BW44: 0 | BX44: 0 | BY44: 0 | BZ44: 0 | CA44: 0 | CB44: 0 | CC44: 0 | CD44: 0 | CE44: 0 | CF44: 0 | CG44: 0 | CH44: 0 | CI44: 0 | CJ44: 0 | CK44: 0 | CL44: 0 | CM44: 0 | CN44: 0
A45: 41 | C45: 0 | E45: 0 | I45: 0 | M45: 0 | Q45: 0 | U45: 0 | Y45: 0 | AC45: 0 | AG45: 0 | AK45: 0 | AO45: 0 | AS45: 0 | AW45: 0 | AZ45: 0 | BA45: 0 | BB45: 0 | BC45: 0 | BD45: 0 | BE45: 0 | BF45: 0 | BG45: 0 | BH45: 0 | BI45: 0 | BJ45: 0 | BK45: 0 | BL45: 0 | BM45: 0 | BN45: 0 | BO45: 0 | BP45: 0 | BQ45: 0 | BR45: 0 | BS45: 0 | BT45: 0 | BU45: 0 | BV45: 0 | BW45: 0 | BX45: 0 | BY45: 0 | BZ45: 0 | CA45: 0 | CB45: 0 | CC45: 0 | CD45: 0 | CE45: 0 | CF45: 0 | CG45: 0 | CH45: 0 | CI45: 0 | CJ45: 0 | CK45: 0 | CL45: 0 | CM45: 0 | CN45: 0
A46: 42 | C46: 0 | E46: 0 | I46: 0 | M46: 0 | Q46: 0 | U46: 0 | Y46: 0 | AC46: 0 | AG46: 0 | AK46: 0 | AO46: 0 | AS46: 0 | AW46: 0 | AZ46: 0 | BA46: 0 | BB46: 0 | BC46: 0 | BD46: 0 | BE46: 0 | BF46: 0 | BG46: 0 | BH46: 0 | BI46: 0 | BJ46: 0 | BK46: 0 | BL46: 0 | BM46: 0 | BN46: 0 | BO46: 0 | BP46: 0 | BQ46: 0 | BR46: 0 | BS46: 0 | BT46: 0 | BU46: 0 | BV46: 0 | BW46: 0 | BX46: 0 | BY46: 0 | BZ46: 0 | CA46: 0 | CB46: 0 | CC46: 0 | CD46: 0 | CE46: 0 | CF46: 0 | CG46: 0 | CH46: 0 | CI46: 0 | CJ46: 0 | CK46: 0 | CL46: 0 | CM46: 0 | CN46: 0
A47: 43 | C47: 0 | E47: 0 | I47: 0 | M47: 0 | Q47: 0 | U47: 0 | Y47: 0 | AC47: 0 | AG47: 0 | AK47: 0 | AO47: 0 | AS47: 0 | AW47: 0 | AZ47: 0 | BA47: 0 | BB47: 0 | BC47: 0 | BD47: 0 | BE47: 0 | BF47: 0 | BG47: 0 | BH47: 0 | BI47: 0 | BJ47: 0 | BK47: 0 | BL47: 0 | BM47: 0 | BN47: 0 | BO47: 0 | BP47: 0 | BQ47: 0 | BR47: 0 | BS47: 0 | BT47: 0 | BU47: 0 | BV47: 0 | BW47: 0 | BX47: 0 | BY47: 0 | BZ47: 0 | CA47: 0 | CB47: 0 | CC47: 0 | CD47: 0 | CE47: 0 | CF47: 0 | CG47: 0 | CH47: 0 | CI47: 0 | CJ47: 0 | CK47: 0 | CL47: 0 | CM47: 0 | CN47: 0
A48: 44 | C48: 0 | E48: 0 | I48: 0 | M48: 0 | Q48: 0 | U48: 0 | Y48: 0 | AC48: 0 | AG48: 0 | AK48: 0 | AO48: 0 | AS48: 0 | AW48: 0 | AZ48: 0 | BA48: 0 | BB48: 0 | BC48: 0 | BD48: 0 | BE48: 0 | BF48: 0 | BG48: 0 | BH48: 0 | BI48: 0 | BJ48: 0 | BK48: 0 | BL48: 0 | BM48: 0 | BN48: 0 | BO48: 0 | BP48: 0 | BQ48: 0 | BR48: 0 | BS48: 0 | BT48: 0 | BU48: 0 | BV48: 0 | BW48: 0 | BX48: 0 | BY48: 0 | BZ48: 0 | CA48: 0 | CB48: 0 | CC48: 0 | CD48: 0 | CE48: 0 | CF48: 0 | CG48: 0 | CH48: 0 | CI48: 0 | CJ48: 0 | CK48: 0 | CL48: 0 | CM48: 0 | CN48: 0
A49: 45 | C49: 0 | E49: 0 | I49: 0 | M49: 0 | Q49: 0 | U49: 0 | Y49: 0 | AC49: 0 | AG49: 0 | AK49: 0 | AO49: 0 | AS49: 0 | AW49: 0 | AZ49: 0 | BA49: 0 | BB49: 0 | BC49: 0 | BD49: 0 | BE49: 0 | BF49: 0 | BG49: 0 | BH49: 0 | BI49: 0 | BJ49: 0 | BK49: 0 | BL49: 0 | BM49: 0 | BN49: 0 | BO49: 0 | BP49: 0 | BQ49: 0 | BR49: 0 | BS49: 0 | BT49: 0 | BU49: 0 | BV49: 0 | BW49: 0 | BX49: 0 | BY49: 0 | BZ49: 0 | CA49: 0 | CB49: 0 | CC49: 0 | CD49: 0 | CE49: 0 | CF49: 0 | CG49: 0 | CH49: 0 | CI49: 0 | CJ49: 0 | CK49: 0 | CL49: 0 | CM49: 0 | CN49: 0

Sheet Tabela Equipes
A1: 2022 | D1: OK | H1: OK | L1: OK | P1: OK | T1: OK | X1: OK | AB1: OK | AF1: OK | AJ1: OK | AN1: OK | AR1: OK | AV1: OK
C2: ETAPA 2 | G2: ETAPA 3 | K2: ETAPA 1 | O2: ETAPA 4 | S2: ETAPA 5 | W2: ETAPA 6 | AA2: ETAPA 7 | AE2: ETAPA 8 | AI2: ETAPA 9 | AM2: ETAPA 10 | AQ2: ETAPA 11 | AU2: ETAPA 12
C3: SUPER | G3: LIGHT | K3: LIGHT | O3: SUPER | S3: LIGHT | W3: SUPER | AA3: SUPER | AE3: 00:00:00 | AI3: SUPER | AM3: LIGHT | AQ3: SUPER | AU3: LIGHT
A4: EQUIPES | B4: Pontuação Geral | C4: Posição | D4: Pontos | E4: Bônus | F4: Penalidade | G4: Posição | H4: Pontos | I4: Bônus | J4: Penalidade | K4: Posição | L4: Pontos | M4: Bônus | N4: Penalidade | O4: Posição | P4: Pontos | Q4: Bônus | R4: Penalidade | S4: Posição | T4: Pontos | U4: Bônus | V4: Penalidade | W4: Posição | X4: Pontos | Y4: Bônus | Z4: Penalidade | AA4: Posição | AB4: Pontos | AC4: Bônus | AD4: Penalidade | AE4: Posição | AF4: Pontos | AG4: Bônus | AH4: Penalidade | AI4: Posição | AJ4: Pontos | AK4: Bônus | AL4: Penalidade | AM4: Posição | AN4: Pontos | AO4: Bônus | AP4: Penalidade | AQ4: Posição | AR4: Pontos | AS4: Bônus | AT4: Penalidade | AU4: Posição | AV4: Pontos | AW4: Bônus | AX4: Penalidade
A5: Multiseg | B5: 716 | D5: 60 | E5: 0 | H5: 55 | I5: 0 | L5: 91 | M5: 0 | P5: 48 | Q5: 0 | T5: 54 | U5: 0 | X5: 50 | Y5: 0 | AB5: 45 | AC5: 1 | AF5: 72 | AG5: 0 | AJ5: 58 | AK5: 0 | AN5: 53 | AO5: 1 | AR5: 65 | AS5: 0 | AV5: 63 | AW5: 0
A6: Alexandre Melillo | B6: 407 | C6: 4 | D6: 35 | E6: 0 | G6: 22 | H6: 14 | I6: 0 | K6: 1 | L6: 45 | M6: 0 | O6: 8 | P6: 28 | Q6: 0 | S6: 3 | T6: 37 | U6: 0 | W6: 12 | X6: 24 | Y6: 0 | AA6: 1 | AB6: 45 | AC6: 1 | AE6: 1 | AF6: 45 | AG6: 0 | AI6: 4 | AJ6: 35 | AK6: 0 | AM6: 11 | AN6: 25 | AO6: 1 | AQ6: 3 | AR6: 37 | AS6: 0 | AU6: 4 | AV6: 35 | AW6: 0
A7: Gladystone Reis | B7: 35 | C7: 0 | D7: 0 | E7: 0 | G7: 19 | H7: 17 | I7: 0 | K7: 18 | L7: 18 | M7: 0 | O7: 0 | P7: 0 | Q7: 0 | S7: 0 | T7: 0 | U7: 0 | W7: 0 | X7: 0 | Y7: 0 | AA7: 0 | AB7: 0 | AC7: 0 | AE7: 0 | AF7: 0 | AG7: 0 | AI7: 0 | AJ7: 0 | AK7: 0 | AM7: 0 | AN7: 0 | AO7: 0 | AQ7: 0 | AR7: 0 | AS7: 0 | AU7: 0 | AV7: 0 | AW7: 0
A8: Vitor Diniz | B8: 274 | C8: 11 | D8: 25 | E8: 0 | G8: 12 | H8: 24 | I8: 0 | K8: 8 | L8: 28 | M8: 0 | O8: 16 | P8: 20 | Q8: 0 | S8: 19 | T8: 17 | U8: 0 | W8: 10 | X8: 26 | Y8: 0 | AA8: 0 | AB8: 0 | AC8: 0 | AE8: 9 | AF8: 27 | AG8: 0 | AI8: 13 | AJ8: 23 | AK8: 0 | AM8: 8 | AN8: 28 | AO8: 0 | AQ8: 8 | AR8: 28 | AS8: 0 | AU8: 8 | AV8: 28 | AW8: 0
A9: X
A10: X | B10: 0
A11: Grupo Santiago | B11: 766 | D11: 40 | E11: 0 | H11: 71 | I11: 0 | L11: 61 | M11: 0 | P11: 72 | Q11: 0 | T11: 71 | U11: 0 | X11: 90 | Y11: 0 | AB11: 85 | AC11: 0 | AF11: 49 | AG11: 0 | AJ11: 59 | AK11: 0 | AN11: 69 | AO11: 0 | AR11: 66 | AS11: 0 | AV11: 33 | AW11: 0
A12: Fernando Mota | B12: 437 | C12: 2 | D12: 40 | E12: 0 | G12: 2 | H12: 40 | I12: 0 | K12: 21 | L12: 15 | M12: 0 | O12: 3 | P12: 37 | Q12: 0 | S12: 1 | T12: 45 | U12: 0 | W12: 1 | X12: 45 | Y12: 0 | AA12: 4 | AB12: 35 | AC12: 0 | AE12: 11 | AF12: 25 | AG12: 0 | AI12: 3 | AJ12: 37 | AK12: 0 | AM12: 1 | AN12: 45 | AO12: 0 | AQ12: 2 | AR12: 40 | AS12: 0 | AU12: 5 | AV12: 33 | AW12: 0
A13: Leodegario Junior | B13: 180 | C13: 0 | D13: 0 | E13: 0 | G13: 23 | H13: 13 | I13: 0 | K13: 10 | L13: 26 | M13: 0 | O13: 18 | P13: 18 | Q13: 0 | S13: 10 | T13: 26 | U13: 0 | W13: 14 | X13: 22 | Y13: 0 | AA13: 9 | AB13: 27 | AC13: 0 | AE13: 12 | AF13: 24 | AG13: 0 | AI13: 0 | AJ13: 0 | AK13: 0 | AM13: 12 | AN13: 24 | AO13: 0 | AQ13: 0 | AR13: 0 | AS13: 0 | AU13: 0 | AV13: 0 | AW13: 0
A14: Danilo Soares | B14: 149 | C14: 0 | D14: 0 | E14: 0 | G14: 18 | H14: 18 | I14: 0 | K14: 16 | L14: 20 | M14: 0 | O14: 19 | P14: 17 | Q14: 0 | S14: 0 | T14: 0 | U14: 0 | W14: 13 | X14: 23 | Y14: 0 | AA14: 13 | AB14: 23 | AC14: 0 | AE14: 0 | AF14: 0 | AG14: 0 | AI14: 14 | AJ14: 22 | AK14: 0 | AM14: 0 | AN14: 0 | AO14: 0 | AQ14: 10 | AR14: 26 | AS14: 0 | AU14: 0 | AV14: 0 | AW14: 0
A15: XX
A16: XX
A17: Mercado Mineiro | B17: 813 | D17: 79 | E17: 0 | H17: 74 | I17: 0 | L17: 73 | M17: 0 | P17: 99 | Q17: 0 | T17: 96 | U17: 0 | X17: 40 | Y17: 0 | AB17: 61 | AC17: 0 | AF17: 60 | AG17: 0 | AJ17: 94 | AK17: 0 | AN17: 68 | AO17: 0 | AR17: 23 | AS17: 1 | AV17: 45 | AW17: 0
A18: Anderson Teixeira | B18: 429 | C18: 8 | D18: 28 | E18: 0 | G18: 17 | H18: 19 | I18: 0 | K18: 3 | L18: 37 | M18: 0 | O18: 1 | P18: 45 | Q18: 0 | S18: 2 | T18: 40 | U18: 0 | W18: 2 | X18: 40 | Y18: 0 | AA18: 3 | AB18: 37 | AC18: 0 | AE18: 3 | AF18: 37 | AG18: 0 | AI18: 2 | AJ18: 40 | AK18: 0 | AM18: 3 | AN18: 37 | AO18: 0 | AQ18: 13 | AR18: 23 | AS18: 1 | AU18: 1 | AV18: 45 | AW18: 0
A19: Gabriel Gontijo | B19: 166 | C19: 12 | D19: 24 | E19: 0 | G19: 16 | H19: 20 | I19: 0 | K19: 22 | L19: 14 | M19: 0 | O19: 7 | P19: 29 | Q19: 0 | S19: 9 | T19: 27 | U19: 0 | W19: 0 | X19: 0 | Y19: 0 | AA19: 0 | AB19: 0 | AC19: 0 | AE19: 13 | AF19: 23 | AG19: 0 | AI19: 7 | AJ19: 29 | AK19: 0 | AM19: 0 | AN19: 0 | AO19: 0 | AQ19: 0 | AR19: 0 | AS19: 0 | AU19: 0 | AV19: 0 | AW19: 0
A20: Emerson Guimarães | B20: 218 | C20: 9 | D20: 27 | E20: 0 | G20: 4 | H20: 35 | I20: 0 | K20: 14 | L20: 22 | M20: 0 | O20: 11 | P20: 25 | Q20: 0 | S20: 7 | T20: 29 | U20: 0 | W20: 0 | X20: 0 | Y20: 0 | AA20: 12 | AB20: 24 | AC20: 0 | AE20: 0 | AF20: 0 | AG20: 0 | AI20: 11 | AJ20: 25 | AK20: 0 | AM20: 6 | AN20: 31 | AO20: 0 | AQ20: 0 | AR20: 0 | AS20: 0 | AU20: 0 | AV20: 0 | AW20: 0
A21: XXX
A22: XXX | B22: 0
A23: Os Piratas | B23: 212 | D23: 43 | E23: 1 | H23: 64 | I23: 0 | L23: 62 | M23: 0 | P23: 0 | Q23: 0 | T23: 0 | U23: 0 | X23: 0 | Y23: 0 | AB23: 22 | AC23: 0 | AF23: 0 | AG23: 0 | AJ23: 20 | AK23: 0 | AN23: 0 | AO23: 0 | AR23: 0 | AS23: 0 | AV23: 0 | AW23: 0
A24: Felipe Franca | B24: 38 | C24: 0 | D24: 0 | E24: 0 | G24: 14 | H24: 22 | I24: 0 | K24: 20 | L24: 16 | M24: 0 | O24: 0 | P24: 0 | Q24: 0 | S24: 0 | T24: 0 | U24: 0 | W24: 0 | X24: 0 | Y24: 0 | AA24: 0 | AB24: 0 | AC24: 0 | AE24: 0 | AF24: 0 | AG24: 0 | AI24: 0 | AJ24: 0 | AK24: 0 | AM24: 0 | AN24: 0 | AO24: 0 | AQ24: 0 | AR24: 0 | AS24: 0 | AU24: 0 | AV24: 0 | AW24: 0
A25: Leandro Leite | B25: 77 | C25: 14 | D25: 22 | E25: 1 | G25: 9 | H25: 27 | I25: 0 | K25: 9 | L25: 27 | M25: 0 | O25: 0 | P25: 0 | Q25: 0 | S25: 0 | T25: 0 | U25: 0 | W25: 0 | X25: 0 | Y25: 0 | AA25: 0 | AB25: 0 | AC25: 0 | AE25: 0 | AF25: 0 | AG25: 0 | AI25: 0 | AJ25: 0 | AK25: 0 | AM25: 0 | AN25: 0 | AO25: 0 | AQ25: 0 | AR25: 0 | AS25: 0 | AU25: 0 | AV25: 0 | AW25: 0
A26: Ezequiel Netto | B26: 97 | C26: 15 | D26: 21 | E26: 0 | G26: 21 | H26: 15 | I26: 0 | K26: 17 | L26: 19 | M26: 0 | O26: 0 | P26: 0 | Q26: 0 | S26: 0 | T26: 0 | U26: 0 | W26: 0 | X26: 0 | Y26: 0 | AA26: 14 | AB26: 22 | AC26: 0 | AE26: 0 | AF26: 0 | AG26: 0 | AI26: 16 | AJ26: 20 | AK26: 0 | AM26: 0 | AN26: 0 | AO26: 0 | AQ26: 0 | AR26: 0 | AS26: 0 | AU26: 0 | AV26: 0 | AW26: 0
A27: Gabriel Ramos | B27: 0 | C27: 0 | D27: 0 | E27: 0 | G27: 0 | H27: 0 | I27: 0 | K27: 0 | L27: 0 | M27: 0 | O27: 0 | P27: 0 | Q27: 0 | S27: 0 | T27: 0 | U27: 0 | W27: 0 | X27: 0 | Y27: 0 | AA27: 0 | AB27: 0 | AC27: 0 | AE27: 0 | AF27: 0 | AG27: 0 | AI27: 0 | AJ27: 0 | AK27: 0 | AM27: 0 | AN27: 0 | AO27: 0 | AQ27: 0 | AR27: 0 | AS27: 0 | AU27: 0 | AV27: 0 | AW27: 0
A28: XXXX | B28: 0
A29: Rng | B29: 418 | D29: 56 | E29: 0 | H29: 81 | I29: 0 | L29: 58 | M29: 0 | P29: 56 | Q29: 1 | T29: 33 | U29: 0 | X29: 0 | Y29: 0 | AB29: 40 | AC29: 0 | AF29: 0 | AG29: 0 | AJ29: 27 | AK29: 0 | AN29: 35 | AO29: 0 | AR29: 31 | AS29: 0 | AV29: 0 | AW29: 0
A30: Agostinho Neves | B30: 229 | C30: 3 | D30: 37 | E30: 0 | G30: 15 | H30: 21 | I30: 0 | K30: 4 | L30: 35 | M30: 0 | O30: 4 | P30: 35 | Q30: 1 | S30: 5 | T30: 33 | U30: 0 | W30: 0 | X30: 0 | Y30: 0 | AA30: 2 | AB30: 40 | AC30: 0 | AE30: 0 | AF30: 0 | AG30: 0 | AI30: 9 | AJ30: 27 | AK30: 0 | AM30: 0 | AN30: 0 | AO30: 0 | AQ30: 0 | AR30: 0 | AS30: 0 | AU30: 0 | AV30: 0 | AW30: 0
A31: Wilson Cristofani | B31: 108 | C31: 17 | D31: 19 | E31: 0 | G31: 13 | H31: 23 | I31: 0 | K31: 0 | L31: 0 | M31: 0 | O31: 0 | P31: 0 | Q31: 0 | S31: 0 | T31: 0 | U31: 0 | W31: 0 | X31: 0 | Y31: 0 | AA31: 0 | AB31: 0 | AC31: 0 | AE31: 0 | AF31: 0 | AG31: 0 | AI31: 0 | AJ31: 0 | AK31: 0 | AM31: 4 | AN31: 35 | AO31: 0 | AQ31: 6 | AR31: 31 | AS31: 0 | AU31: 0 | AV31: 0 | AW31: 0
A32: Gerson Junior | B32: 81 | C32: 0 | D32: 0 | E32: 0 | G32: 3 | H32: 37 | I32: 0 | K32: 13 | L32: 23 | M32: 0 | O32: 15 | P32: 21 | Q32: 0 | S32: 0 | T32: 0 | U32: 0 | W32: 0 | X32: 0 | Y32: 0 | AA32: 0 | AB32: 0 | AC32: 0 | AE32: 0 | AF32: 0 | AG32: 0 | AI32: 0 | AJ32: 0 | AK32: 0 | AM32: 0 | AN32: 0 | AO32: 0 | AQ32: 0 | AR32: 0 | AS32: 0 | AU32: 0 | AV32: 0 | AW32: 0
A33: XXXXX
A34: XXXXX | B34: 0
A35: ComOferta | B35: 576 | D35: 51 | E35: 0 | H35: 69 | I35: 0 | L35: 78 | M35: 0 | P35: 69 | Q35: 0 | T35: 72 | U35: 1 | X35: 52 | Y35: 0 | AB35: 26 | AC35: 0 | AF35: 57 | AG35: 0 | AJ35: 21 | AK35: 0 | AN35: 22 | AO35: 0 | AR35: 27 | AS35: 0 | AV35: 31 | AW35: 0
A36: Anderson Oliveira | B36: 173 | C36: 6 | D36: 31 | E36: 0 | G36: 11 | H36: 25 | I36: 0 | K36: 7 | L36: 29 | M36: 0 | O36: 9 | P36: 27 | Q36: 0 | S36: 11 | T36: 25 | U36: 1 | W36: 0 | X36: 0 | Y36: 0 | AA36: 0 | AB36: 0 | AC36: 0 | AE36: 4 | AF36: 35 | AG36: 0 | AI36: 0 | AJ36: 0 | AK36: 0 | AM36: 0 | AN36: 0 | AO36: 0 | AQ36: 0 | AR36: 0 | AS36: 0 | AU36: 0 | AV36: 0 | AW36: 0
A37: Matheus Dias | B37: 128 | C37: 0 | D37: 0 | E37: 0 | G37: 8 | H37: 28 | I37: 0 | K37: 12 | L37: 24 | M37: 0 | O37: 10 | P37: 26 | Q37: 0 | S37: 13 | T37: 23 | U37: 0 | W37: 9 | X37: 27 | Y37: 0 | AA37: 0 | AB37: 0 | AC37: 0 | AE37: 0 | AF37: 0 | AG37: 0 | AI37: 0 | AJ37: 0 | AK37: 0 | AM37: 0 | AN37: 0 | AO37: 0 | AQ37: 0 | AR37: 0 | AS37: 0 | AU37: 0 | AV37: 0 | AW37: 0
A38: Gladson Souza | B38: 275 | C38: 16 | D38: 20 | E38: 0 | G38: 20 | H38: 16 | I38: 0 | K38: 11 | L38: 25 | M38: 0 | O38: 20 | P38: 16 | Q38: 0 | S38: 12 | T38: 24 | U38: 0 | W38: 11 | X38: 25 | Y38: 0 | AA38: 10 | AB38: 26 | AC38: 0 | AE38: 14 | AF38: 22 | AG38: 0 | AI38: 15 | AJ38: 21 | AK38: 0 | AM38: 14 | AN38: 22 | AO38: 0 | AQ38: 9 | AR38: 27 | AS38: 0 | AU38: 6 | AV38: 31 | AW38: 0
A39: XXXXXX
A40: XXXXXX | B40: 0
A41: RBC Racing | B41: 960 | D41: 62 | E41: 0 | H41: 90 | I41: 1 | L41: 50 | M41: 1 | P41: 83 | Q41: 0 | T41: 66 | U41: 0 | X41: 98 | Y41: 1 | AB41: 85 | AC41: 0 | AF41: 100 | AG41: 1 | AJ41: 78 | AK41: 1 | AN41: 102 | AO41: 0 | AR41: 74 | AS41: 0 | AV41: 66 | AW41: 1
A42: Lúcio Chequer | B42: 389 | C42: 5 | D42: 33 | E42: 0 | G42: 1 | H42: 45 | I42: 0 | K42: 5 | L42: 33 | M42: 1 | O42: 17 | P42: 19 | Q42: 0 | S42: 4 | T42: 35 | U42: 0 | W42: 5 | X42: 33 | Y42: 0 | AA42: 6 | AB42: 31 | AC42: 0 | AE42: 6 | AF42: 31 | AG42: 0 | AI42: 5 | AJ42: 33 | AK42: 0 | AM42: 2 | AN42: 40 | AO42: 0 | AQ42: 7 | AR42: 29 | AS42: 0 | AU42: 10 | AV42: 26 | AW42: 0
A43: Arthur Santiago | B43: 220 | C43: 0 | D43: 0 | E43: 0 | G43: 5 | H43: 33 | I43: 1 | K43: 19 | L43: 17 | M43: 0 | O43: 6 | P43: 31 | Q43: 0 | S43: 6 | T43: 31 | U43: 0 | W43: 8 | X43: 28 | Y43: 0 | AA43: 15 | AB43: 21 | AC43: 0 | AE43: 7 | AF43: 29 | AG43: 0 | AI43: 0 | AJ43: 0 | AK43: 0 | AM43: 7 | AN43: 29 | AO43: 0 | AQ43: 0 | AR43: 0 | AS43: 0 | AU43: 0 | AV43: 0 | AW43: 0
A44: Joanes Gouvea | B44: 351 | C44: 7 | D44: 29 | E44: 0 | G44: 24 | H44: 12 | I44: 0 | K44: 0 | L44: 0 | M44: 0 | O44: 5 | P44: 33 | Q44: 0 | S44: 0 | T44: 0 | U44: 0 | W44: 3 | X44: 37 | Y44: 1 | AA44: 5 | AB44: 33 | AC44: 0 | AE44: 2 | AF44: 40 | AG44: 1 | AI44: 1 | AJ44: 45 | AK44: 1 | AM44: 5 | AN44: 33 | AO44: 0 | AQ44: 1 | AR44: 45 | AS44: 0 | AU44: 2 | AV44: 40 | AW44: 1
A45: XXXXXXX
A46: XXXXXXX | B46: 0
A47: Inovesa | B47: 913 | D47: 68 | E47: 0 | H47: 86 | I47: 0 | L47: 92 | M47: 0 | P47: 78 | Q47: 0 | T47: 28 | U47: 0 | X47: 95 | Y47: 0 | AB47: 57 | AC47: 0 | AF47: 87 | AG47: 0 | AJ47: 85 | AK47: 0 | AN47: 76 | AO47: 0 | AR47: 68 | AS47: 0 | AV47: 93 | AW47: 0
A48: Luciano Brandão | B48: 386 | C48: 1 | D48: 45 | E48: 0 | G48: 10 | H48: 26 | I48: 0 | K48: 6 | L48: 31 | M48: 0 | O48: 2 | P48: 40 | Q48: 0 | S48: 8 | T48: 28 | U48: 0 | W48: 4 | X48: 35 | Y48: 0 | AA48: 7 | AB48: 29 | AC48: 0 | AE48: 8 | AF48: 28 | AG48: 0 | AI48: 10 | AJ48: 26 | AK48: 0 | AM48: 10 | AN48: 26 | AO48: 0 | AQ48: 4 | AR48: 35 | AS48: 0 | AU48: 3 | AV48: 37 | AW48: 0
A49: Aparecido Arantes | B49: 219 | C49: 0 | D49: 0 | E49: 0 | G49: 6 | H49: 31 | I49: 0 | K49: 2 | L49: 40 | M49: 0 | O49: 21 | P49: 15 | Q49: 0 | S49: 0 | T49: 0 | U49: 0 | W49: 7 | X49: 29 | Y49: 0 | AA49: 0 | AB49: 0 | AC49: 0 | AE49: 10 | AF49: 26 | AG49: 0 | AI49: 8 | AJ49: 28 | AK49: 0 | AM49: 13 | AN49: 23 | AO49: 0 | AQ49: 0 | AR49: 0 | AS49: 0 | AU49: 9 | AV49: 27 | AW49: 0
A50: Leonardo Mattioda | B50: 308 | C50: 13 | D50: 23 | E50: 0 | G50: 7 | H50: 29 | I50: 0 | K50: 15 | L50: 21 | M50: 0 | O50: 13 | P50: 23 | Q50: 0 | S50: 0 | T50: 0 | U50: 0 | W50: 6 | X50: 31 | Y50: 0 | AA50: 8 | AB50: 28 | AC50: 0 | AE50: 5 | AF50: 33 | AG50: 0 | AI50: 6 | AJ50: 31 | AK50: 0 | AM50: 9 | AN50: 27 | AO50: 0 | AQ50: 5 | AR50: 33 | AS50: 0 | AU50: 7 | AV50: 29 | AW50: 0
A51: XXXXXXXX
A52: XXXXXXXX
A53: Gui Figueiredo | B53: 154 | D53: 26 | E53: 0 | H53: 0 | I53: 0 | L53: 0 | M53: 0 | P53: 46 | Q53: 0 | T53: 12 | U53: 0 | X53: 0 | Y53: 0 | AB53: 25 | AC53: 0 | AF53: 0 | AG53: 0 | AJ53: 24 | AK53: 0 | AN53: 21 | AO53: 0 | AR53: 0 | AS53: 0 | AV53: 0 | AW53: 0
A54: Rodrigo Guimaraes | B54: 132 | C54: 10 | D54: 26 | E54: 0 | G54: 0 | H54: 0 | I54: 0 | K54: 0 | L54: 0 | M54: 0 | O54: 12 | P54: 24 | Q54: 0 | S54: 24 | T54: 12 | U54: 0 | W54: 0 | X54: 0 | Y54: 0 | AA54: 11 | AB54: 25 | AC54: 0 | AE54: 0 | AF54: 0 | AG54: 0 | AI54: 12 | AJ54: 24 | AK54: 0 | AM54: 15 | AN54: 21 | AO54: 0 | AQ54: 0 | AR54: 0 | AS54: 0 | AU54: 0 | AV54: 0 | AW54: 0
A55: Thiago Xavier | B55: 0 | C55: 0 | D55: 0 | E55: 0 | G55: 0 | H55: 0 | I55: 0 | K55: 0 | L55: 0 | M55: 0 | O55: 0 | P55: 0 | Q55: 0 | S55: 0 | T55: 0 | U55: 0 | W55: 0 | X55: 0 | Y55: 0 | AA55: 0 | AB55: 0 | AC55: 0 | AE55: 0 | AF55: 0 | AG55: 0 | AI55: 0 | AJ55: 0 | AK55: 0 | AM55: 0 | AN55: 0 | AO55: 0 | AQ55: 0 | AR55: 0 | AS55: 0 | AU55: 0 | AV55: 0 | AW55: 0
A56: André Triginelli | B56: 22 | C56: 0 | D56: 0 | E56: 0 | G56: 0 | H56: 0 | I56: 0 | K56: 0 | L56: 0 | M56: 0 | O56: 14 | P56: 22 | Q56: 0 | S56: 0 | T56: 0 | U56: 0 | W56: 0 | X56: 0 | Y56: 0 | AA56: 0 | AB56: 0 | AC56: 0 | AE56: 0 | AF56: 0 | AG56: 0 | AI56: 0 | AJ56: 0 | AK56: 0 | AM56: 0 | AN56: 0 | AO56: 0 | AQ56: 0 | AR56: 0 | AS56: 0 | AU56: 0 | AV56: 0 | AW56: 0
A57: XXXXXXXXX
A58: XXXXXXXXX

Sheet Class Elimin 2 Piores Equip
A1: 2022 | D1: OK | H1: OK | L1: OK | P1: OK | T1: OK | X1: OK | AB1: OK | AF1: OK | AJ1: OK | AN1: OK | AR1: OK | AV1: OK
C2: ETAPA 2 | G2: ETAPA 3 | K2: ETAPA 1 | O2: ETAPA 4 | S2: ETAPA 5 | W2: ETAPA 6 | AA2: ETAPA 7 | AE2: ETAPA 8 | AI2: ETAPA 9 | AM2: ETAPA 10 | AQ2: ETAPA 11 | AU2: ETAPA 12
C3: SUPER | G3: LIGHT | K3: LIGHT | O3: SUPER | S3: LIGHT | W3: SUPER | AA3: SUPER | AE3: 00:00:00 | AI3: SUPER | AM3: LIGHT | AQ3: SUPER | AU3: LIGHT
A4: EQUIPES | B4: Pontuação Geral | C4: Posição | D4: Pontos | E4: Bônus | F4: Penalidade | G4: Posição | H4: Pontos | I4: Bônus | J4: Penalidade | K4: Posição | L4: Pontos | M4: Bônus | N4: Penalidade | O4: Posição | P4: Pontos | Q4: Bônus | R4: Penalidade | S4: Posição | T4: Pontos | U4: Bônus | V4: Penalidade | W4: Posição | X4: Pontos | Y4: Bônus | Z4: Penalidade | AA4: Posição | AB4: Pontos | AC4: Bônus | AD4: Penalidade | AE4: Posição | AF4: Pontos | AG4: Bônus | AH4: Penalidade | AI4: Posição | AJ4: Pontos | AK4: Bônus | AL4: Penalidade | AM4: Posição | AN4: Pontos | AO4: Bônus | AP4: Penalidade | AQ4: Posição | AR4: Pontos | AS4: Bônus | AT4: Penalidade | AU4: Posição | AV4: Pontos | AW4: Bônus | AX4: Penalidade
A5: RBC Racing | B5: 710 | D5: 62* | E5: 0 | H5: 78 | I5: 1 | L5: 50* | M5: 1 | P5: 64 | Q5: 0 | T5: 66 | U5: 0 | X5: 70 | Y5: 1 | AB5: 64 | AC5: 0 | AF5: 71 | AG5: 1 | AJ5: 78 | AK5: 1 | AN5: 73 | AO5: 0 | AR5: 74 | AS5: 0 | AV5: 66 | AW5: 1
A6: Lúcio Chequer | B6: 304 | C6: 5 | D6: 33* | E6: 0 | G6: 1 | H6: 45 | I6: 0 | K6: 5 | L6: 33* | M6: 1 | O6: 17 | P6: 19* | Q6: 0 | S6: 4 | T6: 35 | U6: 0 | W6: 5 | X6: 33 | Y6: 0 | AA6: 6 | AB6: 31 | AC6: 0 | AE6: 6 | AF6: 31 | AG6: 0 | AI6: 5 | AJ6: 33 | AK6: 0 | AM6: 2 | AN6: 40 | AO6: 0 | AQ6: 7 | AR6: 29 | AS6: 0 | AU6: 10 | AV6: 26 | AW6: 0
A7: Arthur Santiago | B7: 96 | C7: 0 | D7: 0* | E7: 0 | G7: 5 | H7: 33 | I7: 1 | K7: 19 | L7: 17* | M7: 0 | O7: 6 | P7: 31 | Q7: 0 | S7: 6 | T7: 31 | U7: 0 | W7: 8 | X7: 28* | Y7: 0 | AA7: 15 | AB7: 21* | AC7: 0 | AE7: 7 | AF7: 29* | AG7: 0 | AI7: 0 | AJ7: 0 | AK7: 0 | AM7: 7 | AN7: 29* | AO7: 0 | AQ7: 0 | AR7: 0 | AS7: 0 | AU7: 0 | AV7: 0 | AW7: 0
A8: Joanes Gouvea | B8: 310 | C8: 7 | D8: 29* | E8: 0 | G8: 24 | H8: 12* | I8: 0 | K8: 0 | L8: 0* | M8: 0 | O8: 5 | P8: 33 | Q8: 0 | S8: 0 | T8: 0 | U8: 0 | W8: 3 | X8: 37 | Y8: 1 | AA8: 5 | AB8: 33 | AC8: 0 | AE8: 2 | AF8: 40 | AG8: 1 | AI8: 1 | AJ8: 45 | AK8: 1 | AM8: 5 | AN8: 33 | AO8: 0 | AQ8: 1 | AR8: 45 | AS8: 0 | AU8: 2 | AV8: 40 | AW8: 1
A9: XXXXXXX | D9: * | L9: *
A10: XXXXXXX | B10: 0 | D10: * | L10: *
A11: Inovesa | B11: 639 | D11: 68 | E11: 0 | H11: 60 | I11: 0 | L11: 71 | M11: 0 | P11: 63 | Q11: 0 | T11: 28* | U11: 0 | X11: 66 | Y11: 0 | AB11: 57 | AC11: 0 | AF11: 61 | AG11: 0 | AJ11: 59 | AK11: 0 | AN11: 53* | AO11: 0 | AR11: 68 | AS11: 0 | AV11: 66 | AW11: 0
A12: Luciano Brandão | B12: 280 | C12: 1 | D12: 45 | E12: 0 | G12: 10 | H12: 26* | I12: 0 | K12: 6 | L12: 31 | M12: 0 | O12: 2 | P12: 40 | Q12: 0 | S12: 8 | T12: 28* | U12: 0 | W12: 4 | X12: 35 | Y12: 0 | AA12: 7 | AB12: 29 | AC12: 0 | AE12: 8 | AF12: 28 | AG12: 0 | AI12: 10 | AJ12: 26* | AK12: 0 | AM12: 10 | AN12: 26* | AO12: 0 | AQ12: 4 | AR12: 35 | AS12: 0 | AU12: 3 | AV12: 37 | AW12: 0
A13: Aparecido Arantes | B13: 99 | C13: 0 | D13: 0 | E13: 0 | G13: 6 | H13: 31 | I13: 0 | K13: 2 | L13: 40 | M13: 0 | O13: 21 | P13: 15* | Q13: 0 | S13: 0 | T13: 0* | U13: 0 | W13: 7 | X13: 29* | Y13: 0 | AA13: 0 | AB13: 0 | AC13: 0 | AE13: 10 | AF13: 26* | AG13: 0 | AI13: 8 | AJ13: 28 | AK13: 0 | AM13: 13 | AN13: 23** | AO13: 0 | AQ13: 0 | AR13: 0 | AS13: 0 | AU13: 9 | AV13: 27* | AW13: 0
A14: Leonardo Mattioda | B14: 260 | C14: 13 | D14: 23 | E14: 0 | G14: 7 | H14: 29 | I14: 0 | K14: 15 | L14: 21* | M14: 0 | O14: 13 | P14: 23 | Q14: 0 | S14: 0 | T14: 0* | U14: 0 | W14: 6 | X14: 31 | Y14: 0 | AA14: 8 | AB14: 28 | AC14: 0 | AE14: 5 | AF14: 33 | AG14: 0 | AI14: 6 | AJ14: 31 | AK14: 0 | AM14: 9 | AN14: 27* | AO14: 0 | AQ14: 5 | AR14: 33 | AS14: 0 | AU14: 7 | AV14: 29 | AW14: 0
A15: XXXXXXXX | T15: * | AN15: *
A16: XXXXXXXX | T16: * | AN16: *
A17: Mercado Mineiro | B17: 616 | D17: 55 | E17: 0 | H17: 55 | I17: 0 | L17: 59 | M17: 0 | P17: 74 | Q17: 0 | T17: 69 | U17: 0 | X17: 40* | Y17: 0 | AB17: 61 | AC17: 0 | AF17: 60 | AG17: 0 | AJ17: 69 | AK17: 0 | AN17: 68 | AO17: 0 | AR17: 23* | AS17: 1 | AV17: 45 | AW17: 0
A18: Anderson Teixeira | B18: 347 | C18: 8 | D18: 28 | E18: 0 | G18: 17 | H18: 19* | I18: 0 | K18: 3 | L18: 37 | M18: 0 | O18: 1 | P18: 45 | Q18: 0 | S18: 2 | T18: 40 | U18: 0 | W18: 2 | X18: 40* | Y18: 0 | AA18: 3 | AB18: 37 | AC18: 0 | AE18: 3 | AF18: 37 | AG18: 0 | AI18: 2 | AJ18: 40 | AK18: 0 | AM18: 3 | AN18: 37 | AO18: 0 | AQ18: 13 | AR18: 23* | AS18: 1 | AU18: 1 | AV18: 45 | AW18: 0
A19: Gabriel Gontijo | B19: 101 | C19: 12 | D19: 24* | E19: 0 | G19: 16 | H19: 20 | I19: 0 | K19: 22 | L19: 14* | M19: 0 | O19: 7 | P19: 29 | Q19: 0 | S19: 9 | T19: 27* | U19: 0 | W19: 0 | X19: 0* | Y19: 0 | AA19: 0 | AB19: 0 | AC19: 0 | AE19: 13 | AF19: 23 | AG19: 0 | AI19: 7 | AJ19: 29 | AK19: 0 | AM19: 0 | AN19: 0 | AO19: 0 | AQ19: 0 | AR19: 0* | AS19: 0 | AU19: 0 | AV19: 0 | AW19: 0
A20: Emerson Guimarães | B20: 168 | C20: 9 | D20: 27 | E20: 0 | G20: 4 | H20: 35 | I20: 0 | K20: 14 | L20: 22 | M20: 0 | O20: 11 | P20: 25* | Q20: 0 | S20: 7 | T20: 29 | U20: 0 | W20: 0 | X20: 0* | Y20: 0 | AA20: 12 | AB20: 24 | AC20: 0 | AE20: 0 | AF20: 0 | AG20: 0 | AI20: 11 | AJ20: 25* | AK20: 0 | AM20: 6 | AN20: 31 | AO20: 0 | AQ20: 0 | AR20: 0* | AS20: 0 | AU20: 0 | AV20: 0 | AW20: 0
A21: XXX | X21: * | AR21: *
A22: XXX | B22: 0 | X22: * | AR22: *
A23: Grupo Santiago | B23: 603 | D23: 40* | E23: 0 | H23: 58 | I23: 0 | L23: 46 | M23: 0 | P23: 55 | Q23: 0 | T23: 71 | U23: 0 | X23: 68 | Y23: 0 | AB23: 62 | AC23: 0 | AF23: 49 | AG23: 0 | AJ23: 59 | AK23: 0 | AN23: 69 | AO23: 0 | AR23: 66 | AS23: 0 | AV23: 33* | AW23: 0
A24: Fernando Mota | B24: 349 | C24: 2 | D24: 40* | E24: 0 | G24: 2 | H24: 40 | I24: 0 | K24: 21 | L24: 15* | M24: 0 | O24: 3 | P24: 37 | Q24: 0 | S24: 1 | T24: 45 | U24: 0 | W24: 1 | X24: 45 | Y24: 0 | AA24: 4 | AB24: 35 | AC24: 0 | AE24: 11 | AF24: 25 | AG24: 0 | AI24: 3 | AJ24: 37 | AK24: 0 | AM24: 1 | AN24: 45 | AO24: 0 | AQ24: 2 | AR24: 40 | AS24: 0 | AU24: 5 | AV24: 33* | AW24: 0
A25: Leodegario Junior | B25: 145 | C25: 0 | D25: 0* | E25: 0 | G25: 23 | H25: 13* | I25: 0 | K25: 10 | L25: 26 | M25: 0 | O25: 18 | P25: 18 | Q25: 0 | S25: 10 | T25: 26 | U25: 0 | W25: 14 | X25: 22* | Y25: 0 | AA25: 9 | AB25: 27 | AC25: 0 | AE25: 12 | AF25: 24 | AG25: 0 | AI25: 0 | AJ25: 0 | AK25: 0 | AM25: 12 | AN25: 24 | AO25: 0 | AQ25: 0 | AR25: 0 | AS25: 0 | AU25: 0 | AV25: 0* | AW25: 0
A26: Danilo Soares | B26: 109 | C26: 0 | D26: 0* | E26: 0 | G26: 18 | H26: 18 | I26: 0 | K26: 16 | L26: 20 | M26: 0 | O26: 19 | P26: 17* | Q26: 0 | S26: 0 | T26: 0 | U26: 0 | W26: 13 | X26: 23 | Y26: 0 | AA26: 13 | AB26: 23* | AC26: 0 | AE26: 0 | AF26: 0 | AG26: 0 | AI26: 14 | AJ26: 22 | AK26: 0 | AM26: 0 | AN26: 0 | AO26: 0 | AQ26: 10 | AR26: 26 | AS26: 0 | AU26: 0 | AV26: 0* | AW26: 0
A27: XX | D27: * | AV27: *
A28: XX | D28: * | AV28: *
A29: Multiseg | B29: 598 | D29: 60 | E29: 0 | H29: 41* | I29: 0 | L29: 73 | M29: 0 | P29: 48 | Q29: 0 | T29: 54 | U29: 0 | X29: 50 | Y29: 0 | AB29: 45* | AC29: 1 | AF29: 72 | AG29: 0 | AJ29: 58 | AK29: 0 | AN29: 53 | AO29: 1 | AR29: 65 | AS29: 0 | AV29: 63 | AW29: 0
A30: Alexandre Melillo | B30: 348 | C30: 4 | D30: 35 | E30: 0 | G30: 22 | H30: 14** | I30: 0 | K30: 1 | L30: 45 | M30: 0 | O30: 8 | P30: 28 | Q30: 0 | S30: 3 | T30: 37 | U30: 0 | W30: 12 | X30: 24 | Y30: 0 | AA30: 1 | AB30: 45* | AC30: 1 | AE30: 1 | AF30: 45 | AG30: 0 | AI30: 4 | AJ30: 35 | AK30: 0 | AM30: 11 | AN30: 25 | AO30: 1 | AQ30: 3 | AR30: 37 | AS30: 0 | AU30: 4 | AV30: 35 | AW30: 0
A31: Gladystone Reis | B31: 0 | C31: 0 | D31: 0 | E31: 0 | G31: 19 | H31: 17* | I31: 0 | K31: 18 | L31: 18* | M31: 0 | O31: 0 | P31: 0 | Q31: 0 | S31: 0 | T31: 0 | U31: 0 | W31: 0 | X31: 0 | Y31: 0 | AA31: 0 | AB31: 0* | AC31: 0 | AE31: 0 | AF31: 0 | AG31: 0 | AI31: 0 | AJ31: 0 | AK31: 0 | AM31: 0 | AN31: 0 | AO31: 0 | AQ31: 0 | AR31: 0 | AS31: 0 | AU31: 0 | AV31: 0 | AW31: 0
A32: Vitor Diniz | B32: 250 | C32: 11 | D32: 25 | E32: 0 | G32: 12 | H32: 24* | I32: 0 | K32: 8 | L32: 28 | M32: 0 | O32: 16 | P32: 20 | Q32: 0 | S32: 19 | T32: 17 | U32: 0 | W32: 10 | X32: 26 | Y32: 0 | AA32: 0 | AB32: 0* | AC32: 0 | AE32: 9 | AF32: 27 | AG32: 0 | AI32: 13 | AJ32: 23 | AK32: 0 | AM32: 8 | AN32: 28 | AO32: 0 | AQ32: 8 | AR32: 28 | AS32: 0 | AU32: 8 | AV32: 28 | AW32: 0
A33: X | H33: * | AB33: *
A34: X | B34: 0 | H34: * | AB34: *
A35: ComOferta | B35: 454 | D35: 51 | E35: 0 | H35: 53 | I35: 0 | L35: 54 | M35: 0 | P35: 53 | Q35: 0 | T35: 49 | U35: 1 | X35: 52 | Y35: 0 | AB35: 26 | AC35: 0 | AF35: 57 | AG35: 0 | AJ35: 21* | AK35: 0 | AN35: 22* | AO35: 0 | AR35: 27 | AS35: 0 | AV35: 31 | AW35: 0
A36: Anderson Oliveira | B36: 173 | C36: 6 | D36: 31 | E36: 0 | G36: 11 | H36: 25 | I36: 0 | K36: 7 | L36: 29 | M36: 0 | O36: 9 | P36: 27 | Q36: 0 | S36: 11 | T36: 25 | U36: 1 | W36: 0 | X36: 0 | Y36: 0 | AA36: 0 | AB36: 0 | AC36: 0 | AE36: 4 | AF36: 35 | AG36: 0 | AI36: 0 | AJ36: 0* | AK36: 0 | AM36: 0 | AN36: 0* | AO36: 0 | AQ36: 0 | AR36: 0 | AS36: 0 | AU36: 0 | AV36: 0 | AW36: 0
A37: Matheus Dias | B37: 81 | C37: 0 | D37: 0 | E37: 0 | G37: 8 | H37: 28 | I37: 0 | K37: 12 | L37: 24* | M37: 0 | O37: 10 | P37: 26 | Q37: 0 | S37: 13 | T37: 23* | U37: 0 | W37: 9 | X37: 27 | Y37: 0 | AA37: 0 | AB37: 0 | AC37: 0 | AE37: 0 | AF37: 0 | AG37: 0 | AI37: 0 | AJ37: 0* | AK37: 0 | AM37: 0 | AN37: 0* | AO37: 0 | AQ37: 0 | AR37: 0 | AS37: 0 | AU37: 0 | AV37: 0 | AW37: 0
A38: Gladson Souza | B38: 200 | C38: 16 | D38: 20 | E38: 0 | G38: 20 | H38: 16* | I38: 0 | K38: 11 | L38: 25 | M38: 0 | O38: 20 | P38: 16* | Q38: 0 | S38: 12 | T38: 24 | U38: 0 | W38: 11 | X38: 25 | Y38: 0 | AA38: 10 | AB38: 26 | AC38: 0 | AE38: 14 | AF38: 22 | AG38: 0 | AI38: 15 | AJ38: 21* | AK38: 0 | AM38: 14 | AN38: 22* | AO38: 0 | AQ38: 9 | AR38: 27 | AS38: 0 | AU38: 6 | AV38: 31 | AW38: 0
A39: XXXXXX | AJ39: * | AN39: *
A40: XXXXXX | B40: 0 | AJ40: * | AN40: *
A41: Rng | B41: 397 | D41: 56 | E41: 0 | H41: 60 | I41: 0 | L41: 58 | M41: 0 | P41: 56 | Q41: 1 | T41: 33 | U41: 0 | X41: 0 | Y41: 0 | AB41: 40 | AC41: 0 | AF41: 0* | AG41: 0 | AJ41: 27 | AK41: 0 | AN41: 35 | AO41: 0 | AR41: 31 | AS41: 0 | AV41: 0* | AW41: 0
A42: Agostinho Neves | B42: 208 | C42: 3 | D42: 37 | E42: 0 | G42: 15 | H42: 21* | I42: 0 | K42: 4 | L42: 35 | M42: 0 | O42: 4 | P42: 35 | Q42: 1 | S42: 5 | T42: 33 | U42: 0 | W42: 0 | X42: 0 | Y42: 0 | AA42: 2 | AB42: 40 | AC42: 0 | AE42: 0 | AF42: 0* | AG42: 0 | AI42: 9 | AJ42: 27 | AK42: 0 | AM42: 0 | AN42: 0 | AO42: 0 | AQ42: 0 | AR42: 0 | AS42: 0 | AU42: 0 | AV42: 0* | AW42: 0
A43: Wilson Cristofani | B43: 108 | C43: 17 | D43: 19 | E43: 0 | G43: 13 | H43: 23 | I43: 0 | K43: 0 | L43: 0 | M43: 0 | O43: 0 | P43: 0 | Q43: 0 | S43: 0 | T43: 0 | U43: 0 | W43: 0 | X43: 0 | Y43: 0 | AA43: 0 | AB43: 0 | AC43: 0 | AE43: 0 | AF43: 0* | AG43: 0 | AI43: 0 | AJ43: 0 | AK43: 0 | AM43: 4 | AN43: 35 | AO43: 0 | AQ43: 6 | AR43: 31 | AS43: 0 | AU43: 0 | AV43: 0* | AW43: 0
A44: Gerson Junior | B44: 81 | C44: 0 | D44: 0 | E44: 0 | G44: 3 | H44: 37 | I44: 0 | K44: 13 | L44: 23 | M44: 0 | O44: 15 | P44: 21 | Q44: 0 | S44: 0 | T44: 0 | U44: 0 | W44: 0 | X44: 0 | Y44: 0 | AA44: 0 | AB44: 0 | AC44: 0 | AE44: 0 | AF44: 0* | AG44: 0 | AI44: 0 | AJ44: 0 | AK44: 0 | AM44: 0 | AN44: 0 | AO44: 0 | AQ44: 0 | AR44: 0 | AS44: 0 | AU44: 0 | AV44: 0* | AW44: 0
A45: XXXXX | AF45: * | AV45: *
A46: XXXXX | B46: 0 | AF46: * | AV46: *
A47: Os Piratas | B47: 181 | D47: 43 | E47: 1 | H47: 49 | I47: 0 | L47: 46 | M47: 0 | P47: 0 | Q47: 0 | T47: 0 | U47: 0 | X47: 0 | Y47: 0 | AB47: 22 | AC47: 0 | AF47: 0 | AG47: 0 | AJ47: 20 | AK47: 0 | AN47: 0 | AO47: 0 | AR47: 0* | AS47: 0 | AV47: 0* | AW47: 0
A48: Felipe Franca | B48: 22 | C48: 0 | D48: 0 | E48: 0 | G48: 14 | H48: 22 | I48: 0 | K48: 20 | L48: 16* | M48: 0 | O48: 0 | P48: 0 | Q48: 0 | S48: 0 | T48: 0 | U48: 0 | W48: 0 | X48: 0 | Y48: 0 | AA48: 0 | AB48: 0 | AC48: 0 | AE48: 0 | AF48: 0 | AG48: 0 | AI48: 0 | AJ48: 0 | AK48: 0 | AM48: 0 | AN48: 0 | AO48: 0 | AQ48: 0 | AR48: 0* | AS48: 0 | AU48: 0 | AV48: 0* | AW48: 0
A49: Leandro Leite | B49: 77 | C49: 14 | D49: 22 | E49: 1 | G49: 9 | H49: 27 | I49: 0 | K49: 9 | L49: 27 | M49: 0 | O49: 0 | P49: 0 | Q49: 0 | S49: 0 | T49: 0 | U49: 0 | W49: 0 | X49: 0 | Y49: 0 | AA49: 0 | AB49: 0 | AC49: 0 | AE49: 0 | AF49: 0 | AG49: 0 | AI49: 0 | AJ49: 0 | AK49: 0 | AM49: 0 | AN49: 0 | AO49: 0 | AQ49: 0 | AR49: 0* | AS49: 0 | AU49: 0 | AV49: 0* | AW49: 0
A50: Ezequiel Netto | B50: 82 | C50: 15 | D50: 21 | E50: 0 | G50: 21 | H50: 15* | I50: 0 | K50: 17 | L50: 19 | M50: 0 | O50: 0 | P50: 0 | Q50: 0 | S50: 0 | T50: 0 | U50: 0 | W50: 0 | X50: 0 | Y50: 0 | AA50: 14 | AB50: 22 | AC50: 0 | AE50: 0 | AF50: 0 | AG50: 0 | AI50: 16 | AJ50: 20 | AK50: 0 | AM50: 0 | AN50: 0 | AO50: 0 | AQ50: 0 | AR50: 0* | AS50: 0 | AU50: 0 | AV50: 0* | AW50: 0
A51: Gabriel Ramos | B51: 0 | C51: 0 | D51: 0 | E51: 0 | G51: 0 | H51: 0 | I51: 0 | K51: 0 | L51: 0 | M51: 0 | O51: 0 | P51: 0 | Q51: 0 | S51: 0 | T51: 0 | U51: 0 | W51: 0 | X51: 0 | Y51: 0 | AA51: 0 | AB51: 0 | AC51: 0 | AE51: 0 | AF51: 0 | AG51: 0 | AI51: 0 | AJ51: 0 | AK51: 0 | AM51: 0 | AN51: 0 | AO51: 0 | AQ51: 0 | AR51: 0* | AS51: 0 | AU51: 0 | AV51: 0* | AW51: 0
A52: XXXX | B52: 0 | AR52: * | AV52: *
A53: Gui Figueiredo | B53: 154 | D53: 26 | E53: 0 | H53: 0 | I53: 0 | L53: 0 | M53: 0 | P53: 46 | Q53: 0 | T53: 12 | U53: 0 | X53: 0 | Y53: 0 | AB53: 25 | AC53: 0 | AF53: 0 | AG53: 0 | AJ53: 24 | AK53: 0 | AN53: 21 | AO53: 0 | AR53: 0* | AS53: 0 | AV53: 0* | AW53: 0
A54: Rodrigo Guimaraes | B54: 132 | C54: 10 | D54: 26 | E54: 0 | G54: 0 | H54: 0 | I54: 0 | K54: 0 | L54: 0 | M54: 0 | O54: 12 | P54: 24 | Q54: 0 | S54: 24 | T54: 12 | U54: 0 | W54: 0 | X54: 0 | Y54: 0 | AA54: 11 | AB54: 25 | AC54: 0 | AE54: 0 | AF54: 0 | AG54: 0 | AI54: 12 | AJ54: 24 | AK54: 0 | AM54: 15 | AN54: 21 | AO54: 0 | AQ54: 0 | AR54: 0* | AS54: 0 | AU54: 0 | AV54: 0* | AW54: 0
A55: Thiago Xavier | B55: 0 | C55: 0 | D55: 0 | E55: 0 | G55: 0 | H55: 0 | I55: 0 | K55: 0 | L55: 0 | M55: 0 | O55: 0 | P55: 0 | Q55: 0 | S55: 0 | T55: 0 | U55: 0 | W55: 0 | X55: 0 | Y55: 0 | AA55: 0 | AB55: 0 | AC55: 0 | AE55: 0 | AF55: 0 | AG55: 0 | AI55: 0 | AJ55: 0 | AK55: 0 | AM55: 0 | AN55: 0 | AO55: 0 | AQ55: 0 | AR55: 0* | AS55: 0 | AU55: 0 | AV55: 0* | AW55: 0
A56: André Triginelli | B56: 22 | C56: 0 | D56: 0 | E56: 0 | G56: 0 | H56: 0 | I56: 0 | K56: 0 | L56: 0 | M56: 0 | O56: 14 | P56: 22 | Q56: 0 | S56: 0 | T56: 0 | U56: 0 | W56: 0 | X56: 0 | Y56: 0 | AA56: 0 | AB56: 0 | AC56: 0 | AE56: 0 | AF56: 0 | AG56: 0 | AI56: 0 | AJ56: 0 | AK56: 0 | AM56: 0 | AN56: 0 | AO56: 0 | AQ56: 0 | AR56: 0* | AS56: 0 | AU56: 0 | AV56: 0* | AW56: 0
A57: XXXXXXXXX | AR57: * | AV57: *
A58: XXXXXXXXX | AR58: * | AV58: *

Sheet Posição x Pontos
H1: Posição | I1: Pontos
H2: 1 | I2: 45
H3: 2 | I3: 40
H4: 3 | I4: 37
H5: 4 | I5: 35
H6: 5 | I6: 33
H7: 6 | I7: 31
H8: 7 | I8: 29
H9: 8 | I9: 28
H10: 9 | I10: 27
H11: 10 | I11: 26
H12: 11 | I12: 25
H13: 12 | I13: 24
H14: 13 | I14: 23
H15: 14 | I15: 22
H16: 15 | I16: 21
H17: 16 | I17: 20
H18: 17 | I18: 19
H19: 18 | I19: 18
H20: 19 | I20: 17
H21: 20 | I21: 16
H22: 21 | I22: 15
H23: 22 | I23: 14
H24: 23 | I24: 13
H25: 24 | I25: 12
H26: 25 | I26: 11
H27: 26 | I27: 10
H28: 27 | I28: 9
H29: 28 | I29: 8
H30: 29 | I30: 7
H31: 30 | I31: 6
H32: 31 | I32: 5
H33: 32 | I33: 4
H34: 33 | I34: 3
H35: 34 | I35: 2
H36: 35 | I36: 1
H37: 36 | I37: 1
